Workbook

Sheet README

Sheet OfficeForm
A1: Pollinator Habitat Office Data: Fill in answers directly from Field Data Sheets. Do NOT write in gray areas. See directions booklet for additional explanations.
A2: Site Name | D2: Field observer name
D3: Date recorder name
A4: Notes
A5: Value and Opportunity for Pollinators
A6: Indicator | B6: Variable Number | C6: Variable | D6: Data | E6: Data | F6: Explanations and Definitions | G6: Notes
A7: Opportunity and Value Scoring for Project Area
A8: Percent cover by land use categories within 0.5 miles of Project Area | B8: 1 | C8: Urban/built: | D8: 0 | E8: Impervious/paved areas (paved parking lots, industrial and commercial areas), dam | G8: Does not provide bee resources.
C9: Paved road: | D9: 0.01 | E9: Paved county roads, highways | G9: Does not provide bee resources.
C10: Suburban open: | D10: 0 | E10: Neighborhoods with little canopy cover (includes streets, yards, houses) | G10: Does not provide bee resources.
C11: Suburban wooded*: | D11: 0 | E11: Neighborhoods with dense canopy cover | G11: May provide bee resources.
C12: Exurban*: | D12: 0.02 | E12: Farm operations and homesteads in areas where neighbors are not close together, often adjacent to ag fields (includes yards, trees, paved driveways, garages) | G12: May provide bee resources.
C13: Dirt road: | D13: 0.01 | E13: Includes possible gravel roads | G13: Does not provide bee resources.
C14: Annual crop*: | D14: 0.49 | E14: Agricultural fields planted with seasonal row crops | G14: May provide bee resources.
C15: Orchard-Vineyard crop: | D15: 0.12 | E15: Agricultural fields planted with perennial crops, includes orchards and vineyards | G15: May provide bee resources.
C16: Rice: | D16: 0 | E16: Agricultural fields planted with rice | G16: Does not provide bee resources.
C17: Non-agricultural plantings*: | D17: 0 | E17: Non-agricultural plantings; examples include hedgerows, rows of Eucalytpus along road, plantings along irrigation ditches, and other plantings that are clearly not naturally occurring but do not fit into "crop" categories | G17: May provide bee resources.
C18: Bare*: | D18: 0.03 | E18: Appears to be bare dirt (like dirt road) but is not a road; could be dirt parking area, road shoulder, or bare patch in field | G18: May provide bee resources.
C19: Weedy/sparse scrub*: | D19: 0.01 | E19: Areas that appear to have more than just grassy vegetation (presumably weeds), sometimes including an occasional shrub; road and field edges often fit into this category | G19: May provide bee resources.
C20: Grass*: | D20: 0.1 | E20: Includes mowed, unmowed, annual and perennial | G20: May provide bee resources.
C21: Chaparral*: | D21: 0 | E21: Located usually on SW facing slopes of more xeric areas, near oak woodland, usually low canopy height | G21: May provide bee resources.
C22: Oak savannah*: | D22: 0 | E22: Natural-looking grassy/scrubby areas with mixed oak/pine tree spp. scattered throughout | G22: May provide bee resources.
C23: Oak woodland*: | D23: 0.03 | E23: Also includes scrub-oak: natural-looking areas containing mixed oak/pine tree spp. growing more densely than "oak savannah” | G23: May provide bee resources.
C24: Riparian forest*: | D24: 0.04 | E24: Land along natural waterways (not irrigation ditches) containing dense tree growth, even if forest strip consists of a single line of trees | G24: May provide bee resources.
C25: Riparian scrub*: | D25: 0.08 | E25: Land along waterways containing shrubs or trees but not dense canopy cover | G25: May provide bee resources.
C26: Water*: | D26: 0.06 | E26: Ponds, rivers, canals, drainage ponds, etc. | G26: May provide bee resources.
C27: Emergent herbaceous wetlands*: | D27: 0 | E27: Wetlands often adjacent to open water but not riparian scrub | G27: May provide bee resources.
C28: Total (should be 100%) | D28: =SUM(D8:D27) -> 1 | E28: Calculation cell. Do not enter anything in D23. | G28: Should total 100%. Source for landuse categories and definitions is Kremen 2010.
C29: *Total 'wild' habitat that provides bee resources: | D29: =D11+D12+D14+D17+D18+D19+D20+D21+D22+D23+D24+D25+D26+D27 -> 0.86 | E29: Calculation cell. Do not enter anything in D25. | G29: Only the starred (*) variables are summed here.
B30: 2 | C30: Percent cover of pollinator dependent crops within 0.5 miles of Project Area | D30: 0.14 | E30: =+D30*FieldBeeForm!F8 -> 102.7186535 | F30: Enter total percent cover across all pollinator dependent crops in D25. Approximate acres of 0.5 buffer in pollinator-dependent crops automatically calculated in Column E (leave alone). | G30: Pollinator dependent crops indicate a value and opportunity for increased pollinator services within bee flight distance from the project area (~0.5 mi). Overall, a 1.5 to 25 ratio of pollinator habitat to pollinator dependent crops is recommended by NRCS 2009 document.
C31: Crop Type(s): | E31: Type crop types in blank in C26 ; leave D26 blank.
A32: Site Capacity Scoring for Project Area
A33: Site Management | B33: Insecticide Management | D33: Within PA + 50 ft buffer | E33: Within 0.5 mi buffer | F33: On the project area map, draw a 50’ buffer around the Project Area and refer to the area inside this buffer, including the PA itself, to answer the left side columns. Use the 0.5 mile buffer created for Variable 1, but only including lands that are managed and/or controlled by the applicant, to answer the right side columns.
A34: Insecticide use | B34: 3 | C34: Are pesticides (insecticides, fungicides, etc.) used 2 or more times a year, between Mar. 1st & Nov. 1st? | D34: 1 | E34: 0 | F34: In Column D, enter '1' for Yes or a '0' for No for application within the PA and a 50 foot buffer. In Column E, enter '1' for Yes or a '0' for No for application within a 0.5 mi buffer of, but not including, the PA. | G34: 0 is good
B35: 4 | C35: If insecticides are used 2+ times a year (between Mar. 1st & Nov. 1st), are broad-spectrum or soil fumigants used, or any pesticides that are labeled toxic to honeybees? | D35: 1 | E35: 0 | F35: In Column D, enter '1' for Yes or a '0' for No for within the PA and a 50 foot buffer. In Column E, enter '1' for Yes or a '0' for No for within a 0.5 mi buffer of, but not including, the PA. | G35: 0 is good
B36: 5 | C36: If insecticides are used 2+ times a year (between Mar. 1st & Nov. 1st), are they used outside of the crop blooming period? | D36: 0 | E36: 0 | F36: In Column D, enter '1' for Yes or a '0' for No for within the PA and a 50 foot buffer. In Column E, enter '1' for Yes or a '0' for No for within a 0.5 mi buffer of, but not including, the PA. | G36: 1 is good
B37: 6 | C37: If insecticides are used 2+ times a year (between Mar. 1st & Nov. 1st), are they only used when bees are not active (i.e., at night)? | D37: 0 | E37: 0 | F37: In Column D, enter '1' for Yes or a '0' for No for within the PA and a 50 foot buffer. In Column E, enter '1' for Yes or a '0' for No for within a 0.5 mi buffer of, but not including, the PA. | G37: 1 is good
B38: 7 | C38: If insecticides are used 2+ times a year (between Mar. 1st & Nov. 1st), what is the application method? | D38: 1 | E38: 0 | F38: In Columns D and E (for PA +50' and 0.5 buffer), enter '4' for no pesticides applied; '3' for hand application; '2' for tractor and boom application; '1' for other ground based method; and '0' for aerial application via an air craft. If you entered '1', enter method in Column G. | G38: 4 is good
B39: Managed Bees | D39: PA and a 2 mi buffer around PA | F39: On the project area map (and/or google earth), draw a 2 mile buffer around the PA (extending 2 miles from PA boundaries) and refer to the area within this buffer (including PA itself) to answer the left side columns (Column D).
A40: Managed bee information | B40: 8 | C40: Do you host managed honeybees anytime except winter (Nov-Feb) and/or during crop bloom time? | D40: 0 | F40: In Column D, enter '1' for Yes or a '0' for No. Enter nothing in column E. | G40: 0 is good, 1 is conditional on 9 and 10.
B41: 9 | C41: If you answered ‘Yes’ to #8, are the managed bee hives within the 2 mile buffer of the Project Area? | D41: 0 | F41: In Column D, enter '1' for Yes or a '0' for No. Enter '0' (no), even if you said 'no' for the above question(s). Enter nothing in column E. | G41: 0 is good, 1 is conditional on 10.
B42: 10 | C42: If you answered ‘Yes’ to #9, is there more than 1 hive of managed bees per acre of habitat within PA and a 2 mi buffer, where habitat can include both PA and permanently protected other habitat? | D42: 0 | F42: In Column D, enter '1' for Yes or a '0' for No. Enter '0' (no), even if you said 'no' for the above question(s). Enter nothing in column E. | G42: 0 is good
B43: 11 | C43: If you answered ‘Yes’ to #10, write down how many hives you have/host within the PA and within a 2 mi buffer during the non-winter and no crop bloom periods. | D43: 0 | F43: In Column D, enter the number of hives you host within the PA and a 2 mi buffer; enter '0' for no hives. Enter nothing in column E. | G43: 0 is good

Sheet FieldBeeForm
A1: Pollinator Habitat Field Data: Fill in answers directly from Field Data Sheets. Do NOT write in gray areas. See directions booklet for additional explanations.
A2: Site Name | D2: Field observer name | H2: Date
D3: Data recorder name | H3: PA acres
A4: Notes | H4: Do not enter data in gray-shaded cells, as gray-shaded cells are either calculation cells or are not used for that particular variable.
A5: If project area extends over 10 acres or 0.5 miles long, then divide project area into ≤10-acre or ≤0.5 mi-long Map Units. If site topography, layout, or the habitat/communities present facilitate the use of smaller Map Units, then divide into smaller units. Note, no single Map Unit should be smaller than 40 ft x 225 ft (or 0.2 acres). Label Map Units on Project Area Map (field print out). Record responses to each of the questions from the Pollinators Field Data sheet for each of these Map Units in the spaces below. For each Map Unit, move to a new set of questions in the rows below (there are 10 sets of questions provided for a maximum of 10 Map Units).
A6: Area Considered | B6: Indicator | C6: Variable Number | D6: Variable | E6: Data | F6: Calculation Cells | G6: Explanations and Definitions
A7: Project Area Overview Information
A8: Full Project Area | B8: Project Size and Age | C8: A | D8: Overall project area (in acres): | E8: 3.2 | F8: =640*((((E8*0.0015625)^0.5)+1)^2)-(E8*0.0015625) -> 733.704668 | G8: =+OfficeForm!E30/FieldBeeForm!E8 -> 32.09957922 | H8: The Project Area should include the area planned to include any pollinator resources - including both floral and nesting resources. For example, if logs will be staged near the planted area for potential nesting material, the Project Area should include the area with logs. The approximate 0.5 buffer area (in acres) and ratio of project area to buffer area with pollinator dependent crops is automatically calculated in Columns F and G; please do not touch these columns.
C9: B | D9: Percent of project area that currently supports pollinator foraging habitat: | E9: 20 | F9: =+(E9/100)*E8 -> 0.64 | H9: Acres of project area with pollinator foraging habitat:
C10: C | D10: Number of 10 (or less)-acre Map Units: | E10: 5 | H10: Enter number of Map Units included in Project Area.
C11: D | D11: Assessment Year | E11: 12 | H11: Current year = 0; future prediction years are one year post restoration = 1, two years post restoration = 2, etc.
C12: E | D12: Farm size (acres) | E12: 100 | F12: =+E8/E12 -> 0.032 | H12: Enter total acres of land in the farm (percentage of farm in Project Area calculated in Column F)
C13: F | D13: Map Unit area (square feet) | E13: MU1 | F13: MU2 | G13: MU 3 | H13: MU4 | I13: MU 5 | J13: MU 6 | K13: MU 7 | L13: MU 8 | M13: MU 9 | N13: MU 10
E14: 13190 | F14: 50000 | G14: 300000 | H14: 20000 | I14: 20000 | J14: 20000 | K14: 20000 | L14: 20000 | M14: 20000 | N14: 20000 | O14: Enter MU sizes based on either field measurements or GIS based calculations from digitized maps.
C15: G | D15: Percent of area within each Map Unit that is currently supporting floral resources | E15: 55 | F15: 10 | G15: 55 | H15: 25 | I15: 25 | J15: 25 | K15: 25 | L15: 25 | M15: 25 | N15: 25 | O15: Enter as percentage: e.g. '10' for 10%.
A16: Project Area Site Capacity
A17: Map Unit Number | B17: Map Unit Information (1) | F17: Map Unit Acres: | H17: =E$14/43560 -> 0.3028007346
A18: 1 | B18: Indicator | C18: Variable Number | D18: Variable | E18: Data | F18: Min of range | G18: Max of range | H18: Explanations and Definitions | O18: Notes
B19: Floral Resources | C19: 12 | D19: Number of different flowering plant species present during early-blooming (Feb-May) period | E19: -1 | F19: =BeeVegInputData!L81 -> 7 | G19: =+IF(E19=-1,F19,E19) -> 7 | H19: Enter nothing here. These values will be automatically entered in Columns F and G based on your entries to the BeeVegInputData worksheet. Enter data in to that worksheet (directions are at top of worksheet). | M19: Target is 5 or more species for each blooming season. Note that if there are any invasive weed or plants 'not beneficial to pollinators' species on the list, they do not count towards the total. Nonnative species can count as 0.5 pts.
C20: 13 | D20: Number of different flowering plants present during mid-blooming (Jun-Jul) period | E20: -1 | F20: =BeeVegInputData!M81 -> 10 | G20: =+IF(E20=-1,F20,E20) -> 10
C21: 14 | D21: Number of different flowering plants present during late-blooming (Aug-Jan) period | E21: -1 | F21: =+BeeVegInputData!N81 -> 7 | G21: 7
C22: 15 | D22: Estimated surface area of flowering plants present during early-blooming (Feb-May) period | E22: -1 | F22: =(MAX(G22:H22))/(E$14) -> 0.002602886737 | G22: =IF((BeeVegInputData!E81<=BeeVegInputData!I81),(BeeVegInputData!E81),(BeeVegInputData!I81)) -> 23.81995057 | H22: =IF((BeeVegInputData!E81>BeeVegInputData!I81),(BeeVegInputData!E81),(BeeVegInputData!I81)) -> 34.33207606 | I22: =+IF(E22=-1,F22,E22) -> 0.002602886737 | J22: Enter nothing here. These values will automatically be entered from the BeeVegInputData worksheet. Enter data in to that worksheet. | M22: Minimum and maximum values are pulled from the BeeVegInputData worksheet into Columns G and H (square meters); then the maximum of these two values is converted into a percentage of the total Map Unit in Column F.
C23: 16 | D23: Estimated surface area of flowering plants present during mid-blooming (Jun-Jul) period | E23: -1 | F23: =(MAX(G23:H23))/(E$14) -> 0.001401313406 | G23: =IF((BeeVegInputData!F81<=BeeVegInputData!J81),(BeeVegInputData!F81),(BeeVegInputData!J81)) -> 11.80301639 | H23: =IF((BeeVegInputData!F81>BeeVegInputData!J81),(BeeVegInputData!F81),(BeeVegInputData!J81)) -> 18.48332382 | I23: =+IF(E23=-1,F23,E23) -> 0.001401313406
C24: 17 | D24: Estimated surface area of flowering plants present during late-blooming (Aug-Jan) period | E24: -1 | F24: =(MAX(G24:H24))/(E$14) -> 0.001095626082 | G24: =IF((BeeVegInputData!G81<=BeeVegInputData!K81),(BeeVegInputData!G81),(BeeVegInputData!K81)) -> 10.20146192 | H24: =IF((BeeVegInputData!G81>BeeVegInputData!K81),(BeeVegInputData!G81),(BeeVegInputData!K81)) -> 14.45130802 | I24: =+IF(E24=-1,F24,E24) -> 0.001095626082
B25: Nesting Resources | C25: 18 | D25: Percent cover of friable bare ground present | E25: =IF(MAX(F25:G25)>=0.3,0.3,(AVERAGE(F25:G25))) -> 0.055 | F25: 0.01 | G25: 0.1 | H25: Enter percent cover range min and max values (0, 1-10, 11-20, 21-30, 31-100) in Columns F and G. | M25: Target is 10-30% ('30')
C26: 19 | D26: Number of rodent holes present | E26: 1 | H26: Enter count bins ('0' for none, '1' for few [1-10], and '2' for many [>10]) in Column E. | M26: Target is few or many. For model, combine rodent holes/bunchgrasses.
C27: 20 | D27: Amount of bunch grasses present | E27: 1 | H27: Enter percent cover bin in Column E: '0' for 0%, '1' for 1 to 5%, and '2' for greater than or equal to 5%. | M27: Target is 5-25. For model rodent holes/bunchgrasses are combined.
C28: =CONCATENATE(C26," and ",C27) -> 19 and 20 | D28: Amount of rodent holes and/or bunch grasses | E28: =IF((E26=2),2,(IF((E27=2),2,(IF((E26=1),1,(IF((E27=1),1,0))))))) -> 1 | H28: Calculation cell to combine rodent holes with bunch grasses. | M28: Target is few or many.
C29: 21 | D29: Amount of snags/stumps present | E29: 1 | H29: Enter count bins ('0' for none, '1' for few [1-10], and '2' for many [>10]) in Column E. | M29: Target is few or many. For model, combine snags/nest boxes/pithy.
C30: 22 | D30: Amount of nest boxes or nest bundles present | E30: 0 | H30: In Column E, enter count bins ('0' for none, '0.5' for few [1-3] that are close and/or not maintained, '1' for few [1-3]) that are >50 holes or maintained, '1.5' for few [1-3] that are both >50 holes and maintained, '2' for many [>3] that are both >50 holes and maintained. Give an extra point for multiple sized holes and/or small blocks w/less than 20 holes. Maximum is 3. | M30: Target many, maintained, etc.. For model, combine snags/nest boxes/pithy.
C31: 23 | D31: Amount of plants with pithy tissue present | E31: 1 | H31: Total for percent cover for all relevant species documented, then in Column E, enter appropriate bin for total percent cover range: enter '0' for <1%, enter '1' for 1 to 5%, and enter '2' for over 5%. | M31: Target is 5-25. For model, combine snags/nest boxes/pithy.
C32: =CONCATENATE(C29,", ",C30," and ",C31) -> 21, 22 and 23 | D32: Amount of snags/stumps, nest boxes/bundles, pithy tissue | E32: =IF((E29=2),2,(IF((E30>=2),2,(IF((E31=2),2,(IF((E29=1),1,(IF((E30=1.5),1,(IF((E30=1),1,(IF((E31=1),1,0))))))))))))) -> 1 | H32: Calculation cell to combine snags/stumps, nest boxes/bundles, and pithy tissue. | M32: Target is few or many.
C33: =CONCATENATE(C25," through ",C31) -> 18 through 23 | D33: Diversity of available nesting materials | E33: =((IF(E25>0.09,1,0))+(IF(E28>0,1,0))+(IF(E32>0,1,0)))/3 -> 0.6666666667 | H33: Calculation cell. Treat questions 8-10 separately and 11-13 combined (e.g., if a site has snags, nest boxes, or plants with pithy tissues, it counts towards the site diversity). | M33: Target is 1.0
B34: Management: Soil disturbance | C34: 24 | D34: Is the Map Unit tilled at some point during the year? | E34: 1 | H34: In Column E, enter '1' for Yes or a '0' for No. | M34: 0 is good
C35: 25 | D35: Is the Map Unit flood-irrigated at some point during the year? | E35: 0 | H35: In Column E, enter '1' for Yes or a '0' for No. | M35: 0 is good
C36: 26 | D36: Is plastic mulching used at the Map Unit? | E36: 1 | H36: In Column E, enter '1' for Yes or a '0' for No. | M36: 0 is good
C37: 27 | D37: Does road-grading or road-making occur on the Map Unit? | E37: 1 | H37: In Column E, enter '1' for Yes or a '0' for No. | M37: 0 is good
C38: 28 | D38: Total percent cover of the Map Unit that experiences any soil disturbance | E38: =MAX(F38:G38) -> 0.6 | F38: 0.3 | G38: 0.6 | H38: Enter the percent cover inclusive of all types of soil disturbance min and max values (0, 1-10, 10-30, 30-60, 60-90, 90-100) in Columns F and G. | M38: 0 is good
B39: Management: Vegetation/ground disturbance | C39: 29 | D39: Total cover of invasive noxious weeds | E39: =MAX(F39:G39) -> 0 | F39: 0 | G39: 0 | H39: Enter total percent cover combined for all invasive noxious weeds documented min and max values (0, 0-1, 1-5, 5-25, 25-50, 50-75, 75-95, 95-100) in Columns F and G. | M39: 0 is good
C40: 30 | D40: Number of invasive noxious weed species | E40: 5 | H40: Enter count in Column E. If there are 5 or more species, enter '5'. | M40: 0 is good
C41: 31 | D41: Percent of the Map Unit burned during the blooming season (Feb through Sept) | E41: =MAX(F41:G41) -> 0 | F41: 0 | G41: 0 | H41: Enter percent cover range min and max values (0, 1-10, 10-30, 30-60, 60-90, 90-100) in Columns F and G. | M41: 0 is good
C42: 32 | D42: Percent of the Map Unit mowed and/or hayed during the blooming season (Feb through Sept) | E42: =MAX(F42:G42) -> 0.1 | F42: 0.01 | G42: 0.1 | H42: Enter percent cover range min and max values (0, 1-10, 10-30, 30-60, 60-90, 90-100) in Columns F and G. | M42: 0 is good
C43: 33 | D43: Total percent of the Map Unit burned, mowed, or hayed during the blooming season | E43: =MAX(F43:G43) -> 0.3 | F43: 0.1 | G43: 0.3 | H43: Enter percent cover range min and max values (0, 1-10, 10-30, 30-60, 60-90, 90-100) in Columns F and G. | M43: 0 is good
A70: Map Unit Number | B70: Map Unit Information (2) | F70: Map Unit Acres: | H70: =F$14/43560 -> 1.147842057
A71: 2 | B71: Indicator | C71: Variable Number | D71: Variable | E71: Data | F71: Min of range | G71: Max of range | H71: Explanations and Definitions | O71: Notes
B72: Floral Resources | C72: 12 | D72: Number of different flowering plant species present during early-blooming (Feb-May) period | E72: -1 | F72: =BeeVegInputData!L159 -> 7 | G72: =+IF(E72=-1,F72,E72) -> 7 | H72: Enter nothing here. These values will be automatically entered in Columns F and G based on your entries to the BeeVegInputData worksheet. Enter data in to that worksheet (directions are at top of worksheet). | M72: If there are 5 or more species, enter '5'. If a species straddles the blooming periods, only count in a season if it straddles over half the season. Target is 5 or more. Note that if there are any invasive weed or plants 'not beneficial to pollinators' species on the list, they do not count towards the total. Nonnative species can count as 0.5 pts.
C73: 13 | D73: Number of different flowering plants present during mid-blooming (Jun-Jul) period | E73: -1 | F73: =BeeVegInputData!M159 -> 10 | G73: =+IF(E73=-1,F73,E73) -> 10
C74: 14 | D74: Number of different flowering plants present during late-blooming (Aug-Jan) period | E74: -1 | F74: =+BeeVegInputData!N159 -> 7 | G74: 7
C75: 15 | D75: Estimated surface area of flowering plants present during early-blooming (Feb-May) period | E75: -1 | F75: =(MAX(G75:H75))/(F$14) -> 0 | G75: =IF((BeeVegInputData!E159<=BeeVegInputData!I159),(BeeVegInputData!E159),(BeeVegInputData!I159)) -> 0 | H75: =IF((BeeVegInputData!E159>BeeVegInputData!I159),(BeeVegInputData!E159),(BeeVegInputData!I159)) -> 0 | I75: =+IF(E75=-1,F75,E75) -> 0 | J75: Enter nothing here. These values will automatically be entered from the BeeVegInputData worksheet. Enter data in to that worksheet. | M75: If using the BeeVegInputData worksheet, minimum and maximum values are pulled from this worksheet into Columns G and H (square meters); then the maximum of these two values is converted into a percentage of the total Map Unit in Column F.
C76: 16 | D76: Estimated surface area of flowering plants present during mid-blooming (Jun-Jul) period | E76: -1 | F76: =(MAX(G76:H76))/(F$14) -> 0 | G76: =IF((BeeVegInputData!F159<=BeeVegInputData!J159),(BeeVegInputData!F159),(BeeVegInputData!J159)) -> 0 | H76: =IF((BeeVegInputData!F159>BeeVegInputData!J159),(BeeVegInputData!F159),(BeeVegInputData!J159)) -> 0 | I76: =+IF(E76=-1,F76,E76) -> 0
C77: 17 | D77: Estimated surface area of flowering plants present during late-blooming (Aug-Jan) period | E77: -1 | F77: =(MAX(G77:H77))/(F$14) -> 0 | G77: =IF((BeeVegInputData!G159<=BeeVegInputData!K159),(BeeVegInputData!G159),(BeeVegInputData!K159)) -> 0 | H77: =IF((BeeVegInputData!G159>BeeVegInputData!K159),(BeeVegInputData!G159),(BeeVegInputData!K159)) -> 0 | I77: =+IF(E77=-1,F77,E77) -> 0
B78: Nesting Resources | C78: 18 | D78: Percent cover of friable bare ground present | E78: =IF(MAX(F78:G78)>=0.3,0.3,(AVERAGE(F78:G78))) -> 0.055 | F78: 0.01 | G78: 0.1 | H78: Enter percent cover range min and max values (0, 1-10, 11-20, 21-30, 31-100) in Columns F and G. | M78: Target is 10-30% ('30')
C79: 19 | D79: Number of rodent holes present | E79: 1 | H79: Enter count bins ('0' for none, '1' for few [1-10], and '2' for many [>10]) in Column E. | M79: Target is few or many. For model, combine rodent holes/bunchgrasses.
C80: 20 | D80: Amount of bunch grasses present | E80: 1 | H80: Enter percent cover bin in Column E: '0' for 0%, '1' for 1 to 5%, and '2' for greater than or equal to 5%. | M80: Target is 5-25. For model rodent holes/bunchgrasses are combined.
C81: =CONCATENATE(C79," and ",C80) -> 19 and 20 | D81: Amount of rodent holes and/or bunch grasses | E81: =IF((E79=2),2,(IF((E80=2),2,(IF((E79=1),1,(IF((E80=1),1,0))))))) -> 1 | H81: Calculation cell to combine rodent holes with bunch grasses. | M81: Target is few or many.
C82: 21 | D82: Amount of snags/stumps present | E82: 1 | H82: Enter count bins ('0' for none, '1' for few [1-10], and '2' for many [>10]) in Column E. | M82: Target is few or many. For model, combine snags/nest boxes/pithy.
C83: 22 | D83: Amount of nest boxes or nest bundles present | E83: 0 | H83: In Column E, enter count bins ('0' for none, '0.5' for few [1-3] that are close and/or not maintained, '1' for few [1-3]) that are >50 holes or maintained, '1.5' for few [1-3] that are both >50 holes and maintained, '2' for many [>3] that are both >50 holes and maintained. Give an extra point for multiple sized holes and/or small blocks w/less than 20 holes. Maximum is 3. | M83: Target many, maintained, etc.. For model, combine snags/nest boxes/pithy.
C84: 23 | D84: Amount of plants with pithy tissue present | E84: 1 | H84: Total for percent cover for all relevant species documented, then in Column E, enter appropriate bin for total percent cover range: enter '0' for <1%, enter '1' for 1 to 5%, and enter '2' for over 5%. | M84: Target is 5-25. For model, combine snags/nest boxes/pithy.
C85: =CONCATENATE(C82,", ",C83," and ",C84) -> 21, 22 and 23 | D85: Amount of snags/stumps, nest boxes/bundles, pithy tissue | E85: =IF((E82=2),2,(IF((E83>=2),2,(IF((E84=2),2,(IF((E82=1),1,(IF((E83=1.5),1,(IF((E83=1),1,(IF((E84=1),1,0))))))))))))) -> 1 | H85: Calculation cell to combine snags/stumps, nest boxes/bundles, and pithy tissue. | M85: Target is few or many.
C86: =CONCATENATE(C78," through ",C84) -> 18 through 23 | D86: Diversity of available nesting materials | E86: =((IF(E78>0.09,1,0))+(IF(E81>0,1,0))+(IF(E85>0,1,0)))/3 -> 0.6666666667 | H86: Calculation cell. Treat questions 8-10 separately and 11-13 combined (e.g., if a site has snags, nest boxes, or plants with pithy tissues, it counts towards the site diversity). | M86: Target is 1.0
B87: Management: Soil disturbance | C87: 24 | D87: Is the Map Unit tilled at some point during the year? | E87: 1 | H87: In Column E, enter '1' for Yes or a '0' for No. | M87: 0 is good
C88: 25 | D88: Is the Map Unit flood-irrigated at some point during the year? | E88: 0 | H88: In Column E, enter '1' for Yes or a '0' for No. | M88: 0 is good
C89: 26 | D89: Is plastic mulching used at the Map Unit? | E89: 1 | H89: In Column E, enter '1' for Yes or a '0' for No. | M89: 0 is good
C90: 27 | D90: Does road-grading or road-making occur on the Map Unit? | E90: 1 | H90: In Column E, enter '1' for Yes or a '0' for No. | M90: 0 is good
C91: 28 | D91: Total percent cover of the Map Unit that experiences any soil disturbance | E91: =MAX(F91:G91) -> 0.6 | F91: 0.3 | G91: 0.6 | H91: Enter the percent cover inclusive of all types of soil disturbance min and max values (0, 1-10, 10-30, 30-60, 60-90, 90-100) in Columns F and G. | M91: 0 is good
B92: Management: Vegetation/ground disturbance | C92: 29 | D92: Total cover of invasive noxious weeds | E92: =MAX(F92:G92) -> 0 | F92: 0 | G92: 0 | H92: Enter total percent cover combined for all invasive noxious weeds documented min and max values (0, 0-1, 1-5, 5-25, 25-50, 50-75, 75-95, 95-100) in Columns F and G. | M92: 0 is good
C93: 30 | D93: Number of invasive noxious weed species | E93: 5 | H93: Enter count in Column E. If there are 5 or more species, enter '5'. | M93: 0 is good
C94: 31 | D94: Percent of the Map Unit burned during the blooming season (Feb through Sept) | E94: =MAX(F94:G94) -> 0 | F94: 0 | G94: 0 | H94: Enter percent cover range min and max values (0, 1-10, 10-30, 30-60, 60-90, 90-100) in Columns F and G. | M94: 0 is good
C95: 32 | D95: Percent of the Map Unit mowed and/or hayed during the blooming season (Feb through Sept) | E95: =MAX(F95:G95) -> 0.1 | F95: 0.01 | G95: 0.1 | H95: Enter percent cover range min and max values (0, 1-10, 10-30, 30-60, 60-90, 90-100) in Columns F and G. | M95: 0 is good
C96: 33 | D96: Total percent of the Map Unit burned, mowed, or hayed during the blooming season | E96: =MAX(F96:G96) -> 0.3 | F96: 0.1 | G96: 0.3 | H96: Enter percent cover range min and max values (0, 1-10, 10-30, 30-60, 60-90, 90-100) in Columns F and G. | M96: 0 is good
A123: Map Unit Number | B123: Map Unit Information (3) | F123: Map Unit Acres: | H123: =G$14/43560 -> 6.887052342
A124: 3 | B124: Indicator | C124: Variable Number | D124: Variable | E124: Data | F124: Min of range | G124: Max of range | H124: Explanations and Definitions | O124: Notes
B125: Floral Resources | C125: 12 | D125: Number of different flowering plant species present during early-blooming (Feb-May) period | E125: -1 | F125: =BeeVegInputData!L237 -> 7 | G125: =+IF(E125=-1,F125,E125) -> 7 | H125: Enter nothing here. These values will be automatically entered in Columns F and G based on your entries to the BeeVegInputData worksheet. Enter data in to that worksheet (directions are at top of worksheet). | M125: If there are 5 or more species, enter '5'. If a species straddles the blooming periods, only count in a season if it straddles over half the season. Target is 5 or more. Note that if there are any invasive weed or plants 'not beneficial to pollinators' species on the list, they do not count towards the total. Nonnative species can count as 0.5 pts.
C126: 13 | D126: Number of different flowering plants present during mid-blooming (Jun-Jul) period | E126: -1 | F126: =BeeVegInputData!M237 -> 10 | G126: =+IF(E126=-1,F126,E126) -> 10
C127: 14 | D127: Number of different flowering plants present during late-blooming (Aug-Jan) period | E127: -1 | F127: =+BeeVegInputData!N237 -> 7 | G127: 7
C128: 15 | D128: Estimated surface area of flowering plants present during early-blooming (Feb-May) period | E128: -1 | F128: =(MAX(G128:H128))/(G$14) -> 0 | G128: =IF((BeeVegInputData!E237<=BeeVegInputData!I237),(BeeVegInputData!E237),(BeeVegInputData!I237)) -> 0 | H128: =IF((BeeVegInputData!E237>BeeVegInputData!I237),(BeeVegInputData!E237),(BeeVegInputData!I237)) -> 0 | I128: =+IF(E128=-1,F128,E128) -> 0 | J128: Enter nothing here. These values will automatically be entered from the BeeVegInputData worksheet. Enter data in to that worksheet. | M128: If using the BeeVegInputData worksheet, minimum and maximum values are pulled from this worksheet into Columns G and H (square meters); then the maximum of these two values is converted into a percentage of the total Map Unit in Column F.
C129: 16 | D129: Estimated surface area of flowering plants present during mid-blooming (Jun-Jul) period | E129: -1 | F129: =(MAX(G129:H129))/(G$14) -> 0 | G129: =IF((BeeVegInputData!F237<=BeeVegInputData!J237),(BeeVegInputData!F237),(BeeVegInputData!J237)) -> 0 | H129: =IF((BeeVegInputData!F237>BeeVegInputData!J237),(BeeVegInputData!F237),(BeeVegInputData!J237)) -> 0 | I129: =+IF(E129=-1,F129,E129) -> 0
C130: 17 | D130: Estimated surface area of flowering plants present during late-blooming (Aug-Jan) period | E130: -1 | F130: =(MAX(G130:H130))/(G$14) -> 0 | G130: =IF((BeeVegInputData!G237<=BeeVegInputData!K237),(BeeVegInputData!G237),(BeeVegInputData!K237)) -> 0 | H130: =IF((BeeVegInputData!G237>BeeVegInputData!K237),(BeeVegInputData!G237),(BeeVegInputData!K237)) -> 0 | I130: =+IF(E130=-1,F130,E130) -> 0
B131: Nesting Resources | C131: 18 | D131: Percent cover of friable bare ground present | E131: =IF(MAX(F131:G131)>=0.3,0.3,(AVERAGE(F131:G131))) -> 0.055 | F131: 0.01 | G131: 0.1 | H131: Enter percent cover range min and max values (0, 1-10, 11-20, 21-30, 31-100) in Columns F and G. | M131: Target is 10-30% ('30')
C132: 19 | D132: Number of rodent holes present | E132: 1 | H132: Enter count bins ('0' for none, '1' for few [1-10], and '2' for many [>10]) in Column E. | M132: Target is few or many. For model, combine rodent holes/bunchgrasses.
C133: 20 | D133: Amount of bunch grasses present | E133: 1 | H133: Enter percent cover bin in Column E: '0' for 0%, '1' for 1 to 5%, and '2' for greater than or equal to 5%. | M133: Target is 5-25. For model rodent holes/bunchgrasses are combined.
C134: =CONCATENATE(C132," and ",C133) -> 19 and 20 | D134: Amount of rodent holes and/or bunch grasses | E134: =IF((E132=2),2,(IF((E133=2),2,(IF((E132=1),1,(IF((E133=1),1,0))))))) -> 1 | H134: Calculation cell to combine rodent holes with bunch grasses. | M134: Target is few or many.
C135: 21 | D135: Amount of snags/stumps present | E135: 1 | H135: Enter count bins ('0' for none, '1' for few [1-10], and '2' for many [>10]) in Column E. | M135: Target is few or many. For model, combine snags/nest boxes/pithy.
C136: 22 | D136: Amount of nest boxes or nest bundles present | E136: 0 | H136: In Column E, enter count bins ('0' for none, '0.5' for few [1-3] that are close and/or not maintained, '1' for few [1-3]) that are >50 holes or maintained, '1.5' for few [1-3] that are both >50 holes and maintained, '2' for many [>3] that are both >50 holes and maintained. Give an extra point for multiple sized holes and/or small blocks w/less than 20 holes. Maximum is 3. | M136: Target many, maintained, etc.. For model, combine snags/nest boxes/pithy.
C137: 23 | D137: Amount of plants with pithy tissue present | E137: 1 | H137: Total for percent cover for all relevant species documented, then in Column E, enter appropriate bin for total percent cover range: enter '0' for <1%, enter '1' for 1 to 5%, and enter '2' for over 5%. | M137: Target is 5-25. For model, combine snags/nest boxes/pithy.
C138: =CONCATENATE(C135,", ",C136," and ",C137) -> 21, 22 and 23 | D138: Amount of snags/stumps, nest boxes/bundles, pithy tissue | E138: =IF((E135=2),2,(IF((E136>=2),2,(IF((E137=2),2,(IF((E135=1),1,(IF((E136=1.5),1,(IF((E136=1),1,(IF((E137=1),1,0))))))))))))) -> 1 | H138: Calculation cell to combine snags/stumps, nest boxes/bundles, and pithy tissue. | M138: Target is few or many.
C139: =CONCATENATE(C131," through ",C137) -> 18 through 23 | D139: Diversity of available nesting materials | E139: =((IF(E131>0.09,1,0))+(IF(E134>0,1,0))+(IF(E138>0,1,0)))/3 -> 0.6666666667 | H139: Calculation cell. Treat questions 8-10 separately and 11-13 combined (e.g., if a site has snags, nest boxes, or plants with pithy tissues, it counts towards the site diversity). | M139: Target is 1.0
B140: Management: Soil disturbance | C140: 24 | D140: Is the Map Unit tilled at some point during the year? | E140: 1 | H140: In Column E, enter '1' for Yes or a '0' for No. | M140: 0 is good
C141: 25 | D141: Is the Map Unit flood-irrigated at some point during the year? | E141: 0 | H141: In Column E, enter '1' for Yes or a '0' for No. | M141: 0 is good
C142: 26 | D142: Is plastic mulching used at the Map Unit? | E142: 1 | H142: In Column E, enter '1' for Yes or a '0' for No. | M142: 0 is good
C143: 27 | D143: Does road-grading or road-making occur on the Map Unit? | E143: 1 | H143: In Column E, enter '1' for Yes or a '0' for No. | M143: 0 is good
C144: 28 | D144: Total percent cover of the Map Unit that experiences any soil disturbance | E144: =MAX(F144:G144) -> 0.6 | F144: 0.3 | G144: 0.6 | H144: Enter the percent cover inclusive of all types of soil disturbance min and max values (0, 1-10, 10-30, 30-60, 60-90, 90-100) in Columns F and G. | M144: 0 is good
B145: Management: Vegetation/ground disturbance | C145: 29 | D145: Total cover of invasive noxious weeds | E145: =MAX(F145:G145) -> 0 | F145: 0 | G145: 0 | H145: Enter total percent cover combined for all invasive noxious weeds documented min and max values (0, 0-1, 1-5, 5-25, 25-50, 50-75, 75-95, 95-100) in Columns F and G. | M145: 0 is good
C146: 30 | D146: Number of invasive noxious weed species | E146: 5 | H146: Enter count in Column E. If there are 5 or more species, enter '5'. | M146: 0 is good
C147: 31 | D147: Percent of the Map Unit burned during the blooming season (Feb through Sept) | E147: =MAX(F147:G147) -> 0 | F147: 0 | G147: 0 | H147: Enter percent cover range min and max values (0, 1-10, 10-30, 30-60, 60-90, 90-100) in Columns F and G. | M147: 0 is good
C148: 32 | D148: Percent of the Map Unit mowed and/or hayed during the blooming season (Feb through Sept) | E148: =MAX(F148:G148) -> 0.1 | F148: 0.01 | G148: 0.1 | H148: Enter percent cover range min and max values (0, 1-10, 10-30, 30-60, 60-90, 90-100) in Columns F and G. | M148: 0 is good
C149: 33 | D149: Total percent of the Map Unit burned, mowed, or hayed during the blooming season | E149: =MAX(F149:G149) -> 0.3 | F149: 0.1 | G149: 0.3 | H149: Enter percent cover range min and max values (0, 1-10, 10-30, 30-60, 60-90, 90-100) in Columns F and G. | M149: 0 is good
A176: Map Unit Number | B176: Map Unit Information (4) | F176: Map Unit Acres: | H176: =H$14/43560 -> 0.4591368228
A177: 4 | B177: Indicator | C177: Variable Number | D177: Variable | E177: Data | F177: Min of range | G177: Max of range | H177: Explanations and Definitions | O177: Notes
B178: Floral Resources | C178: 12 | D178: Number of different flowering plant species present during early-blooming (Feb-May) period | E178: -1 | F178: =BeeVegInputData!L315 -> 7 | G178: =+IF(E178=-1,F178,E178) -> 7 | H178: Enter nothing here. These values will be automatically entered in Columns F and G based on your entries to the BeeVegInputData worksheet. Enter data in to that worksheet (directions are at top of worksheet). | M178: If there are 5 or more species, enter '5'. If a species straddles the blooming periods, only count in a season if it straddles over half the season. Target is 5 or more. Note that if there are any invasive weed or plants 'not beneficial to pollinators' species on the list, they do not count towards the total. Nonnative species can count as 0.5 pts.
C179: 13 | D179: Number of different flowering plants present during mid-blooming (Jun-Jul) period | E179: -1 | F179: =BeeVegInputData!M315 -> 10 | G179: =+IF(E179=-1,F179,E179) -> 10
C180: 14 | D180: Number of different flowering plants present during late-blooming (Aug-Jan) period | E180: -1 | F180: =+BeeVegInputData!N315 -> 7 | G180: 7
C181: 15 | D181: Estimated surface area of flowering plants present during early-blooming (Feb-May) period | E181: -1 | F181: =(MAX(G181:H181))/(H$14) -> 0 | G181: =IF((BeeVegInputData!E315<=BeeVegInputData!I315),(BeeVegInputData!E315),(BeeVegInputData!I315)) -> 0 | H181: =IF((BeeVegInputData!E315>BeeVegInputData!I315),(BeeVegInputData!E315),(BeeVegInputData!I315)) -> 0 | I181: =+IF(E181=-1,F181,E181) -> 0 | J181: Enter nothing here. These values will automatically be entered from the BeeVegInputData worksheet. Enter data in to that worksheet. | M181: If using the BeeVegInputData worksheet, minimum and maximum values are pulled from this worksheet into Columns G and H (square meters); then the maximum of these two values is converted into a percentage of the total Map Unit in Column F.
C182: 16 | D182: Estimated surface area of flowering plants present during mid-blooming (Jun-Jul) period | E182: -1 | F182: =(MAX(G182:H182))/(H$14) -> 0 | G182: =IF((BeeVegInputData!F315<=BeeVegInputData!J315),(BeeVegInputData!F315),(BeeVegInputData!J315)) -> 0 | H182: =IF((BeeVegInputData!F315>BeeVegInputData!J315),(BeeVegInputData!F315),(BeeVegInputData!J315)) -> 0 | I182: =+IF(E182=-1,F182,E182) -> 0
C183: 17 | D183: Estimated surface area of flowering plants present during late-blooming (Aug-Jan) period | E183: -1 | F183: =(MAX(G183:H183))/(H$14) -> 0 | G183: =IF((BeeVegInputData!G315<=BeeVegInputData!K315),(BeeVegInputData!G315),(BeeVegInputData!K315)) -> 0 | H183: =IF((BeeVegInputData!G315>BeeVegInputData!K315),(BeeVegInputData!G315),(BeeVegInputData!K315)) -> 0 | I183: =+IF(E183=-1,F183,E183) -> 0
B184: Nesting Resources | C184: 18 | D184: Percent cover of friable bare ground present | E184: =IF(MAX(F184:G184)>=0.3,0.3,(AVERAGE(F184:G184))) -> 0.055 | F184: 0.01 | G184: 0.1 | H184: Enter percent cover range min and max values (0, 1-10, 11-20, 21-30, 31-100) in Columns F and G. | M184: Target is 10-30% ('30')
C185: 19 | D185: Number of rodent holes present | E185: 1 | H185: Enter count bins ('0' for none, '1' for few [1-10], and '2' for many [>10]) in Column E. | M185: Target is few or many. For model, combine rodent holes/bunchgrasses.
C186: 20 | D186: Amount of bunch grasses present | E186: 1 | H186: Enter percent cover bin in Column E: '0' for 0%, '1' for 1 to 5%, and '2' for greater than or equal to 5%. | M186: Target is 5-25. For model rodent holes/bunchgrasses are combined.
C187: =CONCATENATE(C185," and ",C186) -> 19 and 20 | D187: Amount of rodent holes and/or bunch grasses | E187: =IF((E185=2),2,(IF((E186=2),2,(IF((E185=1),1,(IF((E186=1),1,0))))))) -> 1 | H187: Calculation cell to combine rodent holes with bunch grasses. | M187: Target is few or many.
C188: 21 | D188: Amount of snags/stumps present | E188: 1 | H188: Enter count bins ('0' for none, '1' for few [1-10], and '2' for many [>10]) in Column E. | M188: Target is few or many. For model, combine snags/nest boxes/pithy.
C189: 22 | D189: Amount of nest boxes or nest bundles present | E189: 0 | H189: In Column E, enter count bins ('0' for none, '0.5' for few [1-3] that are close and/or not maintained, '1' for few [1-3]) that are >50 holes or maintained, '1.5' for few [1-3] that are both >50 holes and maintained, '2' for many [>3] that are both >50 holes and maintained. Give an extra point for multiple sized holes and/or small blocks w/less than 20 holes. Maximum is 3. | M189: Target many, maintained, etc.. For model, combine snags/nest boxes/pithy.
C190: 23 | D190: Amount of plants with pithy tissue present | E190: 1 | H190: Total for percent cover for all relevant species documented, then in Column E, enter appropriate bin for total percent cover range: enter '0' for <1%, enter '1' for 1 to 5%, and enter '2' for over 5%. | M190: Target is 5-25. For model, combine snags/nest boxes/pithy.
C191: =CONCATENATE(C188,", ",C189," and ",C190) -> 21, 22 and 23 | D191: Amount of snags/stumps, nest boxes/bundles, pithy tissue | E191: =IF((E188=2),2,(IF((E189>=2),2,(IF((E190=2),2,(IF((E188=1),1,(IF((E189=1.5),1,(IF((E189=1),1,(IF((E190=1),1,0))))))))))))) -> 1 | H191: Calculation cell to combine snags/stumps, nest boxes/bundles, and pithy tissue. | M191: Target is few or many.
C192: =CONCATENATE(C184," through ",C190) -> 18 through 23 | D192: Diversity of available nesting materials | E192: =((IF(E184>0.09,1,0))+(IF(E187>0,1,0))+(IF(E191>0,1,0)))/3 -> 0.6666666667 | H192: Calculation cell. Treat questions 8-10 separately and 11-13 combined (e.g., if a site has snags, nest boxes, or plants with pithy tissues, it counts towards the site diversity). | M192: Target is 1.0
B193: Management: Soil disturbance | C193: 24 | D193: Is the Map Unit tilled at some point during the year? | E193: 1 | H193: In Column E, enter '1' for Yes or a '0' for No. | M193: 0 is good
C194: 25 | D194: Is the Map Unit flood-irrigated at some point during the year? | E194: 0 | H194: In Column E, enter '1' for Yes or a '0' for No. | M194: 0 is good
C195: 26 | D195: Is plastic mulching used at the Map Unit? | E195: 1 | H195: In Column E, enter '1' for Yes or a '0' for No. | M195: 0 is good
C196: 27 | D196: Does road-grading or road-making occur on the Map Unit? | E196: 1 | H196: In Column E, enter '1' for Yes or a '0' for No. | M196: 0 is good
C197: 28 | D197: Total percent cover of the Map Unit that experiences any soil disturbance | E197: =MAX(F197:G197) -> 0.6 | F197: 0.3 | G197: 0.6 | H197: Enter the percent cover inclusive of all types of soil disturbance min and max values (0, 1-10, 10-30, 30-60, 60-90, 90-100) in Columns F and G. | M197: 0 is good
B198: Management: Vegetation/ground disturbance | C198: 29 | D198: Total cover of invasive noxious weeds | E198: =MAX(F198:G198) -> 0 | F198: 0 | G198: 0 | H198: Enter total percent cover combined for all invasive noxious weeds documented min and max values (0, 0-1, 1-5, 5-25, 25-50, 50-75, 75-95, 95-100) in Columns F and G. | M198: 0 is good
C199: 30 | D199: Number of invasive noxious weed species | E199: 5 | H199: Enter count in Column E. If there are 5 or more species, enter '5'. | M199: 0 is good
C200: 31 | D200: Percent of the Map Unit burned during the blooming season (Feb through Sept) | E200: =MAX(F200:G200) -> 0 | F200: 0 | G200: 0 | H200: Enter percent cover range min and max values (0, 1-10, 10-30, 30-60, 60-90, 90-100) in Columns F and G. | M200: 0 is good
C201: 32 | D201: Percent of the Map Unit mowed and/or hayed during the blooming season (Feb through Sept) | E201: =MAX(F201:G201) -> 0.1 | F201: 0.01 | G201: 0.1 | H201: Enter percent cover range min and max values (0, 1-10, 10-30, 30-60, 60-90, 90-100) in Columns F and G. | M201: 0 is good
C202: 33 | D202: Total percent of the Map Unit burned, mowed, or hayed during the blooming season | E202: =MAX(F202:G202) -> 0.3 | F202: 0.1 | G202: 0.3 | H202: Enter percent cover range min and max values (0, 1-10, 10-30, 30-60, 60-90, 90-100) in Columns F and G. | M202: 0 is good
A229: Map Unit Number | B229: Map Unit Information (5) | F229: Map Unit Acres: | H229: =I$14/43560 -> 0.4591368228
A230: 5 | B230: Indicator | C230: Variable Number | D230: Variable | E230: Data | F230: Min of range | G230: Max of range | H230: Explanations and Definitions | O230: Notes
B231: Floral Resources | C231: 12 | D231: Number of different flowering plant species present during early-blooming (Feb-May) period | E231: -1 | F231: =BeeVegInputData!L393 -> 7 | G231: =+IF(E231=-1,F231,E231) -> 7 | H231: Enter nothing here. These values will be automatically entered in Columns F and G based on your entries to the BeeVegInputData worksheet. Enter data in to that worksheet (directions are at top of worksheet). | M231: If there are 5 or more species, enter '5'. If a species straddles the blooming periods, only count in a season if it straddles over half the season. Target is 5 or more. Note that if there are any invasive weed or plants 'not beneficial to pollinators' species on the list, they do not count towards the total. Nonnative species can count as 0.5 pts.
C232: 13 | D232: Number of different flowering plants present during mid-blooming (Jun-Jul) period | E232: -1 | F232: =BeeVegInputData!M393 -> 10 | G232: =+IF(E232=-1,F232,E232) -> 10
C233: 14 | D233: Number of different flowering plants present during late-blooming (Aug-Jan) period | E233: -1 | F233: =+BeeVegInputData!N393 -> 7 | G233: 7
C234: 15 | D234: Estimated surface area of flowering plants present during early-blooming (Feb-May) period | E234: -1 | F234: =(MAX(G234:H234))/(I$14) -> 0 | G234: =IF((BeeVegInputData!E393<=BeeVegInputData!I393),(BeeVegInputData!E393),(BeeVegInputData!I393)) -> 0 | H234: =IF((BeeVegInputData!E393>BeeVegInputData!I393),(BeeVegInputData!E393),(BeeVegInputData!I393)) -> 0 | I234: =+IF(E234=-1,F234,E234) -> 0 | J234: Enter nothing here. These values will automatically be entered from the BeeVegInputData worksheet. Enter data in to that worksheet. | M234: If using the BeeVegInputData worksheet, minimum and maximum values are pulled from this worksheet into Columns G and H (square meters); then the maximum of these two values is converted into a percentage of the total Map Unit in Column F.
C235: 16 | D235: Estimated surface area of flowering plants present during mid-blooming (Jun-Jul) period | E235: -1 | F235: =(MAX(G235:H235))/(I$14) -> 0 | G235: =IF((BeeVegInputData!F393<=BeeVegInputData!J393),(BeeVegInputData!F393),(BeeVegInputData!J393)) -> 0 | H235: =IF((BeeVegInputData!F393>BeeVegInputData!J393),(BeeVegInputData!F393),(BeeVegInputData!J393)) -> 0 | I235: =+IF(E235=-1,F235,E235) -> 0
C236: 17 | D236: Estimated surface area of flowering plants present during late-blooming (Aug-Jan) period | E236: -1 | F236: =(MAX(G236:H236))/(I$14) -> 0 | G236: =IF((BeeVegInputData!G393<=BeeVegInputData!K393),(BeeVegInputData!G393),(BeeVegInputData!K393)) -> 0 | H236: =IF((BeeVegInputData!G393>BeeVegInputData!K393),(BeeVegInputData!G393),(BeeVegInputData!K393)) -> 0 | I236: =+IF(E236=-1,F236,E236) -> 0
B237: Nesting Resources | C237: 18 | D237: Percent cover of friable bare ground present | E237: =IF(MAX(F237:G237)>=0.3,0.3,(AVERAGE(F237:G237))) -> 0.055 | F237: 0.01 | G237: 0.1 | H237: Enter percent cover range min and max values (0, 1-10, 11-20, 21-30, 31-100) in Columns F and G. | M237: Target is 10-30% ('30')
C238: 19 | D238: Number of rodent holes present | E238: 1 | H238: Enter count bins ('0' for none, '1' for few [1-10], and '2' for many [>10]) in Column E. | M238: Target is few or many. For model, combine rodent holes/bunchgrasses.
C239: 20 | D239: Amount of bunch grasses present | E239: 1 | H239: Enter percent cover bin in Column E: '0' for 0%, '1' for 1 to 5%, and '2' for greater than or equal to 5%. | M239: Target is 5-25. For model rodent holes/bunchgrasses are combined.
C240: =CONCATENATE(C238," and ",C239) -> 19 and 20 | D240: Amount of rodent holes and/or bunch grasses | E240: =IF((E238=2),2,(IF((E239=2),2,(IF((E238=1),1,(IF((E239=1),1,0))))))) -> 1 | H240: Calculation cell to combine rodent holes with bunch grasses. | M240: Target is few or many.
C241: 21 | D241: Amount of snags/stumps present | E241: 1 | H241: Enter count bins ('0' for none, '1' for few [1-10], and '2' for many [>10]) in Column E. | M241: Target is few or many. For model, combine snags/nest boxes/pithy.
C242: 22 | D242: Amount of nest boxes or nest bundles present | E242: 0 | H242: In Column E, enter count bins ('0' for none, '0.5' for few [1-3] that are close and/or not maintained, '1' for few [1-3]) that are >50 holes or maintained, '1.5' for few [1-3] that are both >50 holes and maintained, '2' for many [>3] that are both >50 holes and maintained. Give an extra point for multiple sized holes and/or small blocks w/less than 20 holes. Maximum is 3. | M242: Target many, maintained, etc.. For model, combine snags/nest boxes/pithy.
C243: 23 | D243: Amount of plants with pithy tissue present | E243: 1 | H243: Total for percent cover for all relevant species documented, then in Column E, enter appropriate bin for total percent cover range: enter '0' for <1%, enter '1' for 1 to 5%, and enter '2' for over 5%. | M243: Target is 5-25. For model, combine snags/nest boxes/pithy.
C244: =CONCATENATE(C241,", ",C242," and ",C243) -> 21, 22 and 23 | D244: Amount of snags/stumps, nest boxes/bundles, pithy tissue | E244: =IF((E241=2),2,(IF((E242>=2),2,(IF((E243=2),2,(IF((E241=1),1,(IF((E242=1.5),1,(IF((E242=1),1,(IF((E243=1),1,0))))))))))))) -> 1 | H244: Calculation cell to combine snags/stumps, nest boxes/bundles, and pithy tissue. | M244: Target is few or many.
C245: =CONCATENATE(C237," through ",C243) -> 18 through 23 | D245: Diversity of available nesting materials | E245: =((IF(E237>0.09,1,0))+(IF(E240>0,1,0))+(IF(E244>0,1,0)))/3 -> 0.6666666667 | H245: Calculation cell. Treat questions 8-10 separately and 11-13 combined (e.g., if a site has snags, nest boxes, or plants with pithy tissues, it counts towards the site diversity). | M245: Target is 1.0
B246: Management: Soil disturbance | C246: 24 | D246: Is the Map Unit tilled at some point during the year? | E246: 1 | H246: In Column E, enter '1' for Yes or a '0' for No. | M246: 0 is good
C247: 25 | D247: Is the Map Unit flood-irrigated at some point during the year? | E247: 0 | H247: In Column E, enter '1' for Yes or a '0' for No. | M247: 0 is good
C248: 26 | D248: Is plastic mulching used at the Map Unit? | E248: 1 | H248: In Column E, enter '1' for Yes or a '0' for No. | M248: 0 is good
C249: 27 | D249: Does road-grading or road-making occur on the Map Unit? | E249: 1 | H249: In Column E, enter '1' for Yes or a '0' for No. | M249: 0 is good
C250: 28 | D250: Total percent cover of the Map Unit that experiences any soil disturbance | E250: =MAX(F250:G250) -> 0.6 | F250: 0.3 | G250: 0.6 | H250: Enter the percent cover inclusive of all types of soil disturbance min and max values (0, 1-10, 10-30, 30-60, 60-90, 90-100) in Columns F and G. | M250: 0 is good
B251: Management: Vegetation/ground disturbance | C251: 29 | D251: Total cover of invasive noxious weeds | E251: =MAX(F251:G251) -> 0 | F251: 0 | G251: 0 | H251: Enter total percent cover combined for all invasive noxious weeds documented min and max values (0, 0-1, 1-5, 5-25, 25-50, 50-75, 75-95, 95-100) in Columns F and G. | M251: 0 is good
C252: 30 | D252: Number of invasive noxious weed species | E252: 5 | H252: Enter count in Column E. If there are 5 or more species, enter '5'. | M252: 0 is good
C253: 31 | D253: Percent of the Map Unit burned during the blooming season (Feb through Sept) | E253: =MAX(F253:G253) -> 0 | F253: 0 | G253: 0 | H253: Enter percent cover range min and max values (0, 1-10, 10-30, 30-60, 60-90, 90-100) in Columns F and G. | M253: 0 is good
C254: 32 | D254: Percent of the Map Unit mowed and/or hayed during the blooming season (Feb through Sept) | E254: =MAX(F254:G254) -> 0.1 | F254: 0.01 | G254: 0.1 | H254: Enter percent cover range min and max values (0, 1-10, 10-30, 30-60, 60-90, 90-100) in Columns F and G. | M254: 0 is good
C255: 33 | D255: Total percent of the Map Unit burned, mowed, or hayed during the blooming season | E255: =MAX(F255:G255) -> 0.3 | F255: 0.1 | G255: 0.3 | H255: Enter percent cover range min and max values (0, 1-10, 10-30, 30-60, 60-90, 90-100) in Columns F and G. | M255: 0 is good
A282: Map Unit Number | B282: Map Unit Information (6) | F282: Map Unit Acres: | H282: =J$14/43560 -> 0.4591368228
A283: 6 | B283: Indicator | C283: Variable Number | D283: Variable | E283: Data | F283: Min of range | G283: Max of range | H283: Explanations and Definitions | O283: Notes
B284: Floral Resources | C284: 12 | D284: Number of different flowering plant species present during early-blooming (Feb-May) period | E284: -1 | F284: =BeeVegInputData!L471 -> 7 | G284: =+IF(E284=-1,F284,E284) -> 7 | H284: Enter nothing here. These values will be automatically entered in Columns F and G based on your entries to the BeeVegInputData worksheet. Enter data in to that worksheet (directions are at top of worksheet). | M284: If there are 5 or more species, enter '5'. If a species straddles the blooming periods, only count in a season if it straddles over half the season. Target is 5 or more. Note that if there are any invasive weed or plants 'not beneficial to pollinators' species on the list, they do not count towards the total. Nonnative species can count as 0.5 pts.
C285: 13 | D285: Number of different flowering plants present during mid-blooming (Jun-Jul) period | E285: -1 | F285: =BeeVegInputData!M471 -> 10 | G285: =+IF(E285=-1,F285,E285) -> 10
C286: 14 | D286: Number of different flowering plants present during late-blooming (Aug-Jan) period | E286: -1 | F286: =+BeeVegInputData!N471 -> 7 | G286: 7
C287: 15 | D287: Estimated surface area of flowering plants present during early-blooming (Feb-May) period | E287: -1 | F287: =(MAX(G287:H287))/(J$14) -> 0 | G287: =IF((BeeVegInputData!E471<=BeeVegInputData!I471),(BeeVegInputData!E471),(BeeVegInputData!I471)) -> 0 | H287: =IF((BeeVegInputData!E471>BeeVegInputData!I471),(BeeVegInputData!E471),(BeeVegInputData!I471)) -> 0 | I287: =+IF(E287=-1,F287,E287) -> 0 | J287: Enter nothing here. These values will automatically be entered from the BeeVegInputData worksheet. Enter data in to that worksheet. | M287: If using the BeeVegInputData worksheet, minimum and maximum values are pulled from this worksheet into Columns G and H (square meters); then the maximum of these two values is converted into a percentage of the total Map Unit in Column F.
C288: 16 | D288: Estimated surface area of flowering plants present during mid-blooming (Jun-Jul) period | E288: -1 | F288: =(MAX(G288:H288))/(J$14) -> 0 | G288: =IF((BeeVegInputData!F471<=BeeVegInputData!J471),(BeeVegInputData!F471),(BeeVegInputData!J471)) -> 0 | H288: =IF((BeeVegInputData!F471>BeeVegInputData!J471),(BeeVegInputData!F471),(BeeVegInputData!J471)) -> 0 | I288: =+IF(E288=-1,F288,E288) -> 0
C289: 17 | D289: Estimated surface area of flowering plants present during late-blooming (Aug-Jan) period | E289: -1 | F289: =(MAX(G289:H289))/(J$14) -> 0 | G289: =IF((BeeVegInputData!G471<=BeeVegInputData!K471),(BeeVegInputData!G471),(BeeVegInputData!K471)) -> 0 | H289: =IF((BeeVegInputData!G471>BeeVegInputData!K471),(BeeVegInputData!G471),(BeeVegInputData!K471)) -> 0 | I289: =+IF(E289=-1,F289,E289) -> 0
B290: Nesting Resources | C290: 18 | D290: Percent cover of friable bare ground present | E290: =IF(MAX(F290:G290)>=0.3,0.3,(AVERAGE(F290:G290))) -> 0.055 | F290: 0.01 | G290: 0.1 | H290: Enter percent cover range min and max values (0, 1-10, 11-20, 21-30, 31-100) in Columns F and G. | M290: Target is 10-30% ('30')
C291: 19 | D291: Number of rodent holes present | E291: 1 | H291: Enter count bins ('0' for none, '1' for few [1-10], and '2' for many [>10]) in Column E. | M291: Target is few or many. For model, combine rodent holes/bunchgrasses.
C292: 20 | D292: Amount of bunch grasses present | E292: 1 | H292: Enter percent cover bin in Column E: '0' for 0%, '1' for 1 to 5%, and '2' for greater than or equal to 5%. | M292: Target is 5-25. For model rodent holes/bunchgrasses are combined.
C293: =CONCATENATE(C291," and ",C292) -> 19 and 20 | D293: Amount of rodent holes and/or bunch grasses | E293: =IF((E291=2),2,(IF((E292=2),2,(IF((E291=1),1,(IF((E292=1),1,0))))))) -> 1 | H293: Calculation cell to combine rodent holes with bunch grasses. | M293: Target is few or many.
C294: 21 | D294: Amount of snags/stumps present | E294: 1 | H294: Enter count bins ('0' for none, '1' for few [1-10], and '2' for many [>10]) in Column E. | M294: Target is few or many. For model, combine snags/nest boxes/pithy.
C295: 22 | D295: Amount of nest boxes or nest bundles present | E295: 0 | H295: In Column E, enter count bins ('0' for none, '0.5' for few [1-3] that are close and/or not maintained, '1' for few [1-3]) that are >50 holes or maintained, '1.5' for few [1-3] that are both >50 holes and maintained, '2' for many [>3] that are both >50 holes and maintained. Give an extra point for multiple sized holes and/or small blocks w/less than 20 holes. Maximum is 3. | M295: Target many, maintained, etc.. For model, combine snags/nest boxes/pithy.
C296: 23 | D296: Amount of plants with pithy tissue present | E296: 1 | H296: Total for percent cover for all relevant species documented, then in Column E, enter appropriate bin for total percent cover range: enter '0' for <1%, enter '1' for 1 to 5%, and enter '2' for over 5%. | M296: Target is 5-25. For model, combine snags/nest boxes/pithy.
C297: =CONCATENATE(C294,", ",C295," and ",C296) -> 21, 22 and 23 | D297: Amount of snags/stumps, nest boxes/bundles, pithy tissue | E297: =IF((E294=2),2,(IF((E295>=2),2,(IF((E296=2),2,(IF((E294=1),1,(IF((E295=1.5),1,(IF((E295=1),1,(IF((E296=1),1,0))))))))))))) -> 1 | H297: Calculation cell to combine snags/stumps, nest boxes/bundles, and pithy tissue. | M297: Target is few or many.
C298: =CONCATENATE(C290," through ",C296) -> 18 through 23 | D298: Diversity of available nesting materials | E298: =((IF(E290>0.09,1,0))+(IF(E293>0,1,0))+(IF(E297>0,1,0)))/3 -> 0.6666666667 | H298: Calculation cell. Treat questions 8-10 separately and 11-13 combined (e.g., if a site has snags, nest boxes, or plants with pithy tissues, it counts towards the site diversity). | M298: Target is 1.0
B299: Management: Soil disturbance | C299: 24 | D299: Is the Map Unit tilled at some point during the year? | E299: 1 | H299: In Column E, enter '1' for Yes or a '0' for No. | M299: 0 is good
C300: 25 | D300: Is the Map Unit flood-irrigated at some point during the year? | E300: 0 | H300: In Column E, enter '1' for Yes or a '0' for No. | M300: 0 is good
C301: 26 | D301: Is plastic mulching used at the Map Unit? | E301: 1 | H301: In Column E, enter '1' for Yes or a '0' for No. | M301: 0 is good
C302: 27 | D302: Does road-grading or road-making occur on the Map Unit? | E302: 1 | H302: In Column E, enter '1' for Yes or a '0' for No. | M302: 0 is good
C303: 28 | D303: Total percent cover of the Map Unit that experiences any soil disturbance | E303: =MAX(F303:G303) -> 0.6 | F303: 0.3 | G303: 0.6 | H303: Enter the percent cover inclusive of all types of soil disturbance min and max values (0, 1-10, 10-30, 30-60, 60-90, 90-100) in Columns F and G. | M303: 0 is good
B304: Management: Vegetation/ground disturbance | C304: 29 | D304: Total cover of invasive noxious weeds | E304: =MAX(F304:G304) -> 0 | F304: 0 | G304: 0 | H304: Enter total percent cover combined for all invasive noxious weeds documented min and max values (0, 0-1, 1-5, 5-25, 25-50, 50-75, 75-95, 95-100) in Columns F and G. | M304: 0 is good
C305: 30 | D305: Number of invasive noxious weed species | E305: 5 | H305: Enter count in Column E. If there are 5 or more species, enter '5'. | M305: 0 is good
C306: 31 | D306: Percent of the Map Unit burned during the blooming season (Feb through Sept) | E306: =MAX(F306:G306) -> 0 | F306: 0 | G306: 0 | H306: Enter percent cover range min and max values (0, 1-10, 10-30, 30-60, 60-90, 90-100) in Columns F and G. | M306: 0 is good
C307: 32 | D307: Percent of the Map Unit mowed and/or hayed during the blooming season (Feb through Sept) | E307: =MAX(F307:G307) -> 0.1 | F307: 0.01 | G307: 0.1 | H307: Enter percent cover range min and max values (0, 1-10, 10-30, 30-60, 60-90, 90-100) in Columns F and G. | M307: 0 is good
C308: 33 | D308: Total percent of the Map Unit burned, mowed, or hayed during the blooming season | E308: =MAX(F308:G308) -> 0.3 | F308: 0.1 | G308: 0.3 | H308: Enter percent cover range min and max values (0, 1-10, 10-30, 30-60, 60-90, 90-100) in Columns F and G. | M308: 0 is good
A335: Map Unit Number | B335: Map Unit Information (7) | F335: Map Unit Acres: | H335: =K$14/43560 -> 0.4591368228
A336: 7 | B336: Indicator | C336: Variable Number | D336: Variable | E336: Data | F336: Min of range | G336: Max of range | H336: Explanations and Definitions | O336: Notes
B337: Floral Resources | C337: 12 | D337: Number of different flowering plant species present during early-blooming (Feb-May) period | E337: -1 | F337: =BeeVegInputData!L549 -> 7 | G337: =+IF(E337=-1,F337,E337) -> 7 | H337: Enter nothing here. These values will be automatically entered in Columns F and G based on your entries to the BeeVegInputData worksheet. Enter data in to that worksheet (directions are at top of worksheet). | M337: If there are 5 or more species, enter '5'. If a species straddles the blooming periods, only count in a season if it straddles over half the season. Target is 5 or more. Note that if there are any invasive weed or plants 'not beneficial to pollinators' species on the list, they do not count towards the total. Nonnative species can count as 0.5 pts.
C338: 13 | D338: Number of different flowering plants present during mid-blooming (Jun-Jul) period | E338: -1 | F338: =BeeVegInputData!M549 -> 10 | G338: =+IF(E338=-1,F338,E338) -> 10
C339: 14 | D339: Number of different flowering plants present during late-blooming (Aug-Jan) period | E339: -1 | F339: =+BeeVegInputData!N549 -> 7 | G339: 7
C340: 15 | D340: Estimated surface area of flowering plants present during early-blooming (Feb-May) period | E340: -1 | F340: =(MAX(G340:H340))/(K$14) -> 0 | G340: =IF((BeeVegInputData!E549<=BeeVegInputData!I549),(BeeVegInputData!E549),(BeeVegInputData!I549)) -> 0 | H340: =IF((BeeVegInputData!E549>BeeVegInputData!I549),(BeeVegInputData!E549),(BeeVegInputData!I549)) -> 0 | I340: =+IF(E340=-1,F340,E340) -> 0 | J340: Enter nothing here. These values will automatically be entered from the BeeVegInputData worksheet. Enter data in to that worksheet. | M340: If using the BeeVegInputData worksheet, minimum and maximum values are pulled from this worksheet into Columns G and H (square meters); then the maximum of these two values is converted into a percentage of the total Map Unit in Column F.
C341: 16 | D341: Estimated surface area of flowering plants present during mid-blooming (Jun-Jul) period | E341: -1 | F341: =(MAX(G341:H341))/(K$14) -> 0 | G341: =IF((BeeVegInputData!F549<=BeeVegInputData!J549),(BeeVegInputData!F549),(BeeVegInputData!J549)) -> 0 | H341: =IF((BeeVegInputData!F549>BeeVegInputData!J549),(BeeVegInputData!F549),(BeeVegInputData!J549)) -> 0 | I341: =+IF(E341=-1,F341,E341) -> 0
C342: 17 | D342: Estimated surface area of flowering plants present during late-blooming (Aug-Jan) period | E342: -1 | F342: =(MAX(G342:H342))/(K$14) -> 0 | G342: =IF((BeeVegInputData!G549<=BeeVegInputData!K549),(BeeVegInputData!G549),(BeeVegInputData!K549)) -> 0 | H342: =IF((BeeVegInputData!G549>BeeVegInputData!K549),(BeeVegInputData!G549),(BeeVegInputData!K549)) -> 0 | I342: =+IF(E342=-1,F342,E342) -> 0
B343: Nesting Resources | C343: 18 | D343: Percent cover of friable bare ground present | E343: =IF(MAX(F343:G343)>=0.3,0.3,(AVERAGE(F343:G343))) -> 0.055 | F343: 0.01 | G343: 0.1 | H343: Enter percent cover range min and max values (0, 1-10, 11-20, 21-30, 31-100) in Columns F and G. | M343: Target is 10-30% ('30')
C344: 19 | D344: Number of rodent holes present | E344: 1 | H344: Enter count bins ('0' for none, '1' for few [1-10], and '2' for many [>10]) in Column E. | M344: Target is few or many. For model, combine rodent holes/bunchgrasses.
C345: 20 | D345: Amount of bunch grasses present | E345: 1 | H345: Enter percent cover bin in Column E: '0' for 0%, '1' for 1 to 5%, and '2' for greater than or equal to 5%. | M345: Target is 5-25. For model rodent holes/bunchgrasses are combined.
C346: =CONCATENATE(C344," and ",C345) -> 19 and 20 | D346: Amount of rodent holes and/or bunch grasses | E346: =IF((E344=2),2,(IF((E345=2),2,(IF((E344=1),1,(IF((E345=1),1,0))))))) -> 1 | H346: Calculation cell to combine rodent holes with bunch grasses. | M346: Target is few or many.
C347: 21 | D347: Amount of snags/stumps present | E347: 1 | H347: Enter count bins ('0' for none, '1' for few [1-10], and '2' for many [>10]) in Column E. | M347: Target is few or many. For model, combine snags/nest boxes/pithy.
C348: 22 | D348: Amount of nest boxes or nest bundles present | E348: 0 | H348: In Column E, enter count bins ('0' for none, '0.5' for few [1-3] that are close and/or not maintained, '1' for few [1-3]) that are >50 holes or maintained, '1.5' for few [1-3] that are both >50 holes and maintained, '2' for many [>3] that are both >50 holes and maintained. Give an extra point for multiple sized holes and/or small blocks w/less than 20 holes. Maximum is 3. | M348: Target many, maintained, etc.. For model, combine snags/nest boxes/pithy.
C349: 23 | D349: Amount of plants with pithy tissue present | E349: 1 | H349: Total for percent cover for all relevant species documented, then in Column E, enter appropriate bin for total percent cover range: enter '0' for <1%, enter '1' for 1 to 5%, and enter '2' for over 5%. | M349: Target is 5-25. For model, combine snags/nest boxes/pithy.
C350: =CONCATENATE(C347,", ",C348," and ",C349) -> 21, 22 and 23 | D350: Amount of snags/stumps, nest boxes/bundles, pithy tissue | E350: =IF((E347=2),2,(IF((E348>=2),2,(IF((E349=2),2,(IF((E347=1),1,(IF((E348=1.5),1,(IF((E348=1),1,(IF((E349=1),1,0))))))))))))) -> 1 | H350: Calculation cell to combine snags/stumps, nest boxes/bundles, and pithy tissue. | M350: Target is few or many.
C351: =CONCATENATE(C343," through ",C349) -> 18 through 23 | D351: Diversity of available nesting materials | E351: =((IF(E343>0.09,1,0))+(IF(E346>0,1,0))+(IF(E350>0,1,0)))/3 -> 0.6666666667 | H351: Calculation cell. Treat questions 8-10 separately and 11-13 combined (e.g., if a site has snags, nest boxes, or plants with pithy tissues, it counts towards the site diversity). | M351: Target is 1.0
B352: Management: Soil disturbance | C352: 24 | D352: Is the Map Unit tilled at some point during the year? | E352: 1 | H352: In Column E, enter '1' for Yes or a '0' for No. | M352: 0 is good
C353: 25 | D353: Is the Map Unit flood-irrigated at some point during the year? | E353: 0 | H353: In Column E, enter '1' for Yes or a '0' for No. | M353: 0 is good
C354: 26 | D354: Is plastic mulching used at the Map Unit? | E354: 1 | H354: In Column E, enter '1' for Yes or a '0' for No. | M354: 0 is good
C355: 27 | D355: Does road-grading or road-making occur on the Map Unit? | E355: 1 | H355: In Column E, enter '1' for Yes or a '0' for No. | M355: 0 is good
C356: 28 | D356: Total percent cover of the Map Unit that experiences any soil disturbance | E356: =MAX(F356:G356) -> 0.6 | F356: 0.3 | G356: 0.6 | H356: Enter the percent cover inclusive of all types of soil disturbance min and max values (0, 1-10, 10-30, 30-60, 60-90, 90-100) in Columns F and G. | M356: 0 is good
... 86 more rows

Sheet BeeVegInputData
A1: Your Name: | I1: Date: | O1: Fill in data | S1: Explanation: Entering the vegetation type code and age (columns D and E), enables the model to 'get' height and width growth rate values, shown in columns C-I of the 'VegTypeParameters' worksheet that are specific to that vegetation type or species. Horizontal surface area (i.e., the average width of the species at the given age multiplied by the average width of the species at the given age), vertical surface area (i.e., the average width of the species at the given age multiplied by the average height of the species at that same age), and blooming time for the specific species/vegetation type are then calculated in columns P-U. Those final values in dark green at the bottom of each Map Unit set are 'picked up' and used by the model to score the Map Unit for bee habitat quality. Height is calculated based on the maximum height, estimated maximum growth rate, and age using the logistic equation: Ht = Hmax *(1-exp(-rate*age/Hmax)).
A2: Site Name: | O2: Grabs data from VTP worksheet
A3: Directions: Only enter values into the yellow areas. Enter information for each Map Unit separately, per Map Unit Block. For example, data for the first Map Unit should be entered in rows 9 through 43, and for Map Unit 2 in rows 62 through 96. You can have multiple species/vegetation types within each Map Unit and multiple entries for the same species/vegetation type but of different ages (e.g., Lupinus 1 yr and Lupinus 4 yrs). For each vegetation entry, take the midpoint of the cover class category for that occurs with at least 1-5% cover in the Map Unit overall. Enter the cover class midpoint and code for each type in columns E and F (to find the appropriate code, see the 'VegTypeParameters' sheet). Also, if the species is not listed, use a species with similar growth patterns and bloom time, or use one of the appropriate lumped species categories (e.g., “native forbs and graminoids not beneficial to pollinators”, “other early blooming native plants beneficial to pollinators”, “other exotic shrubs”). For each entry also enter the current average age of the plants. You may enter as many as 35 different species/veg type types for each Map Unit. If you have more than 35 entries, lump similar species into a single code. Once completed, LEAVE the bottom-most army-green colored rows where values are automatically calculated and will be 'collected' by the Field Bee Form worksheet and go from there (automatically) into the Bee Scoring Model. You may enter vegetation information for up to 10 Map Units. Enter the size of each Map Unit just one time under the first line for that Map Unit, in square feet. | O3: Calculation cell
A6: Enter only in yellow cells. Leave rest untouched. | G6: Enter the current year age in column G for each vegetation type. This age will be added to the assessment year (input on Field data form) to determine time series age in column K. If you are interested in just the current effects, enter a '0' in cell E11 of the Field data form.
A7: Map Unit | B7: Vegetation Entry | C7: Map Unit Size | D7: Spatial extent of Veg Type | E7: Existing Cover Class for VegType | F7: Species/ VegType | G7: Existing Age of Average Plant (for S enter 1, for Sa enter 2, for P enter 3, for M enter 5, for D enter 10) | H7: Species/Vegetation Type Descriptions | I7: Ht Rate | J7: Ht max | K7: Future Age | L7: Future Height | M7: Canopy Width Max (m) | N7: Canopy Width Rate | O7: Existing Age canopy area per plant | Q7: Estimated # Individuals | R7: Future Horizontal Surface Area per plant (width x width) | S7: Future Vertical Surface Area per plant (width x height) | T7: Horizontal Surface Area Across Map Unit | U7: Vertical Surface Area Across Map Unit | V7: Season(s) | W7: Season(s) (.) | X7: Early | Y7: Mid | Z7: Late
A8: # | B8: # | C8: sq ft | D8: m2 | E8: % | F8: code | G8: yrs | I8: m/yr | J8: m | K8: yrs | L8: m | M8: m | N8: m/yr | O8: m2 | Q8: number | R8: m2 | S8: m2 | T8: m2 | U8: m2 | X8: =SUM(IF(FREQUENCY(MATCH(X9:X43, X9:X43,0),MATCH(X9:X43, X9:X43,0))>0,1))-1 -> 7 | Y8: =SUM(IF(FREQUENCY(MATCH(Y9:Y43, Y9:Y43,0),MATCH(Y9:Y43, Y9:Y43,0))>0,1))-1 -> 10 | Z8: =SUM(IF(FREQUENCY(MATCH(Z9:Z43, Z9:Z43,0),MATCH(Z9:Z43, Z9:Z43,0))>0,1))-1 -> 7
A9: 1 | B9: 1 | C9: 2200 | D9: =(0.092903*C9)*E9 -> 12.263196 | E9: 0.06 | F9: 1600 | G9: 5 | H9: =VLOOKUP(F9,VegTypeParameters!A:G,2,FALSE) -> Atriplex | I9: =VLOOKUP($F9,VegTypeParameters!$A:$G,5,FALSE) -> 3.296296296 | J9: =VLOOKUP($F9,VegTypeParameters!$A:$G,4,FALSE) -> 3 | K9: =G9+FieldBeeForm!$E$11 -> 17 | L9: =IF(J9>0,J9*(1-EXP(-I9*K9/J9)), 0) -> 2.999999977 | M9: =(VLOOKUP($F9,VegTypeParameters!A:G,6,FALSE)) -> 5 | N9: =(VLOOKUP($F9,VegTypeParameters!A:G,7,FALSE)) -> 7.111111111 | O9: =IF(M9>0, (M9*(1-EXP(-N9*G9/M9)))*(M9*(1-EXP(-N9*G9/M9))),0) -> 24.95921725 | Q9: =IF(O9>0, (D9*E9)/O9,0) -> 0.02947976102 | R9: =IF(M9>0, (M9*(1-EXP(-N9*K9/M9)))*(M9*(1-EXP(-N9*K9/M9))), 0) -> 25 | S9: =IF(M9>0,(M9*(1-EXP(-N9*K9/M9)))*L9,0) -> 14.99999988 | T9: =R9*Q9 -> 0.7369940256 | U9: =S9*Q9 -> 0.4421964119 | V9: =VLOOKUP($F9,VegTypeParameters!$A:$H,8,FALSE) -> Mid/Late | W9: =+IF(ISNA(V9), ".", V9) -> Mid/Late | X9: =IF($W9="Early/Mid",$H9,IF($W9="Early", $H9, IF($W9="Early/Mid/Late", $H9,"."))) -> . | Y9: =IF($W9="Early/Mid",$H9,IF($W9="Mid", $H9, IF($W9="Mid/Late", $H9, IF($W9="Early/Mid/Late", $H9,".")))) -> Atriplex | Z9: =IF($W9="Mid/Late",$H9,IF($W9="Late", $H9, IF($W9="Early/Mid/Late", $H9,"."))) -> Atriplex
A10: 1 | B10: 2 | C10: =+C$9 -> 2200 | D10: =(0.092903*C10)*E10 -> 6.131598 | E10: 0.03 | F10: 4200 | G10: 3 | H10: =VLOOKUP(F10,VegTypeParameters!A:G,2,FALSE) -> Helianthus | I10: =VLOOKUP($F10,VegTypeParameters!$A:$G,5,FALSE) -> 6.5 | J10: =VLOOKUP($F10,VegTypeParameters!$A:$G,4,FALSE) -> 2.5 | K10: =G10+FieldBeeForm!$E$11 -> 15 | L10: 2.5 | M10: =(VLOOKUP($F10,VegTypeParameters!A:G,6,FALSE)) -> 0.75 | N10: =(VLOOKUP($F10,VegTypeParameters!A:G,7,FALSE)) -> 1.25 | O10: 0.5549453471 | Q10: 0.3314703708 | R10: 0.5625 | S10: 1.875 | T10: 0.1864520836 | U10: 0.6215069453 | V10: =VLOOKUP($F10,VegTypeParameters!$A:$H,8,FALSE) -> Mid/Late | W10: =+IF(ISNA(V10), ".", V10) -> Mid/Late | X10: =IF($W10="Early/Mid",$H10,IF($W10="Early", $H10, IF($W10="Early/Mid/Late", $H10,"."))) -> . | Y10: =IF($W10="Early/Mid",$H10,IF($W10="Mid", $H10, IF($W10="Mid/Late", $H10, IF($W10="Early/Mid/Late", $H10,".")))) -> Helianthus | Z10: =IF($W10="Mid/Late",$H10,IF($W10="Late", $H10, IF($W10="Early/Mid/Late", $H10,"."))) -> Helianthus
A11: 1 | B11: 3 | C11: =+C$9 -> 2200 | D11: 16.350928 | E11: 0.08 | F11: 4000 | G11: 3 | H11: =VLOOKUP(F11,VegTypeParameters!A:G,2,FALSE) -> Grindelia | I11: =VLOOKUP($F11,VegTypeParameters!$A:$G,5,FALSE) -> 1.666666667 | J11: =VLOOKUP($F11,VegTypeParameters!$A:$G,4,FALSE) -> 2.5 | K11: =G11+FieldBeeForm!$E$11 -> 15 | L11: 2.4998865 | M11: =(VLOOKUP($F11,VegTypeParameters!A:G,6,FALSE)) -> 2 | N11: =(VLOOKUP($F11,VegTypeParameters!A:G,7,FALSE)) -> 1.333333333 | O11: 2.99058029 | Q11: 0.4373981346 | R11: 3.999636809 | S11: 4.999546011 | T11: 1.749433679 | U11: 2.186792099 | V11: =VLOOKUP($F11,VegTypeParameters!$A:$H,8,FALSE) -> Mid/Late | W11: Mid/Late | X11: . | Y11: Grindelia | Z11: Grindelia
A12: 1 | B12: 4 | C12: 2200 | D12: 16.350928 | E12: 0.08 | F12: 7000 | G12: 3 | H12: =VLOOKUP(F12,VegTypeParameters!A:G,2,FALSE) -> Salix (shrub) | I12: =VLOOKUP($F12,VegTypeParameters!$A:$G,5,FALSE) -> 0.73 | J12: =VLOOKUP($F12,VegTypeParameters!$A:$G,4,FALSE) -> 3.5 | K12: =G12+FieldBeeForm!$E$11 -> 15 | L12: 3.346768964 | M12: =(VLOOKUP($F12,VegTypeParameters!A:G,6,FALSE)) -> 2.5 | N12: =(VLOOKUP($F12,VegTypeParameters!A:G,7,FALSE)) -> 0.55 | O12: 1.458953956 | Q12: 0.8965836341 | R12: 5.797462708 | S12: 8.058323811 | T12: 5.197910183 | U12: 7.224961247 | V12: =VLOOKUP($F12,VegTypeParameters!$A:$H,8,FALSE) -> Early | W12: Early | X12: Salix (shrub) | Y12: . | Z12: .
A13: 1 | B13: 5 | C13: 2200 | D13: 16.350928 | E13: 0.08 | F13: 8400 | G13: 5 | H13: =VLOOKUP(F13,VegTypeParameters!A:G,2,FALSE) -> Weeds, non-invasive and not beneficial to pollinators | I13: =VLOOKUP($F13,VegTypeParameters!$A:$G,5,FALSE) -> 0 | J13: =VLOOKUP($F13,VegTypeParameters!$A:$G,4,FALSE) -> 0 | K13: =G13+FieldBeeForm!$E$11 -> 17 | L13: 0 | M13: =(VLOOKUP($F13,VegTypeParameters!A:G,6,FALSE)) -> 0 | N13: =(VLOOKUP($F13,VegTypeParameters!A:G,7,FALSE)) -> 0 | O13: 0 | Q13: 0 | R13: 0 | S13: 0 | T13: 0 | U13: 0 | V13: =VLOOKUP($F13,VegTypeParameters!$A:$H,8,FALSE) -> Never | W13: Never | X13: . | Y13: . | Z13: .
A14: 1 | B14: 6 | C14: 2200 | D14: 16.350928 | E14: 0.08 | F14: 5300 | G14: 3 | H14: =VLOOKUP(F14,VegTypeParameters!A:G,2,FALSE) -> Medicago | I14: =VLOOKUP($F14,VegTypeParameters!$A:$G,5,FALSE) -> 0.5 | J14: =VLOOKUP($F14,VegTypeParameters!$A:$G,4,FALSE) -> 0.5 | K14: =G14+FieldBeeForm!$E$11 -> 15 | L14: 0.499999847 | M14: =(VLOOKUP($F14,VegTypeParameters!A:G,6,FALSE)) -> 0.7 | N14: =(VLOOKUP($F14,VegTypeParameters!A:G,7,FALSE)) -> 0.7 | O14: 0.4424232616 | Q14: 2.956612714 | R14: 0.4899997002 | S14: 0.3499997859 | T14: 1.448739343 | U14: 1.034813817 | V14: =VLOOKUP($F14,VegTypeParameters!$A:$H,8,FALSE) -> Mid/Late | W14: Mid/Late | X14: . | Y14: Medicago | Z14: Medicago
A15: 1 | B15: 7 | C15: 2200 | D15: 16.350928 | E15: 0.08 | F15: 1600 | G15: 3 | H15: =VLOOKUP(F15,VegTypeParameters!A:G,2,FALSE) -> Atriplex | I15: =VLOOKUP($F15,VegTypeParameters!$A:$G,5,FALSE) -> 3.296296296 | J15: =VLOOKUP($F15,VegTypeParameters!$A:$G,4,FALSE) -> 3 | K15: =G15+FieldBeeForm!$E$11 -> 15 | L15: 2.999999791 | M15: =(VLOOKUP($F15,VegTypeParameters!A:G,6,FALSE)) -> 5 | N15: =(VLOOKUP($F15,VegTypeParameters!A:G,7,FALSE)) -> 7.111111111 | O15: 24.3034966 | Q15: 0.05382247095 | R15: 24.99999997 | S15: 14.99999895 | T15: 1.345561772 | U15: 0.8073370077 | V15: =VLOOKUP($F15,VegTypeParameters!$A:$H,8,FALSE) -> Mid/Late | W15: Mid/Late | X15: . | Y15: Atriplex | Z15: Atriplex
A16: 1 | B16: 8 | C16: 2200 | D16: 6.131598 | E16: 0.03 | F16: 7500 | G16: 3 | H16: =VLOOKUP(F16,VegTypeParameters!A:G,2,FALSE) -> Scrophularia | I16: =VLOOKUP($F16,VegTypeParameters!$A:$G,5,FALSE) -> 1.2 | J16: =VLOOKUP($F16,VegTypeParameters!$A:$G,4,FALSE) -> 1.2 | K16: =G16+FieldBeeForm!$E$11 -> 15 | L16: 1.199999633 | M16: =(VLOOKUP($F16,VegTypeParameters!A:G,6,FALSE)) -> 0.3 | N16: =(VLOOKUP($F16,VegTypeParameters!A:G,7,FALSE)) -> 0.3 | O16: 0.08126141539 | Q16: 2.263656609 | R16: 0.08999994494 | S16: 0.3599997798 | T16: 0.2037289702 | U16: 0.8149158807 | V16: =VLOOKUP($F16,VegTypeParameters!$A:$H,8,FALSE) -> Early/Mid | W16: Early/Mid | X16: Scrophularia | Y16: Scrophularia | Z16: .
A17: 1 | B17: 9 | C17: 2200 | D17: 6.131598 | E17: 0.03 | F17: 3500 | G17: 3 | H17: =VLOOKUP(F17,VegTypeParameters!A:G,2,FALSE) -> Ficus carica | I17: =VLOOKUP($F17,VegTypeParameters!$A:$G,5,FALSE) -> 0 | J17: =VLOOKUP($F17,VegTypeParameters!$A:$G,4,FALSE) -> 0 | K17: =G17+FieldBeeForm!$E$11 -> 15 | L17: 0 | M17: =(VLOOKUP($F17,VegTypeParameters!A:G,6,FALSE)) -> 0 | N17: =(VLOOKUP($F17,VegTypeParameters!A:G,7,FALSE)) -> 0 | O17: 0 | Q17: 0 | R17: 0 | S17: 0 | T17: 0 | U17: 0 | V17: =VLOOKUP($F17,VegTypeParameters!$A:$H,8,FALSE) -> Never | W17: Never | X17: . | Y17: . | Z17: .
A18: 1 | B18: 10 | C18: 2200 | D18: 6.131598 | E18: 0.03 | F18: 6200 | G18: 3 | H18: =VLOOKUP(F18,VegTypeParameters!A:G,2,FALSE) -> Other late blooming native plants beneficial to pollinators | I18: =VLOOKUP($F18,VegTypeParameters!$A:$G,5,FALSE) -> 0.25 | J18: =VLOOKUP($F18,VegTypeParameters!$A:$G,4,FALSE) -> 1 | K18: =G18+FieldBeeForm!$E$11 -> 15 | L18: 0.9764822541 | M18: =(VLOOKUP($F18,VegTypeParameters!A:G,6,FALSE)) -> 0.5 | N18: =(VLOOKUP($F18,VegTypeParameters!A:G,7,FALSE)) -> 0.25 | O18: 0.150881687 | Q18: 1.219153521 | R18: 0.2497235343 | S18: 0.4879710885 | T18: 0.3044513261 | U18: 0.5949116708 | V18: =VLOOKUP($F18,VegTypeParameters!$A:$H,8,FALSE) -> Late | W18: Late | X18: . | Y18: . | Z18: Other late blooming native plants beneficial to pollinators
A19: 1 | B19: 11 | C19: 2200 | D19: 6.131598 | E19: 0.03 | F19: 2500 | G19: 3 | H19: =VLOOKUP(F19,VegTypeParameters!A:G,2,FALSE) -> Clarkia | I19: =VLOOKUP($F19,VegTypeParameters!$A:$G,5,FALSE) -> 0.4 | J19: =VLOOKUP($F19,VegTypeParameters!$A:$G,4,FALSE) -> 0.4 | K19: =G19+FieldBeeForm!$E$11 -> 15 | L19: 0.3999998776 | M19: =(VLOOKUP($F19,VegTypeParameters!A:G,6,FALSE)) -> 0.1 | N19: =(VLOOKUP($F19,VegTypeParameters!A:G,7,FALSE)) -> 0.1 | O19: 0.009029046154 | Q19: 20.37290948 | R19: 0.009999993882 | S19: 0.03999997553 | T19: 0.2037289702 | U19: 0.8149158807 | V19: =VLOOKUP($F19,VegTypeParameters!$A:$H,8,FALSE) -> Early/Mid | W19: Early/Mid | X19: Clarkia | Y19: Clarkia | Z19: .
A20: 1 | B20: 12 | C20: 2200 | D20: 16.350928 | E20: 0.08 | F20: 5000 | G20: 3 | H20: =VLOOKUP(F20,VegTypeParameters!A:G,2,FALSE) -> Lupinus spp. | I20: =VLOOKUP($F20,VegTypeParameters!$A:$G,5,FALSE) -> 0.98 | J20: =VLOOKUP($F20,VegTypeParameters!$A:$G,4,FALSE) -> 3 | K20: =G20+FieldBeeForm!$E$11 -> 15 | L20: 2.977660251 | M20: =(VLOOKUP($F20,VegTypeParameters!A:G,6,FALSE)) -> 3 | N20: =(VLOOKUP($F20,VegTypeParameters!A:G,7,FALSE)) -> 1.08 | O20: 3.925206628 | Q20: 0.3332497787 | R20: 8.918885139 | S20: 8.892634222 | T20: 2.972216499 | U20: 2.963468386 | V20: =VLOOKUP($F20,VegTypeParameters!$A:$H,8,FALSE) -> Early/Mid/Late | W20: Early/Mid/Late | X20: Lupinus spp. | Y20: Lupinus spp. | Z20: Lupinus spp.
A21: 1 | B21: 13 | C21: 2200 | D21: 16.350928 | E21: 0.08 | F21: 6000 | G21: 3 | H21: =VLOOKUP(F21,VegTypeParameters!A:G,2,FALSE) -> Orchard | I21: =VLOOKUP($F21,VegTypeParameters!$A:$G,5,FALSE) -> 0.5 | J21: =VLOOKUP($F21,VegTypeParameters!$A:$G,4,FALSE) -> 10 | K21: =G21+FieldBeeForm!$E$11 -> 15 | L21: 5.276334473 | M21: =(VLOOKUP($F21,VegTypeParameters!A:G,6,FALSE)) -> 6 | N21: =(VLOOKUP($F21,VegTypeParameters!A:G,7,FALSE)) -> 0.5 | O21: 1.761447369 | Q21: 0.7426132982 | R21: 18.32671458 | S21: 22.58783602 | T21: 13.60966196 | U21: 16.77402741 | V21: =VLOOKUP($F21,VegTypeParameters!$A:$H,8,FALSE) -> Early | W21: Early | X21: Orchard | Y21: . | Z21: .
A22: 1 | B22: 14 | C22: 2200 | D22: 6.131598 | E22: 0.03 | F22: 3300 | G22: 5 | H22: =VLOOKUP(F22,VegTypeParameters!A:G,2,FALSE) -> Eschscholzia | I22: =VLOOKUP($F22,VegTypeParameters!$A:$G,5,FALSE) -> 0.6 | J22: =VLOOKUP($F22,VegTypeParameters!$A:$G,4,FALSE) -> 0.3 | K22: =G22+FieldBeeForm!$E$11 -> 17 | L22: 0.3 | M22: =(VLOOKUP($F22,VegTypeParameters!A:G,6,FALSE)) -> 0.15 | N22: =(VLOOKUP($F22,VegTypeParameters!A:G,7,FALSE)) -> 0.3 | O22: 0.02249795705 | Q22: 8.176206382 | R22: 0.0225 | S22: 0.045 | T22: 0.1839646436 | U22: 0.3679292872 | V22: =VLOOKUP($F22,VegTypeParameters!$A:$H,8,FALSE) -> Early/Mid | W22: Early/Mid | X22: Eschscholzia | Y22: Eschscholzia | Z22: .
A23: 1 | B23: 15 | C23: 2200 | D23: 6.131598 | E23: 0.03 | F23: 5600 | G23: 3 | H23: =VLOOKUP(F23,VegTypeParameters!A:G,2,FALSE) -> Native forbs and graminoids not beneficial to pollinators | I23: =VLOOKUP($F23,VegTypeParameters!$A:$G,5,FALSE) -> 0 | J23: =VLOOKUP($F23,VegTypeParameters!$A:$G,4,FALSE) -> 0 | K23: =G23+FieldBeeForm!$E$11 -> 15 | L23: =IF(J23>0,J23*(1-EXP(-I23*K23/J23)), 0) -> 0 | M23: =(VLOOKUP($F23,VegTypeParameters!A:G,6,FALSE)) -> 0 | N23: =(VLOOKUP($F23,VegTypeParameters!A:G,7,FALSE)) -> 0 | O23: =IF(M23>0, (M23*(1-EXP(-N23*G23/M23)))*(M23*(1-EXP(-N23*G23/M23))),0) -> 0 | Q23: =IF(O23>0, (D23*E23)/O23,0) -> 0 | R23: =IF(M23>0, (M23*(1-EXP(-N23*K23/M23)))*(M23*(1-EXP(-N23*K23/M23))), 0) -> 0 | S23: =IF(M23>0,(M23*(1-EXP(-N23*K23/M23)))*L23,0) -> 0 | T23: =R23*Q23 -> 0 | U23: =S23*Q23 -> 0 | V23: =VLOOKUP($F23,VegTypeParameters!$A:$H,8,FALSE) -> Never | W23: Never | X23: . | Y23: . | Z23: .
A24: 1 | B24: 16 | C24: 2200 | D24: 16.350928 | E24: 0.08 | F24: 3800 | G24: 3 | H24: =VLOOKUP(F24,VegTypeParameters!A:G,2,FALSE) -> Gilia | I24: =VLOOKUP($F24,VegTypeParameters!$A:$G,5,FALSE) -> 0.6 | J24: =VLOOKUP($F24,VegTypeParameters!$A:$G,4,FALSE) -> 0.3 | K24: =G24+FieldBeeForm!$E$11 -> 15 | L24: =IF(J24>0,J24*(1-EXP(-I24*K24/J24)), 0) -> 0.3 | M24: =(VLOOKUP($F24,VegTypeParameters!A:G,6,FALSE)) -> 0.15 | N24: =(VLOOKUP($F24,VegTypeParameters!A:G,7,FALSE)) -> 0.3 | O24: =IF(M24>0, (M24*(1-EXP(-N24*G24/M24)))*(M24*(1-EXP(-N24*G24/M24))),0) -> 0.0223885944 | Q24: =IF(O24>0, (D24*E24)/O24,0) -> 58.42592066 | R24: =IF(M24>0, (M24*(1-EXP(-N24*K24/M24)))*(M24*(1-EXP(-N24*K24/M24))), 0) -> 0.0225 | S24: =IF(M24>0,(M24*(1-EXP(-N24*K24/M24)))*L24,0) -> 0.045 | T24: =R24*Q24 -> 1.314583215 | U24: =S24*Q24 -> 2.62916643 | V24: =VLOOKUP($F24,VegTypeParameters!$A:$H,8,FALSE) -> Mid | W24: Mid | X24: . | Y24: Gilia | Z24: .
A25: 1 | B25: 17 | C25: 2200 | D25: 16.350928 | E25: 0.08 | F25: 1500 | G25: 3 | H25: =VLOOKUP(F25,VegTypeParameters!A:G,2,FALSE) -> Asclepias | I25: =VLOOKUP($F25,VegTypeParameters!$A:$G,5,FALSE) -> 0.8 | J25: =VLOOKUP($F25,VegTypeParameters!$A:$G,4,FALSE) -> 0.8 | K25: =G25+FieldBeeForm!$E$11 -> 15 | L25: 0.7999997553 | M25: =(VLOOKUP($F25,VegTypeParameters!A:G,6,FALSE)) -> 0.2 | N25: =(VLOOKUP($F25,VegTypeParameters!A:G,7,FALSE)) -> 0.2 | O25: 0.03611618462 | Q25: 36.21850574 | R25: 0.03999997553 | S25: 0.1599999021 | T25: 1.448739343 | U25: 5.794957374 | V25: =VLOOKUP($F25,VegTypeParameters!$A:$H,8,FALSE) -> Early/Mid/Late | W25: Early/Mid/Late | X25: Asclepias | Y25: Asclepias | Z25: Asclepias
A26: 1 | B26: 18 | C26: 2200 | D26: 1.021933 | E26: 0.005 | F26: 1600 | G26: 1 | H26: =VLOOKUP(F26,VegTypeParameters!A:G,2,FALSE) -> Atriplex | I26: =VLOOKUP($F26,VegTypeParameters!$A:$G,5,FALSE) -> 3.296296296 | J26: =VLOOKUP($F26,VegTypeParameters!$A:$G,4,FALSE) -> 3 | K26: =G26+FieldBeeForm!$E$11 -> 13 | L26: 2.999998122 | M26: =(VLOOKUP($F26,VegTypeParameters!A:G,6,FALSE)) -> 5 | N26: =(VLOOKUP($F26,VegTypeParameters!A:G,7,FALSE)) -> 7.111111111 | O26: 14.39529076 | Q26: 0.0003549539279 | R26: 24.99999953 | S26: 14.99999047 | T26: 0.008873848033 | U26: 0.005324305537 | V26: =VLOOKUP($F26,VegTypeParameters!$A:$H,8,FALSE) -> Mid/Late | W26: Mid/Late | X26: . | Y26: Atriplex | Z26: Atriplex
A27: 1 | B27: 19 | C27: 2200 | D27: 0 | H27: =VLOOKUP(F27,VegTypeParameters!A:G,2,FALSE) ->  | I27: =VLOOKUP($F27,VegTypeParameters!$A:$G,5,FALSE) ->  | J27: =VLOOKUP($F27,VegTypeParameters!$A:$G,4,FALSE) ->  | K27: =G27+FieldBeeForm!$E$11 -> 12 | L27: =IF(J27>0,J27*(1-EXP(-I27*K27/J27)), 0) ->  | M27: =(VLOOKUP($F27,VegTypeParameters!A:G,6,FALSE)) ->  | N27: =(VLOOKUP($F27,VegTypeParameters!A:G,7,FALSE)) ->  | O27: =IF(M27>0, (M27*(1-EXP(-N27*G27/M27)))*(M27*(1-EXP(-N27*G27/M27))),0) ->  | Q27: =IF(O27>0, (D27*E27)/O27,0) ->  | R27: =IF(M27>0, (M27*(1-EXP(-N27*K27/M27)))*(M27*(1-EXP(-N27*K27/M27))), 0) ->  | S27: =IF(M27>0,(M27*(1-EXP(-N27*K27/M27)))*L27,0) ->  | T27: =R27*Q27 ->  | U27: =S27*Q27 ->  | V27: =VLOOKUP($F27,VegTypeParameters!$A:$H,8,FALSE) ->  | W27: . | X27: . | Y27: . | Z27: .
A28: 1 | B28: 20 | C28: 2200 | D28: 0 | H28: =VLOOKUP(F28,VegTypeParameters!A:G,2,FALSE) ->  | I28: =VLOOKUP($F28,VegTypeParameters!$A:$G,5,FALSE) ->  | J28: =VLOOKUP($F28,VegTypeParameters!$A:$G,4,FALSE) ->  | K28: =G28+FieldBeeForm!$E$11 -> 12 | M28: =(VLOOKUP($F28,VegTypeParameters!A:G,6,FALSE)) ->  | N28: =(VLOOKUP($F28,VegTypeParameters!A:G,7,FALSE)) ->  | V28: =VLOOKUP($F28,VegTypeParameters!$A:$H,8,FALSE) ->  | W28: . | X28: . | Y28: . | Z28: .
A29: 1 | B29: 21 | C29: 2200 | D29: 0 | H29: =VLOOKUP(F29,VegTypeParameters!A:G,2,FALSE) ->  | I29: =VLOOKUP($F29,VegTypeParameters!$A:$G,5,FALSE) ->  | J29: =VLOOKUP($F29,VegTypeParameters!$A:$G,4,FALSE) ->  | K29: =G29+FieldBeeForm!$E$11 -> 12 | M29: =(VLOOKUP($F29,VegTypeParameters!A:G,6,FALSE)) ->  | N29: =(VLOOKUP($F29,VegTypeParameters!A:G,7,FALSE)) ->  | V29: =VLOOKUP($F29,VegTypeParameters!$A:$H,8,FALSE) ->  | W29: . | X29: . | Y29: . | Z29: .
A30: 1 | B30: 22 | C30: 2200 | D30: 0 | H30: =VLOOKUP(F30,VegTypeParameters!A:G,2,FALSE) ->  | I30: =VLOOKUP($F30,VegTypeParameters!$A:$G,5,FALSE) ->  | J30: =VLOOKUP($F30,VegTypeParameters!$A:$G,4,FALSE) ->  | K30: =G30+FieldBeeForm!$E$11 -> 12 | M30: =(VLOOKUP($F30,VegTypeParameters!A:G,6,FALSE)) ->  | N30: =(VLOOKUP($F30,VegTypeParameters!A:G,7,FALSE)) ->  | V30: =VLOOKUP($F30,VegTypeParameters!$A:$H,8,FALSE) ->  | W30: . | X30: . | Y30: . | Z30: .
A31: 1 | B31: 23 | C31: 2200 | D31: 0 | H31: =VLOOKUP(F31,VegTypeParameters!A:G,2,FALSE) ->  | I31: =VLOOKUP($F31,VegTypeParameters!$A:$G,5,FALSE) ->  | J31: =VLOOKUP($F31,VegTypeParameters!$A:$G,4,FALSE) ->  | K31: =G31+FieldBeeForm!$E$11 -> 12 | M31: =(VLOOKUP($F31,VegTypeParameters!A:G,6,FALSE)) ->  | N31: =(VLOOKUP($F31,VegTypeParameters!A:G,7,FALSE)) ->  | V31: =VLOOKUP($F31,VegTypeParameters!$A:$H,8,FALSE) ->  | W31: . | X31: . | Y31: . | Z31: .
A32: 1 | B32: 24 | C32: 2200 | D32: 0 | H32: =VLOOKUP(F32,VegTypeParameters!A:G,2,FALSE) ->  | I32: =VLOOKUP($F32,VegTypeParameters!$A:$G,5,FALSE) ->  | J32: =VLOOKUP($F32,VegTypeParameters!$A:$G,4,FALSE) ->  | K32: =G32+FieldBeeForm!$E$11 -> 12 | M32: =(VLOOKUP($F32,VegTypeParameters!A:G,6,FALSE)) ->  | N32: =(VLOOKUP($F32,VegTypeParameters!A:G,7,FALSE)) ->  | V32: =VLOOKUP($F32,VegTypeParameters!$A:$H,8,FALSE) ->  | W32: . | X32: . | Y32: . | Z32: .
A33: 1 | B33: 25 | C33: 2200 | D33: 0 | H33: =VLOOKUP(F33,VegTypeParameters!A:G,2,FALSE) ->  | I33: =VLOOKUP($F33,VegTypeParameters!$A:$G,5,FALSE) ->  | J33: =VLOOKUP($F33,VegTypeParameters!$A:$G,4,FALSE) ->  | K33: =G33+FieldBeeForm!$E$11 -> 12 | L33: =IF(J33>0,J33*(1-EXP(-I33*K33/J33)), 0) ->  | M33: =(VLOOKUP($F33,VegTypeParameters!A:G,6,FALSE)) ->  | N33: =(VLOOKUP($F33,VegTypeParameters!A:G,7,FALSE)) ->  | O33: =IF(M33>0, (M33*(1-EXP(-N33*G33/M33)))*(M33*(1-EXP(-N33*G33/M33))),0) ->  | Q33: =IF(O33>0, (D33*E33)/O33,0) ->  | R33: =IF(M33>0, (M33*(1-EXP(-N33*K33/M33)))*(M33*(1-EXP(-N33*K33/M33))), 0) ->  | S33: =IF(M33>0,(M33*(1-EXP(-N33*K33/M33)))*L33,0) ->  | T33: =R33*Q33 ->  | U33: =S33*Q33 ->  | V33: =VLOOKUP($F33,VegTypeParameters!$A:$H,8,FALSE) ->  | W33: =+IF(ISNA(V33), ".", V33) -> . | X33: . | Y33: . | Z33: .
A34: 1 | B34: 26 | C34: 2200 | D34: 0 | H34: =VLOOKUP(F34,VegTypeParameters!A:G,2,FALSE) ->  | I34: =VLOOKUP($F34,VegTypeParameters!$A:$G,5,FALSE) ->  | J34: =VLOOKUP($F34,VegTypeParameters!$A:$G,4,FALSE) ->  | K34: =G34+FieldBeeForm!$E$11 -> 12 | L34: =IF(J34>0,J34*(1-EXP(-I34*K34/J34)), 0) ->  | M34: =(VLOOKUP($F34,VegTypeParameters!A:G,6,FALSE)) ->  | N34: =(VLOOKUP($F34,VegTypeParameters!A:G,7,FALSE)) ->  | O34: =IF(M34>0, (M34*(1-EXP(-N34*G34/M34)))*(M34*(1-EXP(-N34*G34/M34))),0) ->  | Q34: =IF(O34>0, (D34*E34)/O34,0) ->  | R34: =IF(M34>0, (M34*(1-EXP(-N34*K34/M34)))*(M34*(1-EXP(-N34*K34/M34))), 0) ->  | S34: =IF(M34>0,(M34*(1-EXP(-N34*K34/M34)))*L34,0) ->  | V34: =VLOOKUP($F34,VegTypeParameters!$A:$H,8,FALSE) ->  | W34: . | X34: . | Y34: . | Z34: .
A35: 1 | B35: 27 | C35: 2200 | D35: 0 | H35: =VLOOKUP(F35,VegTypeParameters!A:G,2,FALSE) ->  | I35: =VLOOKUP($F35,VegTypeParameters!$A:$G,5,FALSE) ->  | J35: =VLOOKUP($F35,VegTypeParameters!$A:$G,4,FALSE) ->  | K35: =G35+FieldBeeForm!$E$11 -> 12 | M35: =(VLOOKUP($F35,VegTypeParameters!A:G,6,FALSE)) ->  | N35: =(VLOOKUP($F35,VegTypeParameters!A:G,7,FALSE)) ->  | V35: =VLOOKUP($F35,VegTypeParameters!$A:$H,8,FALSE) ->  | W35: . | X35: . | Y35: . | Z35: .
A36: 1 | B36: 28 | C36: 2200 | D36: 0 | H36: =VLOOKUP(F36,VegTypeParameters!A:G,2,FALSE) ->  | I36: =VLOOKUP($F36,VegTypeParameters!$A:$G,5,FALSE) ->  | J36: =VLOOKUP($F36,VegTypeParameters!$A:$G,4,FALSE) ->  | K36: =G36+FieldBeeForm!$E$11 -> 12 | M36: =(VLOOKUP($F36,VegTypeParameters!A:G,6,FALSE)) ->  | N36: =(VLOOKUP($F36,VegTypeParameters!A:G,7,FALSE)) ->  | V36: =VLOOKUP($F36,VegTypeParameters!$A:$H,8,FALSE) ->  | W36: . | X36: . | Y36: . | Z36: .
A37: 1 | B37: 29 | C37: 2200 | D37: 0 | H37: =VLOOKUP(F37,VegTypeParameters!A:G,2,FALSE) ->  | I37: =VLOOKUP($F37,VegTypeParameters!$A:$G,5,FALSE) ->  | J37: =VLOOKUP($F37,VegTypeParameters!$A:$G,4,FALSE) ->  | K37: =G37+FieldBeeForm!$E$11 -> 12 | M37: =(VLOOKUP($F37,VegTypeParameters!A:G,6,FALSE)) ->  | N37: =(VLOOKUP($F37,VegTypeParameters!A:G,7,FALSE)) ->  | T37: =R37*Q37 ->  | U37: =S37*Q37 ->  | V37: =VLOOKUP($F37,VegTypeParameters!$A:$H,8,FALSE) ->  | W37: =+IF(ISNA(V37), ".", V37) -> . | X37: . | Y37: . | Z37: .
A38: 1 | B38: 30 | C38: 2200 | D38: 0 | H38: =VLOOKUP(F38,VegTypeParameters!A:G,2,FALSE) ->  | I38: =VLOOKUP($F38,VegTypeParameters!$A:$G,5,FALSE) ->  | J38: =VLOOKUP($F38,VegTypeParameters!$A:$G,4,FALSE) ->  | K38: =G38+FieldBeeForm!$E$11 -> 12 | M38: =(VLOOKUP($F38,VegTypeParameters!A:G,6,FALSE)) ->  | N38: =(VLOOKUP($F38,VegTypeParameters!A:G,7,FALSE)) ->  | V38: =VLOOKUP($F38,VegTypeParameters!$A:$H,8,FALSE) ->  | W38: . | X38: . | Y38: . | Z38: .
A39: 1 | B39: 31 | C39: 2200 | D39: 0 | H39: =VLOOKUP(F39,VegTypeParameters!A:G,2,FALSE) ->  | I39: =VLOOKUP($F39,VegTypeParameters!$A:$G,5,FALSE) ->  | J39: =VLOOKUP($F39,VegTypeParameters!$A:$G,4,FALSE) ->  | K39: =G39+FieldBeeForm!$E$11 -> 12 | M39: =(VLOOKUP($F39,VegTypeParameters!A:G,6,FALSE)) ->  | N39: =(VLOOKUP($F39,VegTypeParameters!A:G,7,FALSE)) ->  | V39: =VLOOKUP($F39,VegTypeParameters!$A:$H,8,FALSE) ->  | W39: . | X39: . | Y39: . | Z39: .
A40: 1 | B40: 32 | C40: 2200 | D40: 0 | H40: =VLOOKUP(F40,VegTypeParameters!A:G,2,FALSE) ->  | I40: =VLOOKUP($F40,VegTypeParameters!$A:$G,5,FALSE) ->  | J40: =VLOOKUP($F40,VegTypeParameters!$A:$G,4,FALSE) ->  | K40: =G40+FieldBeeForm!$E$11 -> 12 | M40: =(VLOOKUP($F40,VegTypeParameters!A:G,6,FALSE)) ->  | N40: =(VLOOKUP($F40,VegTypeParameters!A:G,7,FALSE)) ->  | V40: =VLOOKUP($F40,VegTypeParameters!$A:$H,8,FALSE) ->  | W40: . | X40: . | Y40: . | Z40: .
A41: 1 | B41: 33 | C41: 2200 | D41: 0 | H41: =VLOOKUP(F41,VegTypeParameters!A:G,2,FALSE) ->  | I41: =VLOOKUP($F41,VegTypeParameters!$A:$G,5,FALSE) ->  | J41: =VLOOKUP($F41,VegTypeParameters!$A:$G,4,FALSE) ->  | K41: =G41+FieldBeeForm!$E$11 -> 12 | M41: =(VLOOKUP($F41,VegTypeParameters!A:G,6,FALSE)) ->  | N41: =(VLOOKUP($F41,VegTypeParameters!A:G,7,FALSE)) ->  | V41: =VLOOKUP($F41,VegTypeParameters!$A:$H,8,FALSE) ->  | W41: . | X41: . | Y41: . | Z41: .
A42: 1 | B42: 34 | C42: 2200 | D42: 0 | H42: =VLOOKUP(F42,VegTypeParameters!A:G,2,FALSE) ->  | I42: =VLOOKUP($F42,VegTypeParameters!$A:$G,5,FALSE) ->  | J42: =VLOOKUP($F42,VegTypeParameters!$A:$G,4,FALSE) ->  | K42: =G42+FieldBeeForm!$E$11 -> 12 | M42: =(VLOOKUP($F42,VegTypeParameters!A:G,6,FALSE)) ->  | N42: =(VLOOKUP($F42,VegTypeParameters!A:G,7,FALSE)) ->  | V42: =VLOOKUP($F42,VegTypeParameters!$A:$H,8,FALSE) ->  | W42: . | X42: . | Y42: . | Z42: .
A43: 1 | B43: 35 | C43: 2200 | D43: 0 | H43: =VLOOKUP(F43,VegTypeParameters!A:G,2,FALSE) ->  | I43: =VLOOKUP($F43,VegTypeParameters!$A:$G,5,FALSE) ->  | J43: =VLOOKUP($F43,VegTypeParameters!$A:$G,4,FALSE) ->  | K43: =G43+FieldBeeForm!$E$11 -> 12 | L43: =IF(J43>0,J43*(1-EXP(-I43*K43/J43)), 0) ->  | M43: =(VLOOKUP($F43,VegTypeParameters!A:G,6,FALSE)) ->  | N43: =(VLOOKUP($F43,VegTypeParameters!A:G,7,FALSE)) ->  | O43: =IF(M43>0, (M43*(1-EXP(-N43*G43/M43)))*(M43*(1-EXP(-N43*G43/M43))),0) ->  | Q43: =IF(O43>0, (D43*E43)/O43,0) ->  | R43: =IF(M43>0, (M43*(1-EXP(-N43*K43/M43)))*(M43*(1-EXP(-N43*K43/M43))), 0) ->  | S43: =IF(M43>0,(M43*(1-EXP(-N43*K43/M43)))*L43,0) ->  | T43: =R43*Q43 ->  | U43: =S43*Q43 ->  | V43: =VLOOKUP($F43,VegTypeParameters!$A:$H,8,FALSE) ->  | W43: . | X43: . | Y43: . | Z43: .
D44: Horizontal extent of pollinator plant cover (m2) per season | H44: Vertical extent of pollinator plant cover (m2) per season | L44: Number of different pollinator plant species per season
A45: Map Unit # | B45: Vegetation Entry | D45: Spatial extent of Veg Type (m2) | E45: Early | F45: Mid | G45: Late | H45: Spatial extent of Veg Type (m2) | I45: Early | J45: Mid | K45: Late | L45: Early | M45: Mid | N45: Late
A46: =A9 -> 1 | B46: =B9 -> 1 | D46: =+IF(ISNA(VLOOKUP(B46,B$9:D$43, 3, FALSE)),0,VLOOKUP(B46,B$9:D$43, 3, FALSE)) -> 12.263196 | E46: =+IF(SUMIFS($T$9:$T$43, $B$9:$B$43, $B46, $V$9:$V$43, "*"&"Early"&"*") <=$D46, SUMIFS($T$9:$T$43, $B$9:$B$43, $B46, $V$9:$V$43, "*"&"Early"&"*"), $D46) -> 0 | F46: =+IF(SUMIFS($T$9:$T$43, $B$9:$B$43, $B46, $V$9:$V$43, "*"&"Mid"&"*") <=$D46, SUMIFS($T$9:$T$43, $B$9:$B$43, $B46, $V$9:$V$43, "*"&"Mid"&"*"), $D46) -> 0.7369940256 | G46: =+IF(SUMIFS($T$9:$T$43, $B$9:$B$43, $B46, $V$9:$V$43, "*"&"Late"&"*") <=$D46, SUMIFS($T$9:$T$43, $B$9:$B$43, $B46, $V$9:$V$43, "*"&"Late"&"*"), $D46) -> 0.7369940256 | H46: =+IF(ISNA(VLOOKUP(B46,B$9:D$43, 3, FALSE)),0,VLOOKUP(B46,B$9:D$43, 3, FALSE)) -> 12.263196 | I46: =+IF(SUMIFS($U$9:$U$43, $B$9:$B$43, $B46, $V$9:$V$43, "*"&"Early"&"*") <=$D46, SUMIFS($U$9:$U$43, $B$9:$B$43, $B46, $V$9:$V$43, "*"&"Early"&"*"), $D46) -> 0 | J46: =+IF(SUMIFS($U$9:$U$43, $B$9:$B$43, $B46, $V$9:$V$43, "*"&"Mid"&"*") <=$D46, SUMIFS($U$9:$U$43, $B$9:$B$43, $B46, $V$9:$V$43, "*"&"Mid"&"*"), $D46) -> 0.4421964119 | K46: =+IF(SUMIFS($U$9:$U$43, $B$9:$B$43, $B46, $V$9:$V$43, "*"&"Late"&"*") <=$D46, SUMIFS($U$9:$U$43, $B$9:$B$43, $B46, $V$9:$V$43, "*"&"Late"&"*"), $D46) -> 0.4421964119
A47: =A10 -> 1 | B47: 2 | D47: =+IF(ISNA(VLOOKUP(B47,B$9:D$43, 3, FALSE)),0,VLOOKUP(B47,B$9:D$43, 3, FALSE)) -> 6.131598 | E47: 0 | F47: 0.1864520836 | G47: 0.1864520836 | H47: =+IF(ISNA(VLOOKUP(B47,B$9:D$43, 3, FALSE)),0,VLOOKUP(B47,B$9:D$43, 3, FALSE)) -> 6.131598 | I47: 0 | J47: 0.6215069453 | K47: 0.6215069453
A48: =A11 -> 1 | B48: 3 | D48: 16.350928 | E48: 0 | F48: 1.749433679 | G48: 1.749433679 | H48: 16.350928 | I48: 0 | J48: 2.186792099 | K48: 2.186792099
A49: =A12 -> 1 | B49: 4 | D49: 16.350928 | E49: 5.197910183 | F49: 0 | G49: 0 | H49: 16.350928 | I49: 7.224961247 | J49: 0 | K49: 0
A50: =A13 -> 1 | B50: 5 | D50: 16.350928 | E50: 0 | F50: 0 | G50: 0 | H50: 16.350928 | I50: 0 | J50: 0 | K50: 0
A51: =A14 -> 1 | B51: 6 | D51: 16.350928 | E51: 0 | F51: 1.448739343 | G51: 1.448739343 | H51: 16.350928 | I51: 0 | J51: 1.034813817 | K51: 1.034813817
A52: =A15 -> 1 | B52: 7 | D52: 16.350928 | E52: 0 | F52: 1.345561772 | G52: 1.345561772 | H52: 16.350928 | I52: 0 | J52: 0.8073370077 | K52: 0.8073370077
A53: =A16 -> 1 | B53: 8 | D53: 6.131598 | E53: 0.2037289702 | F53: 0.2037289702 | G53: 0 | H53: 6.131598 | I53: 0.8149158807 | J53: 0.8149158807 | K53: 0
A54: =A17 -> 1 | B54: 9 | D54: 6.131598 | E54: 0 | F54: 0 | G54: 0 | H54: 6.131598 | I54: 0 | J54: 0 | K54: 0
A55: =A18 -> 1 | B55: 10 | D55: 6.131598 | E55: 0 | F55: 0 | G55: 0.3044513261 | H55: 6.131598 | I55: 0 | J55: 0 | K55: 0.5949116708
A56: =A19 -> 1 | B56: 11 | D56: =+IF(ISNA(VLOOKUP(B56,B$9:D$43, 3, FALSE)),0,VLOOKUP(B56,B$9:D$43, 3, FALSE)) -> 6.131598 | E56: 0.2037289702 | F56: 0.2037289702 | G56: 0 | H56: =+IF(ISNA(VLOOKUP(B56,B$9:D$43, 3, FALSE)),0,VLOOKUP(B56,B$9:D$43, 3, FALSE)) -> 6.131598 | I56: 0.8149158807 | J56: 0.8149158807 | K56: 0
A57: =A20 -> 1 | B57: 12 | D57: 16.350928 | E57: 2.972216499 | F57: 2.972216499 | G57: 2.972216499 | H57: 16.350928 | I57: 2.963468386 | J57: 2.963468386 | K57: 2.963468386
A58: =A21 -> 1 | B58: 13 | D58: 16.350928 | E58: 13.60966196 | F58: 0 | G58: 0 | H58: 16.350928 | I58: 16.350928 | J58: 0 | K58: 0
A59: =A22 -> 1 | B59: 14 | D59: 6.131598 | E59: 0.1839646436 | F59: 0.1839646436 | G59: 0 | H59: 6.131598 | I59: 0.3679292872 | J59: 0.3679292872 | K59: 0
A60: =A23 -> 1 | B60: 15 | D60: 6.131598 | E60: 0 | F60: 0 | G60: 0 | H60: 6.131598 | I60: 0 | J60: 0 | K60: 0
A61: =A24 -> 1 | B61: 16 | D61: 16.350928 | E61: 0 | F61: 1.314583215 | G61: 0 | H61: 16.350928 | I61: 0 | J61: 2.62916643 | K61: 0
A62: =A25 -> 1 | B62: 17 | D62: 16.350928 | E62: 1.448739343 | F62: 1.448739343 | G62: 1.448739343 | H62: 16.350928 | I62: 5.794957374 | J62: 5.794957374 | K62: 5.794957374
A63: =A26 -> 1 | B63: 18 | D63: 1.021933 | E63: 0 | F63: 0.008873848033 | G63: 0.008873848033 | H63: 1.021933 | I63: 0 | J63: 0.005324305537 | K63: 0.005324305537
A64: =A27 -> 1 | B64: 19 | D64: 0 | E64: 0 | F64: 0 | G64: 0 | H64: 0 | I64: 0 | J64: 0 | K64: 0
A65: =A28 -> 1 | B65: 20 | D65: 0 | E65: 0 | F65: 0 | G65: 0 | H65: 0 | I65: 0 | J65: 0 | K65: 0
A66: =A29 -> 1 | B66: 21 | D66: 0 | E66: 0 | F66: 0 | G66: 0 | H66: 0 | I66: 0 | J66: 0 | K66: 0
A67: =A30 -> 1 | B67: 22 | D67: 0 | E67: 0 | F67: 0 | G67: 0 | H67: 0 | I67: 0 | J67: 0 | K67: 0
A68: =A31 -> 1 | B68: 23 | D68: 0 | E68: 0 | F68: 0 | G68: 0 | H68: 0 | I68: 0 | J68: 0 | K68: 0
A69: =A32 -> 1 | B69: 24 | D69: 0 | E69: 0 | F69: 0 | G69: 0 | H69: 0 | I69: 0 | J69: 0 | K69: 0
A70: =A33 -> 1 | B70: 25 | D70: 0 | E70: 0 | F70: 0 | G70: 0 | H70: 0 | I70: 0 | J70: 0 | K70: 0
A71: =A34 -> 1 | B71: 26 | D71: 0 | E71: 0 | F71: 0 | G71: 0 | H71: 0 | I71: 0 | J71: 0 | K71: 0
A72: =A35 -> 1 | B72: 27 | D72: 0 | E72: 0 | F72: 0 | G72: 0 | H72: 0 | I72: 0 | J72: 0 | K72: 0
A73: =A36 -> 1 | B73: 28 | D73: 0 | E73: 0 | F73: 0 | G73: 0 | H73: 0 | I73: 0 | J73: 0 | K73: 0
A74: =A37 -> 1 | B74: 29 | D74: 0 | E74: 0 | F74: 0 | G74: 0 | H74: 0 | I74: 0 | J74: 0 | K74: 0
A75: =A38 -> 1 | B75: 30 | D75: 0 | E75: 0 | F75: 0 | G75: 0 | H75: 0 | I75: 0 | J75: 0 | K75: 0
A76: =A39 -> 1 | B76: 31 | D76: 0 | E76: 0 | F76: 0 | G76: 0 | H76: 0 | I76: 0 | J76: 0 | K76: 0
A77: =A40 -> 1 | B77: 32 | D77: 0 | E77: 0 | F77: 0 | G77: 0 | H77: 0 | I77: 0 | J77: 0 | K77: 0
A78: =A41 -> 1 | B78: 33 | D78: 0 | E78: 0 | F78: 0 | G78: 0 | H78: 0 | I78: 0 | J78: 0 | K78: 0
A79: =A42 -> 1 | B79: 34 | D79: 0 | E79: 0 | F79: 0 | G79: 0 | H79: 0 | I79: 0 | J79: 0 | K79: 0
A80: =A43 -> 1 | B80: 35 | D80: 0 | E80: 0 | F80: 0 | G80: 0 | H80: 0 | I80: 0 | J80: 0 | K80: 0
A81: =A9 -> 1 | B81: Total | D81: =+SUM(D46:D80) -> 203.364667 | E81: =+SUM(E46:E80) -> 23.81995057 | F81: 11.80301639 | G81: 10.20146192 | H81: 203.364667 | I81: 34.33207606 | J81: 18.48332382 | K81: 14.45130802 | L81: =+X8 -> 7 | M81: =+Y8 -> 10 | N81: =+Z8 -> 7
D82: =D81 -> 203.364667 | E82: Map Unit Size in Acres | G82: =FieldBeeForm!E14 -> 13190 | H82: Value entered in FieldBeeForm (Should be same as cell C57)
A83: Enter only in yellow cells. Leave rest untouched. | G83: Enter the current year age in column G for each vegetation type. This age will be added to the assessment year (input on Field data form) to determine time series age in column K. If you are interested in just the current effects, enter a '0' in cell E11 of the Field data form.
A85: Map Unit | B85: Vegetation Entry | C85: Map Unit Size | D85: Spatial extent of Veg Type | E85: Existing Cover Class for VegType | F85: Species/ VegType | G85: Existing Age of Average Plant (for S enter 1, for Sa enter 2, for P enter 3, for M enter 5, for D enter 10) | H85: Species/Vegetation Type Descriptions | I85: Ht Rate | J85: Ht max | K85: Future Age | L85: Future Height | M85: Canopy Width Max (m) | N85: Canopy Width Rate | O85: Existing Age canopy area per plant | Q85: Estimated # Individuals | R85: Future Horizontal Surface Area per plant (width x width) | S85: Future Vertical Surface Area per plant (width x height) | T85: Horizontal Surface Area Across Map Unit | U85: Vertical Surface Area Across Map Unit | V85: Season(s) | W85: Season(s) (.) | X85: Early | Y85: Mid | Z85: Late
A86: # | B86: # | C86: sq ft | D86: m2 | E86: % | F86: code | G86: yrs | I86: m/yr | J86: m | K86: yrs | L86: m | M86: m | N86: m/yr | O86: m2 | Q86: number | R86: m2 | S86: m2 | T86: m2 | U86: m2 | X86: =SUM(IF(FREQUENCY(MATCH(X87:X121, X87:X121,0),MATCH(X87:X121, X87:X121,0))>0,1))-1 -> 7 | Y86: =SUM(IF(FREQUENCY(MATCH(Y87:Y121, Y87:Y121,0),MATCH(Y87:Y121, Y87:Y121,0))>0,1))-1 -> 10 | Z86: =SUM(IF(FREQUENCY(MATCH(Z87:Z121, Z87:Z121,0),MATCH(Z87:Z121, Z87:Z121,0))>0,1))-1 -> 7
A87: 2 | B87: 1 | D87: =(0.092903*C87)*E87 -> 0 | E87: 0.06 | F87: 1600 | G87: 5 | H87: =VLOOKUP(F87,VegTypeParameters!A:G,2,FALSE) -> Atriplex | I87: =VLOOKUP($F87,VegTypeParameters!$A:$G,5,FALSE) -> 3.296296296 | J87: =VLOOKUP($F87,VegTypeParameters!$A:$G,4,FALSE) -> 3 | K87: =G87+FieldBeeForm!$E$11 -> 17 | L87: =IF(J87>0,J87*(1-EXP(-I87*K87/J87)), 0) -> 2.999999977 | M87: =(VLOOKUP($F87,VegTypeParameters!A:G,6,FALSE)) -> 5 | N87: =(VLOOKUP($F87,VegTypeParameters!A:G,7,FALSE)) -> 7.111111111 | O87: =IF(M87>0, (M87*(1-EXP(-N87*G87/M87)))*(M87*(1-EXP(-N87*G87/M87))),0) -> 24.95921725 | Q87: =IF(O87>0, (D87*E87)/O87,0) -> 0 | R87: =IF(M87>0, (M87*(1-EXP(-N87*K87/M87)))*(M87*(1-EXP(-N87*K87/M87))), 0) -> 25 | S87: =IF(M87>0,(M87*(1-EXP(-N87*K87/M87)))*L87,0) -> 14.99999988 | T87: =R87*Q87 -> 0 | U87: =S87*Q87 -> 0 | V87: =VLOOKUP($F87,VegTypeParameters!$A:$H,8,FALSE) -> Mid/Late | W87: =+IF(ISNA(V87), ".", V87) -> Mid/Late | X87: =IF($W87="Early/Mid",$H87,IF($W87="Early", $H87, IF($W87="Early/Mid/Late", $H87,"."))) -> . | Y87: =IF($W87="Early/Mid",$H87,IF($W87="Mid", $H87, IF($W87="Mid/Late", $H87, IF($W87="Early/Mid/Late", $H87,".")))) -> Atriplex | Z87: =IF($W87="Mid/Late",$H87,IF($W87="Late", $H87, IF($W87="Early/Mid/Late", $H87,"."))) -> Atriplex
A88: 2 | B88: 2 | C88: =C$87 -> 0 | D88: =(0.092903*C88)*E88 -> 0 | E88: 0.03 | F88: 4200 | G88: 3 | H88: =VLOOKUP(F88,VegTypeParameters!A:G,2,FALSE) -> Helianthus | I88: =VLOOKUP($F88,VegTypeParameters!$A:$G,5,FALSE) -> 6.5 | J88: =VLOOKUP($F88,VegTypeParameters!$A:$G,4,FALSE) -> 2.5 | K88: =G88+FieldBeeForm!$E$11 -> 15 | L88: 2.5 | M88: =(VLOOKUP($F88,VegTypeParameters!A:G,6,FALSE)) -> 0.75 | N88: =(VLOOKUP($F88,VegTypeParameters!A:G,7,FALSE)) -> 1.25 | O88: 0.5549453471 | Q88: 0 | R88: 0.5625 | S88: 1.875 | T88: 0 | U88: 0 | V88: =VLOOKUP($F88,VegTypeParameters!$A:$H,8,FALSE) -> Mid/Late | W88: =+IF(ISNA(V88), ".", V88) -> Mid/Late | X88: =IF($W88="Early/Mid",$H88,IF($W88="Early", $H88, IF($W88="Early/Mid/Late", $H88,"."))) -> . | Y88: =IF($W88="Early/Mid",$H88,IF($W88="Mid", $H88, IF($W88="Mid/Late", $H88, IF($W88="Early/Mid/Late", $H88,".")))) -> Helianthus | Z88: =IF($W88="Mid/Late",$H88,IF($W88="Late", $H88, IF($W88="Early/Mid/Late", $H88,"."))) -> Helianthus
A89: 2 | B89: 3 | C89: =C$87 -> 0 | D89: 0 | E89: 0.08 | F89: 4000 | G89: 3 | H89: =VLOOKUP(F89,VegTypeParameters!A:G,2,FALSE) -> Grindelia | I89: =VLOOKUP($F89,VegTypeParameters!$A:$G,5,FALSE) -> 1.666666667 | J89: =VLOOKUP($F89,VegTypeParameters!$A:$G,4,FALSE) -> 2.5 | K89: =G89+FieldBeeForm!$E$11 -> 15 | L89: 2.4998865 | M89: =(VLOOKUP($F89,VegTypeParameters!A:G,6,FALSE)) -> 2 | N89: =(VLOOKUP($F89,VegTypeParameters!A:G,7,FALSE)) -> 1.333333333 | O89: 2.99058029 | Q89: 0 | R89: 3.999636809 | S89: 4.999546011 | T89: 0 | U89: 0 | V89: =VLOOKUP($F89,VegTypeParameters!$A:$H,8,FALSE) -> Mid/Late | W89: Mid/Late | X89: . | Y89: Grindelia | Z89: Grindelia
A90: 2 | B90: 4 | C90: 0 | D90: 0 | E90: 0.08 | F90: 7000 | G90: 3 | H90: =VLOOKUP(F90,VegTypeParameters!A:G,2,FALSE) -> Salix (shrub) | I90: =VLOOKUP($F90,VegTypeParameters!$A:$G,5,FALSE) -> 0.73 | J90: =VLOOKUP($F90,VegTypeParameters!$A:$G,4,FALSE) -> 3.5 | K90: =G90+FieldBeeForm!$E$11 -> 15 | L90: 3.346768964 | M90: =(VLOOKUP($F90,VegTypeParameters!A:G,6,FALSE)) -> 2.5 | N90: =(VLOOKUP($F90,VegTypeParameters!A:G,7,FALSE)) -> 0.55 | O90: 1.458953956 | Q90: 0 | R90: 5.797462708 | S90: 8.058323811 | T90: 0 | U90: 0 | V90: =VLOOKUP($F90,VegTypeParameters!$A:$H,8,FALSE) -> Early | W90: Early | X90: Salix (shrub) | Y90: . | Z90: .
A91: 2 | B91: 5 | C91: 0 | D91: 0 | E91: 0.08 | F91: 8400 | G91: 5 | H91: =VLOOKUP(F91,VegTypeParameters!A:G,2,FALSE) -> Weeds, non-invasive and not beneficial to pollinators | I91: =VLOOKUP($F91,VegTypeParameters!$A:$G,5,FALSE) -> 0 | J91: =VLOOKUP($F91,VegTypeParameters!$A:$G,4,FALSE) -> 0 | K91: =G91+FieldBeeForm!$E$11 -> 17 | L91: 0 | M91: =(VLOOKUP($F91,VegTypeParameters!A:G,6,FALSE)) -> 0 | N91: =(VLOOKUP($F91,VegTypeParameters!A:G,7,FALSE)) -> 0 | O91: 0 | Q91: 0 | R91: 0 | S91: 0 | T91: 0 | U91: 0 | V91: =VLOOKUP($F91,VegTypeParameters!$A:$H,8,FALSE) -> Never | W91: Never | X91: . | Y91: . | Z91: .
A92: 2 | B92: 6 | C92: 0 | D92: 0 | E92: 0.08 | F92: 5300 | G92: 3 | H92: =VLOOKUP(F92,VegTypeParameters!A:G,2,FALSE) -> Medicago | I92: =VLOOKUP($F92,VegTypeParameters!$A:$G,5,FALSE) -> 0.5 | J92: =VLOOKUP($F92,VegTypeParameters!$A:$G,4,FALSE) -> 0.5 | K92: =G92+FieldBeeForm!$E$11 -> 15 | L92: 0.499999847 | M92: =(VLOOKUP($F92,VegTypeParameters!A:G,6,FALSE)) -> 0.7 | N92: =(VLOOKUP($F92,VegTypeParameters!A:G,7,FALSE)) -> 0.7 | O92: 0.4424232616 | Q92: 0 | R92: 0.4899997002 | S92: 0.3499997859 | T92: 0 | U92: 0 | V92: =VLOOKUP($F92,VegTypeParameters!$A:$H,8,FALSE) -> Mid/Late | W92: Mid/Late | X92: . | Y92: Medicago | Z92: Medicago
A93: 2 | B93: 7 | C93: 0 | D93: 0 | E93: 0.08 | F93: 1600 | G93: 3 | H93: =VLOOKUP(F93,VegTypeParameters!A:G,2,FALSE) -> Atriplex | I93: =VLOOKUP($F93,VegTypeParameters!$A:$G,5,FALSE) -> 3.296296296 | J93: =VLOOKUP($F93,VegTypeParameters!$A:$G,4,FALSE) -> 3 | K93: =G93+FieldBeeForm!$E$11 -> 15 | L93: 2.999999791 | M93: =(VLOOKUP($F93,VegTypeParameters!A:G,6,FALSE)) -> 5 | N93: =(VLOOKUP($F93,VegTypeParameters!A:G,7,FALSE)) -> 7.111111111 | O93: 24.3034966 | Q93: 0 | R93: 24.99999997 | S93: 14.99999895 | T93: 0 | U93: 0 | V93: =VLOOKUP($F93,VegTypeParameters!$A:$H,8,FALSE) -> Mid/Late | W93: Mid/Late | X93: . | Y93: Atriplex | Z93: Atriplex
A94: 2 | B94: 8 | C94: 0 | D94: 0 | E94: 0.03 | F94: 7500 | G94: 3 | H94: =VLOOKUP(F94,VegTypeParameters!A:G,2,FALSE) -> Scrophularia | I94: =VLOOKUP($F94,VegTypeParameters!$A:$G,5,FALSE) -> 1.2 | J94: =VLOOKUP($F94,VegTypeParameters!$A:$G,4,FALSE) -> 1.2 | K94: =G94+FieldBeeForm!$E$11 -> 15 | L94: 1.199999633 | M94: =(VLOOKUP($F94,VegTypeParameters!A:G,6,FALSE)) -> 0.3 | N94: =(VLOOKUP($F94,VegTypeParameters!A:G,7,FALSE)) -> 0.3 | O94: 0.08126141539 | Q94: 0 | R94: 0.08999994494 | S94: 0.3599997798 | T94: 0 | U94: 0 | V94: =VLOOKUP($F94,VegTypeParameters!$A:$H,8,FALSE) -> Early/Mid | W94: Early/Mid | X94: Scrophularia | Y94: Scrophularia | Z94: .
A95: 2 | B95: 9 | C95: 0 | D95: 0 | E95: 0.03 | F95: 3500 | G95: 3 | H95: =VLOOKUP(F95,VegTypeParameters!A:G,2,FALSE) -> Ficus carica | I95: =VLOOKUP($F95,VegTypeParameters!$A:$G,5,FALSE) -> 0 | J95: =VLOOKUP($F95,VegTypeParameters!$A:$G,4,FALSE) -> 0 | K95: =G95+FieldBeeForm!$E$11 -> 15 | L95: 0 | M95: =(VLOOKUP($F95,VegTypeParameters!A:G,6,FALSE)) -> 0 | N95: =(VLOOKUP($F95,VegTypeParameters!A:G,7,FALSE)) -> 0 | O95: 0 | Q95: 0 | R95: 0 | S95: 0 | T95: 0 | U95: 0 | V95: =VLOOKUP($F95,VegTypeParameters!$A:$H,8,FALSE) -> Never | W95: Never | X95: . | Y95: . | Z95: .
A96: 2 | B96: 10 | C96: 0 | D96: 0 | E96: 0.03 | F96: 6200 | G96: 3 | H96: =VLOOKUP(F96,VegTypeParameters!A:G,2,FALSE) -> Other late blooming native plants beneficial to pollinators | I96: =VLOOKUP($F96,VegTypeParameters!$A:$G,5,FALSE) -> 0.25 | J96: =VLOOKUP($F96,VegTypeParameters!$A:$G,4,FALSE) -> 1 | K96: =G96+FieldBeeForm!$E$11 -> 15 | L96: 0.9764822541 | M96: =(VLOOKUP($F96,VegTypeParameters!A:G,6,FALSE)) -> 0.5 | N96: =(VLOOKUP($F96,VegTypeParameters!A:G,7,FALSE)) -> 0.25 | O96: 0.150881687 | Q96: 0 | R96: 0.2497235343 | S96: 0.4879710885 | T96: 0 | U96: 0 | V96: =VLOOKUP($F96,VegTypeParameters!$A:$H,8,FALSE) -> Late | W96: Late | X96: . | Y96: . | Z96: Other late blooming native plants beneficial to pollinators
A97: 2 | B97: 11 | C97: 0 | D97: 0 | E97: 0.03 | F97: 2500 | G97: 3 | H97: =VLOOKUP(F97,VegTypeParameters!A:G,2,FALSE) -> Clarkia | I97: =VLOOKUP($F97,VegTypeParameters!$A:$G,5,FALSE) -> 0.4 | J97: =VLOOKUP($F97,VegTypeParameters!$A:$G,4,FALSE) -> 0.4 | K97: =G97+FieldBeeForm!$E$11 -> 15 | L97: 0.3999998776 | M97: =(VLOOKUP($F97,VegTypeParameters!A:G,6,FALSE)) -> 0.1 | N97: =(VLOOKUP($F97,VegTypeParameters!A:G,7,FALSE)) -> 0.1 | O97: 0.009029046154 | Q97: 0 | R97: 0.009999993882 | S97: 0.03999997553 | T97: 0 | U97: 0 | V97: =VLOOKUP($F97,VegTypeParameters!$A:$H,8,FALSE) -> Early/Mid | W97: Early/Mid | X97: Clarkia | Y97: Clarkia | Z97: .
A98: 2 | B98: 12 | C98: 0 | D98: 0 | E98: 0.08 | F98: 5000 | G98: 3 | H98: =VLOOKUP(F98,VegTypeParameters!A:G,2,FALSE) -> Lupinus spp. | I98: =VLOOKUP($F98,VegTypeParameters!$A:$G,5,FALSE) -> 0.98 | J98: =VLOOKUP($F98,VegTypeParameters!$A:$G,4,FALSE) -> 3 | K98: =G98+FieldBeeForm!$E$11 -> 15 | L98: 2.977660251 | M98: =(VLOOKUP($F98,VegTypeParameters!A:G,6,FALSE)) -> 3 | N98: =(VLOOKUP($F98,VegTypeParameters!A:G,7,FALSE)) -> 1.08 | O98: 3.925206628 | Q98: 0 | R98: 8.918885139 | S98: 8.892634222 | T98: 0 | U98: 0 | V98: =VLOOKUP($F98,VegTypeParameters!$A:$H,8,FALSE) -> Early/Mid/Late | W98: Early/Mid/Late | X98: Lupinus spp. | Y98: Lupinus spp. | Z98: Lupinus spp.
A99: 2 | B99: 13 | C99: 0 | D99: 0 | E99: 0.08 | F99: 6000 | G99: 3 | H99: =VLOOKUP(F99,VegTypeParameters!A:G,2,FALSE) -> Orchard | I99: =VLOOKUP($F99,VegTypeParameters!$A:$G,5,FALSE) -> 0.5 | J99: =VLOOKUP($F99,VegTypeParameters!$A:$G,4,FALSE) -> 10 | K99: =G99+FieldBeeForm!$E$11 -> 15 | L99: 5.276334473 | M99: =(VLOOKUP($F99,VegTypeParameters!A:G,6,FALSE)) -> 6 | N99: =(VLOOKUP($F99,VegTypeParameters!A:G,7,FALSE)) -> 0.5 | O99: 1.761447369 | Q99: 0 | R99: 18.32671458 | S99: 22.58783602 | T99: 0 | U99: 0 | V99: =VLOOKUP($F99,VegTypeParameters!$A:$H,8,FALSE) -> Early | W99: Early | X99: Orchard | Y99: . | Z99: .
A100: 2 | B100: 14 | C100: 0 | D100: 0 | E100: 0.03 | F100: 3300 | G100: 5 | H100: =VLOOKUP(F100,VegTypeParameters!A:G,2,FALSE) -> Eschscholzia | I100: =VLOOKUP($F100,VegTypeParameters!$A:$G,5,FALSE) -> 0.6 | J100: =VLOOKUP($F100,VegTypeParameters!$A:$G,4,FALSE) -> 0.3 | K100: =G100+FieldBeeForm!$E$11 -> 17 | L100: 0.3 | M100: =(VLOOKUP($F100,VegTypeParameters!A:G,6,FALSE)) -> 0.15 | N100: =(VLOOKUP($F100,VegTypeParameters!A:G,7,FALSE)) -> 0.3 | O100: 0.02249795705 | Q100: 0 | R100: 0.0225 | S100: 0.045 | T100: 0 | U100: 0 | V100: =VLOOKUP($F100,VegTypeParameters!$A:$H,8,FALSE) -> Early/Mid | W100: Early/Mid | X100: Eschscholzia | Y100: Eschscholzia | Z100: .
A101: 2 | B101: 15 | C101: 0 | D101: 0 | E101: 0.03 | F101: 5600 | G101: 3 | H101: =VLOOKUP(F101,VegTypeParameters!A:G,2,FALSE) -> Native forbs and graminoids not beneficial to pollinators | I101: =VLOOKUP($F101,VegTypeParameters!$A:$G,5,FALSE) -> 0 | J101: =VLOOKUP($F101,VegTypeParameters!$A:$G,4,FALSE) -> 0 | K101: =G101+FieldBeeForm!$E$11 -> 15 | L101: =IF(J101>0,J101*(1-EXP(-I101*K101/J101)), 0) -> 0 | M101: =(VLOOKUP($F101,VegTypeParameters!A:G,6,FALSE)) -> 0 | N101: =(VLOOKUP($F101,VegTypeParameters!A:G,7,FALSE)) -> 0 | O101: =IF(M101>0, (M101*(1-EXP(-N101*G101/M101)))*(M101*(1-EXP(-N101*G101/M101))),0) -> 0 | Q101: =IF(O101>0, (D101*E101)/O101,0) -> 0 | R101: =IF(M101>0, (M101*(1-EXP(-N101*K101/M101)))*(M101*(1-EXP(-N101*K101/M101))), 0) -> 0 | S101: =IF(M101>0,(M101*(1-EXP(-N101*K101/M101)))*L101,0) -> 0 | T101: 0 | U101: 0 | V101: =VLOOKUP($F101,VegTypeParameters!$A:$H,8,FALSE) -> Never | W101: Never | X101: . | Y101: . | Z101: .
A102: 2 | B102: 16 | C102: 0 | D102: 0 | E102: 0.08 | F102: 3800 | G102: 3 | H102: =VLOOKUP(F102,VegTypeParameters!A:G,2,FALSE) -> Gilia | I102: =VLOOKUP($F102,VegTypeParameters!$A:$G,5,FALSE) -> 0.6 | J102: =VLOOKUP($F102,VegTypeParameters!$A:$G,4,FALSE) -> 0.3 | K102: =G102+FieldBeeForm!$E$11 -> 15 | L102: =IF(J102>0,J102*(1-EXP(-I102*K102/J102)), 0) -> 0.3 | M102: =(VLOOKUP($F102,VegTypeParameters!A:G,6,FALSE)) -> 0.15 | N102: =(VLOOKUP($F102,VegTypeParameters!A:G,7,FALSE)) -> 0.3 | O102: =IF(M102>0, (M102*(1-EXP(-N102*G102/M102)))*(M102*(1-EXP(-N102*G102/M102))),0) -> 0.0223885944 | Q102: =IF(O102>0, (D102*E102)/O102,0) -> 0 | R102: =IF(M102>0, (M102*(1-EXP(-N102*K102/M102)))*(M102*(1-EXP(-N102*K102/M102))), 0) -> 0.0225 | S102: =IF(M102>0,(M102*(1-EXP(-N102*K102/M102)))*L102,0) -> 0.045 | T102: 0 | U102: 0 | V102: =VLOOKUP($F102,VegTypeParameters!$A:$H,8,FALSE) -> Mid | W102: Mid | X102: . | Y102: Gilia | Z102: .
A103: 2 | B103: 17 | C103: 0 | D103: 0 | E103: 0.08 | F103: 1500 | G103: 3 | H103: =VLOOKUP(F103,VegTypeParameters!A:G,2,FALSE) -> Asclepias | I103: =VLOOKUP($F103,VegTypeParameters!$A:$G,5,FALSE) -> 0.8 | J103: =VLOOKUP($F103,VegTypeParameters!$A:$G,4,FALSE) -> 0.8 | K103: =G103+FieldBeeForm!$E$11 -> 15 | L103: 0.7999997553 | M103: =(VLOOKUP($F103,VegTypeParameters!A:G,6,FALSE)) -> 0.2 | N103: =(VLOOKUP($F103,VegTypeParameters!A:G,7,FALSE)) -> 0.2 | O103: 0.03611618462 | Q103: 0 | R103: 0.03999997553 | S103: 0.1599999021 | T103: 0 | U103: 0 | V103: =VLOOKUP($F103,VegTypeParameters!$A:$H,8,FALSE) -> Early/Mid/Late | W103: Early/Mid/Late | X103: Asclepias | Y103: Asclepias | Z103: Asclepias
A104: 2 | B104: 18 | C104: 0 | D104: 0 | E104: 0.005 | F104: 1600 | G104: 1 | H104: =VLOOKUP(F104,VegTypeParameters!A:G,2,FALSE) -> Atriplex | I104: =VLOOKUP($F104,VegTypeParameters!$A:$G,5,FALSE) -> 3.296296296 | J104: =VLOOKUP($F104,VegTypeParameters!$A:$G,4,FALSE) -> 3 | K104: =G104+FieldBeeForm!$E$11 -> 13 | L104: 2.999998122 | M104: =(VLOOKUP($F104,VegTypeParameters!A:G,6,FALSE)) -> 5 | N104: =(VLOOKUP($F104,VegTypeParameters!A:G,7,FALSE)) -> 7.111111111 | O104: 14.39529076 | Q104: 0 | R104: 24.99999953 | S104: 14.99999047 | T104: 0 | U104: 0 | V104: =VLOOKUP($F104,VegTypeParameters!$A:$H,8,FALSE) -> Mid/Late | W104: Mid/Late | X104: . | Y104: Atriplex | Z104: Atriplex
A105: 2 | B105: 19 | C105: 0 | D105: 0 | H105: =VLOOKUP(F105,VegTypeParameters!A:G,2,FALSE) ->  | I105: =VLOOKUP($F105,VegTypeParameters!$A:$G,5,FALSE) ->  | J105: =VLOOKUP($F105,VegTypeParameters!$A:$G,4,FALSE) ->  | K105: =G105+FieldBeeForm!$E$11 -> 12 | M105: =(VLOOKUP($F105,VegTypeParameters!A:G,6,FALSE)) ->  | N105: =(VLOOKUP($F105,VegTypeParameters!A:G,7,FALSE)) ->  | V105: =VLOOKUP($F105,VegTypeParameters!$A:$H,8,FALSE) ->  | W105: . | X105: . | Y105: . | Z105: .
A106: 2 | B106: 20 | C106: 0 | D106: 0 | H106: =VLOOKUP(F106,VegTypeParameters!A:G,2,FALSE) ->  | I106: =VLOOKUP($F106,VegTypeParameters!$A:$G,5,FALSE) ->  | J106: =VLOOKUP($F106,VegTypeParameters!$A:$G,4,FALSE) ->  | K106: =G106+FieldBeeForm!$E$11 -> 12 | M106: =(VLOOKUP($F106,VegTypeParameters!A:G,6,FALSE)) ->  | N106: =(VLOOKUP($F106,VegTypeParameters!A:G,7,FALSE)) ->  | V106: =VLOOKUP($F106,VegTypeParameters!$A:$H,8,FALSE) ->  | W106: . | X106: . | Y106: . | Z106: .
A107: 2 | B107: 21 | C107: 0 | D107: 0 | H107: =VLOOKUP(F107,VegTypeParameters!A:G,2,FALSE) ->  | I107: =VLOOKUP($F107,VegTypeParameters!$A:$G,5,FALSE) ->  | J107: =VLOOKUP($F107,VegTypeParameters!$A:$G,4,FALSE) ->  | K107: =G107+FieldBeeForm!$E$11 -> 12 | M107: =(VLOOKUP($F107,VegTypeParameters!A:G,6,FALSE)) ->  | N107: =(VLOOKUP($F107,VegTypeParameters!A:G,7,FALSE)) ->  | V107: =VLOOKUP($F107,VegTypeParameters!$A:$H,8,FALSE) ->  | W107: . | X107: . | Y107: . | Z107: .
A108: 2 | B108: 22 | C108: 0 | D108: 0 | H108: =VLOOKUP(F108,VegTypeParameters!A:G,2,FALSE) ->  | I108: =VLOOKUP($F108,VegTypeParameters!$A:$G,5,FALSE) ->  | J108: =VLOOKUP($F108,VegTypeParameters!$A:$G,4,FALSE) ->  | K108: =G108+FieldBeeForm!$E$11 -> 12 | M108: =(VLOOKUP($F108,VegTypeParameters!A:G,6,FALSE)) ->  | N108: =(VLOOKUP($F108,VegTypeParameters!A:G,7,FALSE)) ->  | V108: =VLOOKUP($F108,VegTypeParameters!$A:$H,8,FALSE) ->  | W108: . | X108: . | Y108: . | Z108: .
A109: 2 | B109: 23 | C109: 0 | D109: 0 | H109: =VLOOKUP(F109,VegTypeParameters!A:G,2,FALSE) ->  | I109: =VLOOKUP($F109,VegTypeParameters!$A:$G,5,FALSE) ->  | J109: =VLOOKUP($F109,VegTypeParameters!$A:$G,4,FALSE) ->  | K109: =G109+FieldBeeForm!$E$11 -> 12 | M109: =(VLOOKUP($F109,VegTypeParameters!A:G,6,FALSE)) ->  | N109: =(VLOOKUP($F109,VegTypeParameters!A:G,7,FALSE)) ->  | V109: =VLOOKUP($F109,VegTypeParameters!$A:$H,8,FALSE) ->  | W109: . | X109: . | Y109: . | Z109: .
A110: 2 | B110: 24 | C110: 0 | D110: 0 | H110: =VLOOKUP(F110,VegTypeParameters!A:G,2,FALSE) ->  | I110: =VLOOKUP($F110,VegTypeParameters!$A:$G,5,FALSE) ->  | J110: =VLOOKUP($F110,VegTypeParameters!$A:$G,4,FALSE) ->  | K110: =G110+FieldBeeForm!$E$11 -> 12 | M110: =(VLOOKUP($F110,VegTypeParameters!A:G,6,FALSE)) ->  | N110: =(VLOOKUP($F110,VegTypeParameters!A:G,7,FALSE)) ->  | V110: =VLOOKUP($F110,VegTypeParameters!$A:$H,8,FALSE) ->  | W110: . | X110: . | Y110: . | Z110: .
A111: 2 | B111: 25 | C111: 0 | D111: 0 | H111: =VLOOKUP(F111,VegTypeParameters!A:G,2,FALSE) ->  | I111: =VLOOKUP($F111,VegTypeParameters!$A:$G,5,FALSE) ->  | J111: =VLOOKUP($F111,VegTypeParameters!$A:$G,4,FALSE) ->  | K111: =G111+FieldBeeForm!$E$11 -> 12 | L111: =IF(J111>0,J111*(1-EXP(-I111*K111/J111)), 0) ->  | M111: =(VLOOKUP($F111,VegTypeParameters!A:G,6,FALSE)) ->  | N111: =(VLOOKUP($F111,VegTypeParameters!A:G,7,FALSE)) ->  | O111: =IF(M111>0, (M111*(1-EXP(-N111*G111/M111)))*(M111*(1-EXP(-N111*G111/M111))),0) ->  | Q111: =IF(O111>0, (D111*E111)/O111,0) ->  | R111: =IF(M111>0, (M111*(1-EXP(-N111*K111/M111)))*(M111*(1-EXP(-N111*K111/M111))), 0) ->  | S111: =IF(M111>0,(M111*(1-EXP(-N111*K111/M111)))*L111,0) ->  | V111: =VLOOKUP($F111,VegTypeParameters!$A:$H,8,FALSE) ->  | W111: . | X111: . | Y111: . | Z111: .
A112: 2 | B112: 26 | C112: 0 | D112: 0 | H112: =VLOOKUP(F112,VegTypeParameters!A:G,2,FALSE) ->  | I112: =VLOOKUP($F112,VegTypeParameters!$A:$G,5,FALSE) ->  | J112: =VLOOKUP($F112,VegTypeParameters!$A:$G,4,FALSE) ->  | K112: =G112+FieldBeeForm!$E$11 -> 12 | L112: =IF(J112>0,J112*(1-EXP(-I112*K112/J112)), 0) ->  | M112: =(VLOOKUP($F112,VegTypeParameters!A:G,6,FALSE)) ->  | N112: =(VLOOKUP($F112,VegTypeParameters!A:G,7,FALSE)) ->  | O112: =IF(M112>0, (M112*(1-EXP(-N112*G112/M112)))*(M112*(1-EXP(-N112*G112/M112))),0) ->  | Q112: =IF(O112>0, (D112*E112)/O112,0) ->  | R112: =IF(M112>0, (M112*(1-EXP(-N112*K112/M112)))*(M112*(1-EXP(-N112*K112/M112))), 0) ->  | S112: =IF(M112>0,(M112*(1-EXP(-N112*K112/M112)))*L112,0) ->  | V112: =VLOOKUP($F112,VegTypeParameters!$A:$H,8,FALSE) ->  | W112: . | X112: . | Y112: . | Z112: .
A113: 2 | B113: 27 | C113: 0 | D113: 0 | H113: =VLOOKUP(F113,VegTypeParameters!A:G,2,FALSE) ->  | I113: =VLOOKUP($F113,VegTypeParameters!$A:$G,5,FALSE) ->  | J113: =VLOOKUP($F113,VegTypeParameters!$A:$G,4,FALSE) ->  | K113: =G113+FieldBeeForm!$E$11 -> 12 | M113: =(VLOOKUP($F113,VegTypeParameters!A:G,6,FALSE)) ->  | N113: =(VLOOKUP($F113,VegTypeParameters!A:G,7,FALSE)) ->  | V113: =VLOOKUP($F113,VegTypeParameters!$A:$H,8,FALSE) ->  | W113: . | X113: . | Y113: . | Z113: .
A114: 2 | B114: 28 | C114: 0 | D114: 0 | H114: =VLOOKUP(F114,VegTypeParameters!A:G,2,FALSE) ->  | I114: =VLOOKUP($F114,VegTypeParameters!$A:$G,5,FALSE) ->  | J114: =VLOOKUP($F114,VegTypeParameters!$A:$G,4,FALSE) ->  | K114: =G114+FieldBeeForm!$E$11 -> 12 | M114: =(VLOOKUP($F114,VegTypeParameters!A:G,6,FALSE)) ->  | N114: =(VLOOKUP($F114,VegTypeParameters!A:G,7,FALSE)) ->  | V114: =VLOOKUP($F114,VegTypeParameters!$A:$H,8,FALSE) ->  | W114: . | X114: . | Y114: . | Z114: .
A115: 2 | B115: 29 | C115: 0 | D115: 0 | H115: =VLOOKUP(F115,VegTypeParameters!A:G,2,FALSE) ->  | I115: =VLOOKUP($F115,VegTypeParameters!$A:$G,5,FALSE) ->  | J115: =VLOOKUP($F115,VegTypeParameters!$A:$G,4,FALSE) ->  | K115: =G115+FieldBeeForm!$E$11 -> 12 | M115: =(VLOOKUP($F115,VegTypeParameters!A:G,6,FALSE)) ->  | N115: =(VLOOKUP($F115,VegTypeParameters!A:G,7,FALSE)) ->  | V115: =VLOOKUP($F115,VegTypeParameters!$A:$H,8,FALSE) ->  | W115: . | X115: . | Y115: . | Z115: .
A116: 2 | B116: 30 | C116: 0 | D116: 0 | H116: =VLOOKUP(F116,VegTypeParameters!A:G,2,FALSE) ->  | I116: =VLOOKUP($F116,VegTypeParameters!$A:$G,5,FALSE) ->  | J116: =VLOOKUP($F116,VegTypeParameters!$A:$G,4,FALSE) ->  | K116: =G116+FieldBeeForm!$E$11 -> 12 | M116: =(VLOOKUP($F116,VegTypeParameters!A:G,6,FALSE)) ->  | N116: =(VLOOKUP($F116,VegTypeParameters!A:G,7,FALSE)) ->  | V116: =VLOOKUP($F116,VegTypeParameters!$A:$H,8,FALSE) ->  | W116: . | X116: . | Y116: . | Z116: .
A117: 2 | B117: 31 | C117: 0 | D117: 0 | H117: =VLOOKUP(F117,VegTypeParameters!A:G,2,FALSE) ->  | I117: =VLOOKUP($F117,VegTypeParameters!$A:$G,5,FALSE) ->  | J117: =VLOOKUP($F117,VegTypeParameters!$A:$G,4,FALSE) ->  | K117: =G117+FieldBeeForm!$E$11 -> 12 | M117: =(VLOOKUP($F117,VegTypeParameters!A:G,6,FALSE)) ->  | N117: =(VLOOKUP($F117,VegTypeParameters!A:G,7,FALSE)) ->  | V117: =VLOOKUP($F117,VegTypeParameters!$A:$H,8,FALSE) ->  | W117: . | X117: . | Y117: . | Z117: .
A118: 2 | B118: 32 | C118: 0 | D118: 0 | H118: =VLOOKUP(F118,VegTypeParameters!A:G,2,FALSE) ->  | I118: =VLOOKUP($F118,VegTypeParameters!$A:$G,5,FALSE) ->  | J118: =VLOOKUP($F118,VegTypeParameters!$A:$G,4,FALSE) ->  | K118: =G118+FieldBeeForm!$E$11 -> 12 | M118: =(VLOOKUP($F118,VegTypeParameters!A:G,6,FALSE)) ->  | N118: =(VLOOKUP($F118,VegTypeParameters!A:G,7,FALSE)) ->  | V118: =VLOOKUP($F118,VegTypeParameters!$A:$H,8,FALSE) ->  | W118: . | X118: . | Y118: . | Z118: .
A119: 2 | B119: 33 | C119: 0 | D119: 0 | H119: =VLOOKUP(F119,VegTypeParameters!A:G,2,FALSE) ->  | I119: =VLOOKUP($F119,VegTypeParameters!$A:$G,5,FALSE) ->  | J119: =VLOOKUP($F119,VegTypeParameters!$A:$G,4,FALSE) ->  | K119: =G119+FieldBeeForm!$E$11 -> 12 | M119: =(VLOOKUP($F119,VegTypeParameters!A:G,6,FALSE)) ->  | N119: =(VLOOKUP($F119,VegTypeParameters!A:G,7,FALSE)) ->  | V119: =VLOOKUP($F119,VegTypeParameters!$A:$H,8,FALSE) ->  | W119: . | X119: . | Y119: . | Z119: .
A120: 2 | B120: 34 | C120: 0 | D120: 0 | H120: =VLOOKUP(F120,VegTypeParameters!A:G,2,FALSE) ->  | I120: =VLOOKUP($F120,VegTypeParameters!$A:$G,5,FALSE) ->  | J120: =VLOOKUP($F120,VegTypeParameters!$A:$G,4,FALSE) ->  | K120: =G120+FieldBeeForm!$E$11 -> 12 | M120: =(VLOOKUP($F120,VegTypeParameters!A:G,6,FALSE)) ->  | N120: =(VLOOKUP($F120,VegTypeParameters!A:G,7,FALSE)) ->  | V120: =VLOOKUP($F120,VegTypeParameters!$A:$H,8,FALSE) ->  | W120: . | X120: . | Y120: . | Z120: .
A121: 2 | B121: 35 | C121: 0 | D121: 0 | H121: =VLOOKUP(F121,VegTypeParameters!A:G,2,FALSE) ->  | I121: =VLOOKUP($F121,VegTypeParameters!$A:$G,5,FALSE) ->  | J121: =VLOOKUP($F121,VegTypeParameters!$A:$G,4,FALSE) ->  | K121: =G121+FieldBeeForm!$E$11 -> 12 | M121: =(VLOOKUP($F121,VegTypeParameters!A:G,6,FALSE)) ->  | N121: =(VLOOKUP($F121,VegTypeParameters!A:G,7,FALSE)) ->  | V121: =VLOOKUP($F121,VegTypeParameters!$A:$H,8,FALSE) ->  | W121: . | X121: . | Y121: . | Z121: .
D122: Horizontal extent of pollinator plant cover (m2) per season | H122: Vertical extent of pollinator plant cover (m2) per season | L122: Number of different pollinator plant species per season
A123: Map Unit # | B123: Vegetation Entry | D123: Spatial extent of Veg Type (m2) | E123: Early | F123: Mid | G123: Late | H123: Spatial extent of Veg Type (m2) | I123: Early | J123: Mid | K123: Late | L123: Early | M123: Mid | N123: Late
A124: =A87 -> 2 | B124: =B87 -> 1 | D124: =+IF(ISNA(VLOOKUP(B124,B$87:D$121, 3, FALSE)),0,VLOOKUP(B124,B$87:D$121, 3, FALSE)) -> 0 | E124: =+IF(SUMIFS(T$87:T$121, B$87:B$121, $B124, V$87:V$121, "*"&"Early"&"*") <=$D124, SUMIFS(T$87:T$121, B$87:B$121, $B124, V$87:V$121, "*"&"Early"&"*"), $D124) -> 0 | F124: =+IF(SUMIFS(T$87:T$121,B$87:B$121, $B124, V$87:V$121, "*"&"Mid"&"*") <=$D124, SUMIFS(T$87:T$121, B$87:B$121, $B124, V$87:V$121, "*"&"Mid"&"*"), $D124) -> 0 | G124: =+IF(SUMIFS(T$87:T$121, B$87:B$121, $B124, $V$87:$V$121, "*"&"Late"&"*") <=$D124, SUMIFS(T$87:T$121,B$87:B$121, $B124, $V$87:$V$121, "*"&"Late"&"*"), $D124) -> 0 | H124: =+IF(ISNA(VLOOKUP(B124,B$87:D$121, 3, FALSE)),0,VLOOKUP(B124,B$87:D$121, 3, FALSE)) -> 0 | I124: =+IF(SUMIFS($U87:$U$121,B$87:B$121, $B124, $V$87:$V$121, "*"&"Early"&"*") <=$D124, SUMIFS($U$87:$U$121, B$87:B$121, $B124, $V$87:$V$121, "*"&"Early"&"*"), $D124) -> 0 | J124: =+IF(SUMIFS($U$87:$U$121, $B$87:$B$121, $B124, $V$87:$V$121, "*"&"Mid"&"*") <=$D124, SUMIFS($U$87:$U$121, $B$87:$B$121, $B124, $V$87:$V$121, "*"&"Mid"&"*"), $D124) -> 0 | K124: =+IF(SUMIFS($U$87:$U$121, $B$87:$B$121, $B124, $V$87:$V$121, "*"&"Late"&"*") <=$D124, SUMIFS($U$87:$U$121, $B$87:$B$121, $B124, $V$87:$V$121, "*"&"Late"&"*"), $D124) -> 0
A125: =A88 -> 2 | B125: =B88 -> 2 | D125: =+IF(ISNA(VLOOKUP(B125,B$87:D$121, 3, FALSE)),0,VLOOKUP(B125,B$87:D$121, 3, FALSE)) -> 0 | E125: =+IF(SUMIFS(T$87:T$121, B$87:B$121, $B125, V$87:V$121, "*"&"Early"&"*") <=$D125, SUMIFS(T$87:T$121, B$87:B$121, $B125, V$87:V$121, "*"&"Early"&"*"), $D125) -> 0 | F125: =+IF(SUMIFS(T$87:T$121,B$87:B$121, $B125, V$87:V$121, "*"&"Mid"&"*") <=$D125, SUMIFS(T$87:T$121, B$87:B$121, $B125, V$87:V$121, "*"&"Mid"&"*"), $D125) -> 0 | G125: =+IF(SUMIFS(T$87:T$121, B$87:B$121, $B125, $V$87:$V$121, "*"&"Late"&"*") <=$D125, SUMIFS(T$87:T$121,B$87:B$121, $B125, $V$87:$V$121, "*"&"Late"&"*"), $D125) -> 0 | H125: =+IF(ISNA(VLOOKUP(B125,B$87:D$121, 3, FALSE)),0,VLOOKUP(B125,B$87:D$121, 3, FALSE)) -> 0 | I125: =+IF(SUMIFS($U$87:$U$121,B$87:B$121, $B125, $V$87:$V$121, "*"&"Early"&"*") <=$D125, SUMIFS($U$87:$U$121, B$87:B$121, $B125, $V$87:$V$121, "*"&"Early"&"*"), $D125) -> 0 | J125: =+IF(SUMIFS($U$87:$U$121, $B$87:$B$121, $B125, $V$87:$V$121, "*"&"Mid"&"*") <=$D125, SUMIFS($U$87:$U$121, $B$87:$B$121, $B125, $V$87:$V$121, "*"&"Mid"&"*"), $D125) -> 0 | K125: =+IF(SUMIFS($U$87:$U$121, $B$87:$B$121, $B125, $V$87:$V$121, "*"&"Late"&"*") <=$D125, SUMIFS($U$87:$U$121, $B$87:$B$121, $B125, $V$87:$V$121, "*"&"Late"&"*"), $D125) -> 0
A126: =A89 -> 2 | B126: 3 | D126: 0 | E126: 0 | F126: 0 | G126: 0 | H126: 0 | I126: =+IF(SUMIFS($U$87:$U$121,B$87:B$121, $B126, $V$87:$V$121, "*"&"Early"&"*") <=$D126, SUMIFS($U$87:$U$121, B$87:B$121, $B126, $V$87:$V$121, "*"&"Early"&"*"), $D126) -> 0 | J126: 0 | K126: 0
A127: =A90 -> 2 | B127: 4 | D127: 0 | E127: 0 | F127: 0 | G127: 0 | H127: 0 | I127: 0 | J127: 0 | K127: 0
A128: =A91 -> 2 | B128: 5 | D128: 0 | E128: 0 | F128: 0 | G128: 0 | H128: 0 | I128: 0 | J128: 0 | K128: 0
A129: =A92 -> 2 | B129: 6 | D129: 0 | E129: 0 | F129: 0 | G129: =+IF(SUMIFS(T$87:T$121, B$87:B$121, $B129, $V$87:$V$121, "*"&"Late"&"*") <=$D129, SUMIFS(T$87:T$121,B$87:B$121, $B129, $V$87:$V$121, "*"&"Late"&"*"), $D129) -> 0 | H129: 0 | I129: 0 | J129: 0 | K129: 0
A130: =A93 -> 2 | B130: 7 | D130: 0 | E130: 0 | F130: 0 | G130: 0 | H130: 0 | I130: 0 | J130: 0 | K130: 0
A131: =A94 -> 2 | B131: 8 | D131: 0 | E131: 0 | F131: 0 | G131: 0 | H131: 0 | I131: 0 | J131: 0 | K131: 0
A132: =A95 -> 2 | B132: 9 | D132: 0 | E132: 0 | F132: =+IF(SUMIFS(T$87:T$121,B$87:B$121, $B132, V$87:V$121, "*"&"Mid"&"*") <=$D132, SUMIFS(T$87:T$121, B$87:B$121, $B132, V$87:V$121, "*"&"Mid"&"*"), $D132) -> 0 | G132: 0 | H132: 0 | I132: 0 | J132: 0 | K132: 0
A133: =A96 -> 2 | B133: 10 | D133: 0 | E133: 0 | F133: 0 | G133: 0 | H133: 0 | I133: 0 | J133: 0 | K133: 0
A134: =A97 -> 2 | B134: 11 | D134: =+IF(ISNA(VLOOKUP(B134,B$87:D$121, 3, FALSE)),0,VLOOKUP(B134,B$87:D$121, 3, FALSE)) -> 0 | E134: =+IF(SUMIFS(T$87:T$121, B$87:B$121, $B134, V$87:V$121, "*"&"Early"&"*") <=$D134, SUMIFS(T$87:T$121, B$87:B$121, $B134, V$87:V$121, "*"&"Early"&"*"), $D134) -> 0 | F134: =+IF(SUMIFS(T$87:T$121,B$87:B$121, $B134, V$87:V$121, "*"&"Mid"&"*") <=$D134, SUMIFS(T$87:T$121, B$87:B$121, $B134, V$87:V$121, "*"&"Mid"&"*"), $D134) -> 0 | G134: =+IF(SUMIFS(T$87:T$121, B$87:B$121, $B134, $V$87:$V$121, "*"&"Late"&"*") <=$D134, SUMIFS(T$87:T$121,B$87:B$121, $B134, $V$87:$V$121, "*"&"Late"&"*"), $D134) -> 0 | H134: =+IF(ISNA(VLOOKUP(B134,B$87:D$121, 3, FALSE)),0,VLOOKUP(B134,B$87:D$121, 3, FALSE)) -> 0 | I134: =+IF(SUMIFS($U$87:$U$121,B$87:B$121, $B134, $V$87:$V$121, "*"&"Early"&"*") <=$D134, SUMIFS($U$87:$U$121, B$87:B$121, $B134, $V$87:$V$121, "*"&"Early"&"*"), $D134) -> 0 | J134: 0 | K134: 0
A135: =A98 -> 2 | B135: 12 | D135: 0 | E135: 0 | F135: 0 | G135: 0 | H135: 0 | I135: 0 | J135: 0 | K135: 0
A136: =A99 -> 2 | B136: 13 | D136: 0 | E136: 0 | F136: 0 | G136: 0 | H136: 0 | I136: 0 | J136: 0 | K136: 0
A137: =A100 -> 2 | B137: 14 | D137: 0 | E137: 0 | F137: 0 | G137: 0 | H137: 0 | I137: 0 | J137: 0 | K137: 0
A138: =A101 -> 2 | B138: 15 | D138: 0 | E138: 0 | F138: 0 | G138: 0 | H138: 0 | I138: 0 | J138: 0 | K138: 0
A139: =A102 -> 2 | B139: 16 | D139: 0 | E139: 0 | F139: 0 | G139: 0 | H139: 0 | I139: 0 | J139: 0 | K139: 0
A140: =A103 -> 2 | B140: 17 | D140: 0 | E140: 0 | F140: 0 | G140: 0 | H140: 0 | I140: 0 | J140: 0 | K140: 0
A141: =A104 -> 2 | B141: 18 | D141: 0 | E141: 0 | F141: 0 | G141: 0 | H141: 0 | I141: 0 | J141: 0 | K141: 0
A142: =A105 -> 2 | B142: 19 | D142: 0 | E142: 0 | F142: 0 | G142: 0 | H142: 0 | I142: 0 | J142: 0 | K142: 0
A143: =A106 -> 2 | B143: 20 | D143: 0 | E143: 0 | F143: 0 | G143: 0 | H143: 0 | I143: 0 | J143: 0 | K143: 0
A144: =A107 -> 2 | B144: 21 | D144: 0 | E144: 0 | F144: 0 | G144: 0 | H144: 0 | I144: 0 | J144: 0 | K144: 0
A145: =A108 -> 2 | B145: 22 | D145: 0 | E145: 0 | F145: 0 | G145: 0 | H145: 0 | I145: 0 | J145: 0 | K145: 0
A146: =A109 -> 2 | B146: 23 | D146: 0 | E146: 0 | F146: 0 | G146: 0 | H146: 0 | I146: 0 | J146: 0 | K146: 0
A147: =A110 -> 2 | B147: 24 | D147: 0 | E147: 0 | F147: 0 | G147: 0 | H147: 0 | I147: 0 | J147: 0 | K147: 0
A148: =A111 -> 2 | B148: 25 | D148: 0 | E148: 0 | F148: 0 | G148: 0 | H148: 0 | I148: 0 | J148: 0 | K148: 0
A149: =A112 -> 2 | B149: 26 | D149: 0 | E149: 0 | F149: 0 | G149: 0 | H149: 0 | I149: 0 | J149: 0 | K149: 0
A150: =A113 -> 2 | B150: 27 | D150: 0 | E150: 0 | F150: 0 | G150: 0 | H150: 0 | I150: 0 | J150: 0 | K150: 0
A151: =A114 -> 2 | B151: 28 | D151: 0 | E151: 0 | F151: 0 | G151: 0 | H151: 0 | I151: 0 | J151: 0 | K151: 0
A152: =A115 -> 2 | B152: 29 | D152: 0 | E152: 0 | F152: 0 | G152: 0 | H152: 0 | I152: 0 | J152: 0 | K152: 0
A153: =A116 -> 2 | B153: 30 | D153: 0 | E153: 0 | F153: 0 | G153: 0 | H153: 0 | I153: 0 | J153: 0 | K153: 0
A154: =A117 -> 2 | B154: 31 | D154: 0 | E154: 0 | F154: 0 | G154: 0 | H154: 0 | I154: 0 | J154: 0 | K154: 0
A155: =A118 -> 2 | B155: 32 | D155: 0 | E155: 0 | F155: 0 | G155: 0 | H155: 0 | I155: 0 | J155: 0 | K155: 0
A156: =A119 -> 2 | B156: 33 | D156: 0 | E156: 0 | F156: 0 | G156: 0 | H156: 0 | I156: 0 | J156: 0 | K156: 0
A157: =A120 -> 2 | B157: 34 | D157: 0 | E157: 0 | F157: 0 | G157: 0 | H157: 0 | I157: 0 | J157: 0 | K157: 0
A158: =A121 -> 2 | B158: 35 | D158: 0 | E158: 0 | F158: 0 | G158: 0 | H158: 0 | I158: 0 | J158: 0 | K158: 0
A159: =A87 -> 2 | B159: Total | D159: =+SUM(D124:D158) -> 0 | E159: =+SUM(E124:E158) -> 0 | F159: 0 | G159: 0 | H159: 0 | I159: 0 | J159: 0 | K159: 0 | L159: =+X86 -> 7 | M159: =+Y86 -> 10 | N159: =+Z86 -> 7
D160: =D159 -> 0 | E160: Map Unit Size in Acres | G160: =FieldBeeForm!F14 -> 50000 | H160: Value entered in FieldBeeForm (Should be same as cell C110)
A162: Enter only in yellow cells. Leave rest untouched. | G162: Enter the current year age in column G for each vegetation type. This age will be added to the assessment year (input on Field data form) to determine time series age in column K. If you are interested in just the current effects, enter a '0' in cell E11 of the Field data form.
A163: Map Unit | B163: Vegetation Entry | C163: Map Unit Size | D163: Spatial extent of Veg Type | E163: Existing Cover Class for VegType | F163: Species/ VegType | G163: Existing Age of Average Plant (for S enter 1, for Sa enter 2, for P enter 3, for M enter 5, for D enter 10) | H163: Species/Vegetation Type Descriptions | I163: Ht Rate | J163: Ht max | K163: Future Age | L163: Future Height | M163: Canopy Width Max (m) | N163: Canopy Width Rate | O163: Existing Age canopy area per plant | Q163: Estimated # Individuals | R163: Future Horizontal Surface Area per plant (width x width) | S163: Future Vertical Surface Area per plant (width x height) | T163: Horizontal Surface Area Across Map Unit | U163: Vertical Surface Area Across Map Unit | V163: Season(s) | W163: Season(s) (.) | X163: Early | Y163: Mid | Z163: Late
A164: # | B164: # | C164: sq ft | D164: m2 | E164: % | F164: code | G164: yrs | I164: m/yr | J164: m | K164: yrs | L164: m | M164: m | N164: m/yr | O164: m2 | Q164: number | R164: m2 | S164: m2 | T164: m2 | U164: m2 | X164: =SUM(IF(FREQUENCY(MATCH(X165:X199, X165:X199,0),MATCH(X165:X199, X165:X199,0))>0,1))-1 -> 7 | Y164: =SUM(IF(FREQUENCY(MATCH(Y165:Y199, Y165:Y199,0),MATCH(Y165:Y199, Y165:Y199,0))>0,1))-1 -> 10 | Z164: =SUM(IF(FREQUENCY(MATCH(Z165:Z199, Z165:Z199,0),MATCH(Z165:Z199, Z165:Z199,0))>0,1))-1 -> 7
A165: 3 | B165: 1 | D165: =(0.092903*C165)*E165 -> 0 | E165: 0.06 | F165: 1600 | G165: 5 | H165: =VLOOKUP(F165,VegTypeParameters!A:G,2,FALSE) -> Atriplex | I165: =VLOOKUP($F165,VegTypeParameters!$A:$G,5,FALSE) -> 3.296296296 | J165: =VLOOKUP($F165,VegTypeParameters!$A:$G,4,FALSE) -> 3 | K165: =G165+FieldBeeForm!$E$11 -> 17 | L165: =IF(J165>0,J165*(1-EXP(-I165*K165/J165)), 0) -> 2.999999977 | M165: =(VLOOKUP($F165,VegTypeParameters!A:G,6,FALSE)) -> 5 | N165: =(VLOOKUP($F165,VegTypeParameters!A:G,7,FALSE)) -> 7.111111111 | O165: =IF(M165>0, (M165*(1-EXP(-N165*G165/M165)))*(M165*(1-EXP(-N165*G165/M165))),0) -> 24.95921725 | Q165: =IF(O165>0, (D165*E165)/O165,0) -> 0 | R165: =IF(M165>0, (M165*(1-EXP(-N165*K165/M165)))*(M165*(1-EXP(-N165*K165/M165))), 0) -> 25 | S165: =IF(M165>0,(M165*(1-EXP(-N165*K165/M165)))*L165,0) -> 14.99999988 | T165: =R165*Q165 -> 0 | U165: =S165*Q165 -> 0 | V165: =VLOOKUP($F165,VegTypeParameters!$A:$H,8,FALSE) -> Mid/Late | W165: =+IF(ISNA(V165), ".", V165) -> Mid/Late | X165: =IF($W165="Early/Mid",$H165,IF($W165="Early", $H165, IF($W165="Early/Mid/Late", $H165,"."))) -> . | Y165: =IF($W165="Early/Mid",$H165,IF($W165="Mid", $H165, IF($W165="Mid/Late", $H165, IF($W165="Early/Mid/Late", $H165,".")))) -> Atriplex | Z165: =IF($W165="Mid/Late",$H165,IF($W165="Late", $H165, IF($W165="Early/Mid/Late", $H165,"."))) -> Atriplex
A166: 3 | B166: 2 | C166: =C$165 -> 0 | D166: =(0.092903*C166)*E166 -> 0 | E166: 0.03 | F166: 4200 | G166: 3 | H166: =VLOOKUP(F166,VegTypeParameters!A:G,2,FALSE) -> Helianthus | I166: =VLOOKUP($F166,VegTypeParameters!$A:$G,5,FALSE) -> 6.5 | J166: =VLOOKUP($F166,VegTypeParameters!$A:$G,4,FALSE) -> 2.5 | K166: =G166+FieldBeeForm!$E$11 -> 15 | L166: 2.5 | M166: =(VLOOKUP($F166,VegTypeParameters!A:G,6,FALSE)) -> 0.75 | N166: =(VLOOKUP($F166,VegTypeParameters!A:G,7,FALSE)) -> 1.25 | O166: 0.5549453471 | Q166: 0 | R166: 0.5625 | S166: 1.875 | T166: 0 | U166: 0 | V166: =VLOOKUP($F166,VegTypeParameters!$A:$H,8,FALSE) -> Mid/Late | W166: =+IF(ISNA(V166), ".", V166) -> Mid/Late | X166: =IF($W166="Early/Mid",$H166,IF($W166="Early", $H166, IF($W166="Early/Mid/Late", $H166,"."))) -> . | Y166: =IF($W166="Early/Mid",$H166,IF($W166="Mid", $H166, IF($W166="Mid/Late", $H166, IF($W166="Early/Mid/Late", $H166,".")))) -> Helianthus | Z166: =IF($W166="Mid/Late",$H166,IF($W166="Late", $H166, IF($W166="Early/Mid/Late", $H166,"."))) -> Helianthus
A167: 3 | B167: 3 | C167: =C$165 -> 0 | D167: 0 | E167: 0.08 | F167: 4000 | G167: 3 | H167: =VLOOKUP(F167,VegTypeParameters!A:G,2,FALSE) -> Grindelia | I167: =VLOOKUP($F167,VegTypeParameters!$A:$G,5,FALSE) -> 1.666666667 | J167: =VLOOKUP($F167,VegTypeParameters!$A:$G,4,FALSE) -> 2.5 | K167: =G167+FieldBeeForm!$E$11 -> 15 | L167: 2.4998865 | M167: =(VLOOKUP($F167,VegTypeParameters!A:G,6,FALSE)) -> 2 | N167: =(VLOOKUP($F167,VegTypeParameters!A:G,7,FALSE)) -> 1.333333333 | O167: 2.99058029 | Q167: 0 | R167: 3.999636809 | S167: 4.999546011 | T167: 0 | U167: 0 | V167: =VLOOKUP($F167,VegTypeParameters!$A:$H,8,FALSE) -> Mid/Late | W167: Mid/Late | X167: . | Y167: Grindelia | Z167: Grindelia
A168: 3 | B168: 4 | C168: 0 | D168: 0 | E168: 0.08 | F168: 7000 | G168: 3 | H168: =VLOOKUP(F168,VegTypeParameters!A:G,2,FALSE) -> Salix (shrub) | I168: =VLOOKUP($F168,VegTypeParameters!$A:$G,5,FALSE) -> 0.73 | J168: =VLOOKUP($F168,VegTypeParameters!$A:$G,4,FALSE) -> 3.5 | K168: =G168+FieldBeeForm!$E$11 -> 15 | L168: 3.346768964 | M168: =(VLOOKUP($F168,VegTypeParameters!A:G,6,FALSE)) -> 2.5 | N168: =(VLOOKUP($F168,VegTypeParameters!A:G,7,FALSE)) -> 0.55 | O168: 1.458953956 | Q168: 0 | R168: 5.797462708 | S168: 8.058323811 | T168: 0 | U168: 0 | V168: =VLOOKUP($F168,VegTypeParameters!$A:$H,8,FALSE) -> Early | W168: Early | X168: Salix (shrub) | Y168: . | Z168: .
A169: 3 | B169: 5 | C169: 0 | D169: 0 | E169: 0.08 | F169: 8400 | G169: 5 | H169: =VLOOKUP(F169,VegTypeParameters!A:G,2,FALSE) -> Weeds, non-invasive and not beneficial to pollinators | I169: =VLOOKUP($F169,VegTypeParameters!$A:$G,5,FALSE) -> 0 | J169: =VLOOKUP($F169,VegTypeParameters!$A:$G,4,FALSE) -> 0 | K169: =G169+FieldBeeForm!$E$11 -> 17 | L169: 0 | M169: =(VLOOKUP($F169,VegTypeParameters!A:G,6,FALSE)) -> 0 | N169: =(VLOOKUP($F169,VegTypeParameters!A:G,7,FALSE)) -> 0 | O169: 0 | Q169: 0 | R169: 0 | S169: 0 | T169: 0 | U169: 0 | V169: =VLOOKUP($F169,VegTypeParameters!$A:$H,8,FALSE) -> Never | W169: Never | X169: . | Y169: . | Z169: .
A170: 3 | B170: 6 | C170: 0 | D170: 0 | E170: 0.08 | F170: 5300 | G170: 3 | H170: =VLOOKUP(F170,VegTypeParameters!A:G,2,FALSE) -> Medicago | I170: =VLOOKUP($F170,VegTypeParameters!$A:$G,5,FALSE) -> 0.5 | J170: =VLOOKUP($F170,VegTypeParameters!$A:$G,4,FALSE) -> 0.5 | K170: =G170+FieldBeeForm!$E$11 -> 15 | L170: 0.499999847 | M170: =(VLOOKUP($F170,VegTypeParameters!A:G,6,FALSE)) -> 0.7 | N170: =(VLOOKUP($F170,VegTypeParameters!A:G,7,FALSE)) -> 0.7 | O170: 0.4424232616 | Q170: 0 | R170: 0.4899997002 | S170: 0.3499997859 | T170: 0 | U170: 0 | V170: =VLOOKUP($F170,VegTypeParameters!$A:$H,8,FALSE) -> Mid/Late | W170: Mid/Late | X170: . | Y170: Medicago | Z170: Medicago
A171: 3 | B171: 7 | C171: 0 | D171: 0 | E171: 0.08 | F171: 1600 | G171: 3 | H171: =VLOOKUP(F171,VegTypeParameters!A:G,2,FALSE) -> Atriplex | I171: =VLOOKUP($F171,VegTypeParameters!$A:$G,5,FALSE) -> 3.296296296 | J171: =VLOOKUP($F171,VegTypeParameters!$A:$G,4,FALSE) -> 3 | K171: =G171+FieldBeeForm!$E$11 -> 15 | L171: 2.999999791 | M171: =(VLOOKUP($F171,VegTypeParameters!A:G,6,FALSE)) -> 5 | N171: =(VLOOKUP($F171,VegTypeParameters!A:G,7,FALSE)) -> 7.111111111 | O171: 24.3034966 | Q171: 0 | R171: 24.99999997 | S171: 14.99999895 | T171: 0 | U171: 0 | V171: =VLOOKUP($F171,VegTypeParameters!$A:$H,8,FALSE) -> Mid/Late | W171: Mid/Late | X171: . | Y171: Atriplex | Z171: Atriplex
A172: 3 | B172: 8 | C172: 0 | D172: 0 | E172: 0.03 | F172: 7500 | G172: 3 | H172: =VLOOKUP(F172,VegTypeParameters!A:G,2,FALSE) -> Scrophularia | I172: =VLOOKUP($F172,VegTypeParameters!$A:$G,5,FALSE) -> 1.2 | J172: =VLOOKUP($F172,VegTypeParameters!$A:$G,4,FALSE) -> 1.2 | K172: =G172+FieldBeeForm!$E$11 -> 15 | L172: 1.199999633 | M172: =(VLOOKUP($F172,VegTypeParameters!A:G,6,FALSE)) -> 0.3 | N172: =(VLOOKUP($F172,VegTypeParameters!A:G,7,FALSE)) -> 0.3 | O172: 0.08126141539 | Q172: 0 | R172: 0.08999994494 | S172: 0.3599997798 | T172: 0 | U172: 0 | V172: =VLOOKUP($F172,VegTypeParameters!$A:$H,8,FALSE) -> Early/Mid | W172: Early/Mid | X172: Scrophularia | Y172: Scrophularia | Z172: .
A173: 3 | B173: 9 | C173: 0 | D173: 0 | E173: 0.03 | F173: 3500 | G173: 3 | H173: =VLOOKUP(F173,VegTypeParameters!A:G,2,FALSE) -> Ficus carica | I173: =VLOOKUP($F173,VegTypeParameters!$A:$G,5,FALSE) -> 0 | J173: =VLOOKUP($F173,VegTypeParameters!$A:$G,4,FALSE) -> 0 | K173: =G173+FieldBeeForm!$E$11 -> 15 | L173: 0 | M173: =(VLOOKUP($F173,VegTypeParameters!A:G,6,FALSE)) -> 0 | N173: =(VLOOKUP($F173,VegTypeParameters!A:G,7,FALSE)) -> 0 | O173: 0 | Q173: 0 | R173: 0 | S173: 0 | T173: 0 | U173: 0 | V173: =VLOOKUP($F173,VegTypeParameters!$A:$H,8,FALSE) -> Never | W173: Never | X173: . | Y173: . | Z173: .
A174: 3 | B174: 10 | C174: 0 | D174: 0 | E174: 0.03 | F174: 6200 | G174: 3 | H174: =VLOOKUP(F174,VegTypeParameters!A:G,2,FALSE) -> Other late blooming native plants beneficial to pollinators | I174: =VLOOKUP($F174,VegTypeParameters!$A:$G,5,FALSE) -> 0.25 | J174: =VLOOKUP($F174,VegTypeParameters!$A:$G,4,FALSE) -> 1 | K174: =G174+FieldBeeForm!$E$11 -> 15 | L174: 0.9764822541 | M174: =(VLOOKUP($F174,VegTypeParameters!A:G,6,FALSE)) -> 0.5 | N174: =(VLOOKUP($F174,VegTypeParameters!A:G,7,FALSE)) -> 0.25 | O174: 0.150881687 | Q174: 0 | R174: 0.2497235343 | S174: 0.4879710885 | T174: 0 | U174: 0 | V174: =VLOOKUP($F174,VegTypeParameters!$A:$H,8,FALSE) -> Late | W174: Late | X174: . | Y174: . | Z174: Other late blooming native plants beneficial to pollinators
A175: 3 | B175: 11 | C175: 0 | D175: 0 | E175: 0.03 | F175: 2500 | G175: 3 | H175: =VLOOKUP(F175,VegTypeParameters!A:G,2,FALSE) -> Clarkia | I175: =VLOOKUP($F175,VegTypeParameters!$A:$G,5,FALSE) -> 0.4 | J175: =VLOOKUP($F175,VegTypeParameters!$A:$G,4,FALSE) -> 0.4 | K175: =G175+FieldBeeForm!$E$11 -> 15 | L175: 0.3999998776 | M175: =(VLOOKUP($F175,VegTypeParameters!A:G,6,FALSE)) -> 0.1 | N175: =(VLOOKUP($F175,VegTypeParameters!A:G,7,FALSE)) -> 0.1 | O175: 0.009029046154 | Q175: 0 | R175: 0.009999993882 | S175: 0.03999997553 | T175: 0 | U175: 0 | V175: =VLOOKUP($F175,VegTypeParameters!$A:$H,8,FALSE) -> Early/Mid | W175: Early/Mid | X175: Clarkia | Y175: Clarkia | Z175: .
A176: 3 | B176: 12 | C176: 0 | D176: 0 | E176: 0.08 | F176: 5000 | G176: 3 | H176: =VLOOKUP(F176,VegTypeParameters!A:G,2,FALSE) -> Lupinus spp. | I176: =VLOOKUP($F176,VegTypeParameters!$A:$G,5,FALSE) -> 0.98 | J176: =VLOOKUP($F176,VegTypeParameters!$A:$G,4,FALSE) -> 3 | K176: =G176+FieldBeeForm!$E$11 -> 15 | L176: 2.977660251 | M176: =(VLOOKUP($F176,VegTypeParameters!A:G,6,FALSE)) -> 3 | N176: =(VLOOKUP($F176,VegTypeParameters!A:G,7,FALSE)) -> 1.08 | O176: 3.925206628 | Q176: 0 | R176: 8.918885139 | S176: 8.892634222 | T176: 0 | U176: 0 | V176: =VLOOKUP($F176,VegTypeParameters!$A:$H,8,FALSE) -> Early/Mid/Late | W176: Early/Mid/Late | X176: Lupinus spp. | Y176: Lupinus spp. | Z176: Lupinus spp.
A177: 3 | B177: 13 | C177: 0 | D177: 0 | E177: 0.08 | F177: 6000 | G177: 3 | H177: =VLOOKUP(F177,VegTypeParameters!A:G,2,FALSE) -> Orchard | I177: =VLOOKUP($F177,VegTypeParameters!$A:$G,5,FALSE) -> 0.5 | J177: =VLOOKUP($F177,VegTypeParameters!$A:$G,4,FALSE) -> 10 | K177: =G177+FieldBeeForm!$E$11 -> 15 | L177: 5.276334473 | M177: =(VLOOKUP($F177,VegTypeParameters!A:G,6,FALSE)) -> 6 | N177: =(VLOOKUP($F177,VegTypeParameters!A:G,7,FALSE)) -> 0.5 | O177: 1.761447369 | Q177: 0 | R177: 18.32671458 | S177: 22.58783602 | T177: 0 | U177: 0 | V177: =VLOOKUP($F177,VegTypeParameters!$A:$H,8,FALSE) -> Early | W177: Early | X177: Orchard | Y177: . | Z177: .
A178: 3 | B178: 14 | C178: 0 | D178: 0 | E178: 0.03 | F178: 3300 | G178: 5 | H178: =VLOOKUP(F178,VegTypeParameters!A:G,2,FALSE) -> Eschscholzia | I178: =VLOOKUP($F178,VegTypeParameters!$A:$G,5,FALSE) -> 0.6 | J178: =VLOOKUP($F178,VegTypeParameters!$A:$G,4,FALSE) -> 0.3 | K178: =G178+FieldBeeForm!$E$11 -> 17 | L178: 0.3 | M178: =(VLOOKUP($F178,VegTypeParameters!A:G,6,FALSE)) -> 0.15 | N178: =(VLOOKUP($F178,VegTypeParameters!A:G,7,FALSE)) -> 0.3 | O178: 0.02249795705 | Q178: 0 | R178: 0.0225 | S178: 0.045 | T178: 0 | U178: 0 | V178: =VLOOKUP($F178,VegTypeParameters!$A:$H,8,FALSE) -> Early/Mid | W178: Early/Mid | X178: Eschscholzia | Y178: Eschscholzia | Z178: .
A179: 3 | B179: 15 | C179: 0 | D179: 0 | E179: 0.03 | F179: 5600 | G179: 3 | H179: =VLOOKUP(F179,VegTypeParameters!A:G,2,FALSE) -> Native forbs and graminoids not beneficial to pollinators | I179: =VLOOKUP($F179,VegTypeParameters!$A:$G,5,FALSE) -> 0 | J179: =VLOOKUP($F179,VegTypeParameters!$A:$G,4,FALSE) -> 0 | K179: =G179+FieldBeeForm!$E$11 -> 15 | L179: =IF(J179>0,J179*(1-EXP(-I179*K179/J179)), 0) -> 0 | M179: =(VLOOKUP($F179,VegTypeParameters!A:G,6,FALSE)) -> 0 | N179: =(VLOOKUP($F179,VegTypeParameters!A:G,7,FALSE)) -> 0 | O179: =IF(M179>0, (M179*(1-EXP(-N179*G179/M179)))*(M179*(1-EXP(-N179*G179/M179))),0) -> 0 | Q179: =IF(O179>0, (D179*E179)/O179,0) -> 0 | R179: =IF(M179>0, (M179*(1-EXP(-N179*K179/M179)))*(M179*(1-EXP(-N179*K179/M179))), 0) -> 0 | S179: =IF(M179>0,(M179*(1-EXP(-N179*K179/M179)))*L179,0) -> 0 | T179: 0 | U179: 0 | V179: =VLOOKUP($F179,VegTypeParameters!$A:$H,8,FALSE) -> Never | W179: Never | X179: . | Y179: . | Z179: .
A180: 3 | B180: 16 | C180: 0 | D180: 0 | E180: 0.08 | F180: 3800 | G180: 3 | H180: =VLOOKUP(F180,VegTypeParameters!A:G,2,FALSE) -> Gilia | I180: =VLOOKUP($F180,VegTypeParameters!$A:$G,5,FALSE) -> 0.6 | J180: =VLOOKUP($F180,VegTypeParameters!$A:$G,4,FALSE) -> 0.3 | K180: =G180+FieldBeeForm!$E$11 -> 15 | L180: =IF(J180>0,J180*(1-EXP(-I180*K180/J180)), 0) -> 0.3 | M180: =(VLOOKUP($F180,VegTypeParameters!A:G,6,FALSE)) -> 0.15 | N180: =(VLOOKUP($F180,VegTypeParameters!A:G,7,FALSE)) -> 0.3 | O180: =IF(M180>0, (M180*(1-EXP(-N180*G180/M180)))*(M180*(1-EXP(-N180*G180/M180))),0) -> 0.0223885944 | Q180: =IF(O180>0, (D180*E180)/O180,0) -> 0 | R180: =IF(M180>0, (M180*(1-EXP(-N180*K180/M180)))*(M180*(1-EXP(-N180*K180/M180))), 0) -> 0.0225 | S180: =IF(M180>0,(M180*(1-EXP(-N180*K180/M180)))*L180,0) -> 0.045 | T180: 0 | U180: 0 | V180: =VLOOKUP($F180,VegTypeParameters!$A:$H,8,FALSE) -> Mid | W180: Mid | X180: . | Y180: Gilia | Z180: .
A181: 3 | B181: 17 | C181: 0 | D181: 0 | E181: 0.08 | F181: 1500 | G181: 3 | H181: =VLOOKUP(F181,VegTypeParameters!A:G,2,FALSE) -> Asclepias | I181: =VLOOKUP($F181,VegTypeParameters!$A:$G,5,FALSE) -> 0.8 | J181: =VLOOKUP($F181,VegTypeParameters!$A:$G,4,FALSE) -> 0.8 | K181: =G181+FieldBeeForm!$E$11 -> 15 | L181: 0.7999997553 | M181: =(VLOOKUP($F181,VegTypeParameters!A:G,6,FALSE)) -> 0.2 | N181: =(VLOOKUP($F181,VegTypeParameters!A:G,7,FALSE)) -> 0.2 | O181: 0.03611618462 | Q181: 0 | R181: 0.03999997553 | S181: 0.1599999021 | T181: 0 | U181: 0 | V181: =VLOOKUP($F181,VegTypeParameters!$A:$H,8,FALSE) -> Early/Mid/Late | W181: Early/Mid/Late | X181: Asclepias | Y181: Asclepias | Z181: Asclepias
A182: 3 | B182: 18 | C182: 0 | D182: 0 | E182: 0.005 | F182: 1600 | G182: 1 | H182: =VLOOKUP(F182,VegTypeParameters!A:G,2,FALSE) -> Atriplex | I182: =VLOOKUP($F182,VegTypeParameters!$A:$G,5,FALSE) -> 3.296296296 | J182: =VLOOKUP($F182,VegTypeParameters!$A:$G,4,FALSE) -> 3 | K182: =G182+FieldBeeForm!$E$11 -> 13 | L182: 2.999998122 | M182: =(VLOOKUP($F182,VegTypeParameters!A:G,6,FALSE)) -> 5 | N182: =(VLOOKUP($F182,VegTypeParameters!A:G,7,FALSE)) -> 7.111111111 | O182: 14.39529076 | Q182: 0 | R182: 24.99999953 | S182: 14.99999047 | T182: 0 | U182: 0 | V182: =VLOOKUP($F182,VegTypeParameters!$A:$H,8,FALSE) -> Mid/Late | W182: Mid/Late | X182: . | Y182: Atriplex | Z182: Atriplex
A183: 3 | B183: 19 | C183: 0 | D183: 0 | H183: =VLOOKUP(F183,VegTypeParameters!A:G,2,FALSE) ->  | I183: =VLOOKUP($F183,VegTypeParameters!$A:$G,5,FALSE) ->  | J183: =VLOOKUP($F183,VegTypeParameters!$A:$G,4,FALSE) ->  | K183: =G183+FieldBeeForm!$E$11 -> 12 | M183: =(VLOOKUP($F183,VegTypeParameters!A:G,6,FALSE)) ->  | N183: =(VLOOKUP($F183,VegTypeParameters!A:G,7,FALSE)) ->  | V183: =VLOOKUP($F183,VegTypeParameters!$A:$H,8,FALSE) ->  | W183: . | X183: . | Y183: . | Z183: .
A184: 3 | B184: 20 | C184: 0 | D184: 0 | H184: =VLOOKUP(F184,VegTypeParameters!A:G,2,FALSE) ->  | I184: =VLOOKUP($F184,VegTypeParameters!$A:$G,5,FALSE) ->  | J184: =VLOOKUP($F184,VegTypeParameters!$A:$G,4,FALSE) ->  | K184: =G184+FieldBeeForm!$E$11 -> 12 | M184: =(VLOOKUP($F184,VegTypeParameters!A:G,6,FALSE)) ->  | N184: =(VLOOKUP($F184,VegTypeParameters!A:G,7,FALSE)) ->  | V184: =VLOOKUP($F184,VegTypeParameters!$A:$H,8,FALSE) ->  | W184: . | X184: . | Y184: . | Z184: .
A185: 3 | B185: 21 | C185: 0 | D185: 0 | H185: =VLOOKUP(F185,VegTypeParameters!A:G,2,FALSE) ->  | I185: =VLOOKUP($F185,VegTypeParameters!$A:$G,5,FALSE) ->  | J185: =VLOOKUP($F185,VegTypeParameters!$A:$G,4,FALSE) ->  | K185: =G185+FieldBeeForm!$E$11 -> 12 | M185: =(VLOOKUP($F185,VegTypeParameters!A:G,6,FALSE)) ->  | N185: =(VLOOKUP($F185,VegTypeParameters!A:G,7,FALSE)) ->  | V185: =VLOOKUP($F185,VegTypeParameters!$A:$H,8,FALSE) ->  | W185: . | X185: . | Y185: . | Z185: .
A186: 3 | B186: 22 | C186: 0 | D186: 0 | H186: =VLOOKUP(F186,VegTypeParameters!A:G,2,FALSE) ->  | I186: =VLOOKUP($F186,VegTypeParameters!$A:$G,5,FALSE) ->  | J186: =VLOOKUP($F186,VegTypeParameters!$A:$G,4,FALSE) ->  | K186: =G186+FieldBeeForm!$E$11 -> 12 | M186: =(VLOOKUP($F186,VegTypeParameters!A:G,6,FALSE)) ->  | N186: =(VLOOKUP($F186,VegTypeParameters!A:G,7,FALSE)) ->  | V186: =VLOOKUP($F186,VegTypeParameters!$A:$H,8,FALSE) ->  | W186: . | X186: . | Y186: . | Z186: .
A187: 3 | B187: 23 | C187: 0 | D187: 0 | H187: =VLOOKUP(F187,VegTypeParameters!A:G,2,FALSE) ->  | I187: =VLOOKUP($F187,VegTypeParameters!$A:$G,5,FALSE) ->  | J187: =VLOOKUP($F187,VegTypeParameters!$A:$G,4,FALSE) ->  | K187: =G187+FieldBeeForm!$E$11 -> 12 | M187: =(VLOOKUP($F187,VegTypeParameters!A:G,6,FALSE)) ->  | N187: =(VLOOKUP($F187,VegTypeParameters!A:G,7,FALSE)) ->  | V187: =VLOOKUP($F187,VegTypeParameters!$A:$H,8,FALSE) ->  | W187: . | X187: . | Y187: . | Z187: .
A188: 3 | B188: 24 | C188: 0 | D188: 0 | H188: =VLOOKUP(F188,VegTypeParameters!A:G,2,FALSE) ->  | I188: =VLOOKUP($F188,VegTypeParameters!$A:$G,5,FALSE) ->  | J188: =VLOOKUP($F188,VegTypeParameters!$A:$G,4,FALSE) ->  | K188: =G188+FieldBeeForm!$E$11 -> 12 | M188: =(VLOOKUP($F188,VegTypeParameters!A:G,6,FALSE)) ->  | N188: =(VLOOKUP($F188,VegTypeParameters!A:G,7,FALSE)) ->  | V188: =VLOOKUP($F188,VegTypeParameters!$A:$H,8,FALSE) ->  | W188: . | X188: . | Y188: . | Z188: .
A189: 3 | B189: 25 | C189: 0 | D189: 0 | H189: =VLOOKUP(F189,VegTypeParameters!A:G,2,FALSE) ->  | I189: =VLOOKUP($F189,VegTypeParameters!$A:$G,5,FALSE) ->  | J189: =VLOOKUP($F189,VegTypeParameters!$A:$G,4,FALSE) ->  | K189: =G189+FieldBeeForm!$E$11 -> 12 | L189: =IF(J189>0,J189*(1-EXP(-I189*K189/J189)), 0) ->  | M189: =(VLOOKUP($F189,VegTypeParameters!A:G,6,FALSE)) ->  | N189: =(VLOOKUP($F189,VegTypeParameters!A:G,7,FALSE)) ->  | O189: =IF(M189>0, (M189*(1-EXP(-N189*G189/M189)))*(M189*(1-EXP(-N189*G189/M189))),0) ->  | Q189: =IF(O189>0, (D189*E189)/O189,0) ->  | R189: =IF(M189>0, (M189*(1-EXP(-N189*K189/M189)))*(M189*(1-EXP(-N189*K189/M189))), 0) ->  | S189: =IF(M189>0,(M189*(1-EXP(-N189*K189/M189)))*L189,0) ->  | V189: =VLOOKUP($F189,VegTypeParameters!$A:$H,8,FALSE) ->  | W189: . | X189: . | Y189: . | Z189: .
A190: 3 | B190: 26 | C190: 0 | D190: 0 | H190: =VLOOKUP(F190,VegTypeParameters!A:G,2,FALSE) ->  | I190: =VLOOKUP($F190,VegTypeParameters!$A:$G,5,FALSE) ->  | J190: =VLOOKUP($F190,VegTypeParameters!$A:$G,4,FALSE) ->  | K190: =G190+FieldBeeForm!$E$11 -> 12 | L190: =IF(J190>0,J190*(1-EXP(-I190*K190/J190)), 0) ->  | M190: =(VLOOKUP($F190,VegTypeParameters!A:G,6,FALSE)) ->  | N190: =(VLOOKUP($F190,VegTypeParameters!A:G,7,FALSE)) ->  | O190: =IF(M190>0, (M190*(1-EXP(-N190*G190/M190)))*(M190*(1-EXP(-N190*G190/M190))),0) ->  | Q190: =IF(O190>0, (D190*E190)/O190,0) ->  | R190: =IF(M190>0, (M190*(1-EXP(-N190*K190/M190)))*(M190*(1-EXP(-N190*K190/M190))), 0) ->  | S190: =IF(M190>0,(M190*(1-EXP(-N190*K190/M190)))*L190,0) ->  | V190: =VLOOKUP($F190,VegTypeParameters!$A:$H,8,FALSE) ->  | W190: . | X190: . | Y190: . | Z190: .
A191: 3 | B191: 27 | C191: 0 | D191: 0 | H191: =VLOOKUP(F191,VegTypeParameters!A:G,2,FALSE) ->  | I191: =VLOOKUP($F191,VegTypeParameters!$A:$G,5,FALSE) ->  | J191: =VLOOKUP($F191,VegTypeParameters!$A:$G,4,FALSE) ->  | K191: =G191+FieldBeeForm!$E$11 -> 12 | M191: =(VLOOKUP($F191,VegTypeParameters!A:G,6,FALSE)) ->  | N191: =(VLOOKUP($F191,VegTypeParameters!A:G,7,FALSE)) ->  | V191: =VLOOKUP($F191,VegTypeParameters!$A:$H,8,FALSE) ->  | W191: . | X191: . | Y191: . | Z191: .
A192: 3 | B192: 28 | C192: 0 | D192: 0 | H192: =VLOOKUP(F192,VegTypeParameters!A:G,2,FALSE) ->  | I192: =VLOOKUP($F192,VegTypeParameters!$A:$G,5,FALSE) ->  | J192: =VLOOKUP($F192,VegTypeParameters!$A:$G,4,FALSE) ->  | K192: =G192+FieldBeeForm!$E$11 -> 12 | M192: =(VLOOKUP($F192,VegTypeParameters!A:G,6,FALSE)) ->  | N192: =(VLOOKUP($F192,VegTypeParameters!A:G,7,FALSE)) ->  | V192: =VLOOKUP($F192,VegTypeParameters!$A:$H,8,FALSE) ->  | W192: . | X192: . | Y192: . | Z192: .
A193: 3 | B193: 29 | C193: 0 | D193: 0 | H193: =VLOOKUP(F193,VegTypeParameters!A:G,2,FALSE) ->  | I193: =VLOOKUP($F193,VegTypeParameters!$A:$G,5,FALSE) ->  | J193: =VLOOKUP($F193,VegTypeParameters!$A:$G,4,FALSE) ->  | K193: =G193+FieldBeeForm!$E$11 -> 12 | M193: =(VLOOKUP($F193,VegTypeParameters!A:G,6,FALSE)) ->  | N193: =(VLOOKUP($F193,VegTypeParameters!A:G,7,FALSE)) ->  | V193: =VLOOKUP($F193,VegTypeParameters!$A:$H,8,FALSE) ->  | W193: . | X193: . | Y193: . | Z193: .
A194: 3 | B194: 30 | C194: 0 | D194: 0 | H194: =VLOOKUP(F194,VegTypeParameters!A:G,2,FALSE) ->  | I194: =VLOOKUP($F194,VegTypeParameters!$A:$G,5,FALSE) ->  | J194: =VLOOKUP($F194,VegTypeParameters!$A:$G,4,FALSE) ->  | K194: =G194+FieldBeeForm!$E$11 -> 12 | M194: =(VLOOKUP($F194,VegTypeParameters!A:G,6,FALSE)) ->  | N194: =(VLOOKUP($F194,VegTypeParameters!A:G,7,FALSE)) ->  | V194: =VLOOKUP($F194,VegTypeParameters!$A:$H,8,FALSE) ->  | W194: . | X194: . | Y194: . | Z194: .
A195: 3 | B195: 31 | C195: 0 | D195: 0 | H195: =VLOOKUP(F195,VegTypeParameters!A:G,2,FALSE) ->  | I195: =VLOOKUP($F195,VegTypeParameters!$A:$G,5,FALSE) ->  | J195: =VLOOKUP($F195,VegTypeParameters!$A:$G,4,FALSE) ->  | K195: =G195+FieldBeeForm!$E$11 -> 12 | M195: =(VLOOKUP($F195,VegTypeParameters!A:G,6,FALSE)) ->  | N195: =(VLOOKUP($F195,VegTypeParameters!A:G,7,FALSE)) ->  | V195: =VLOOKUP($F195,VegTypeParameters!$A:$H,8,FALSE) ->  | W195: . | X195: . | Y195: . | Z195: .
A196: 3 | B196: 32 | C196: 0 | D196: 0 | H196: =VLOOKUP(F196,VegTypeParameters!A:G,2,FALSE) ->  | I196: =VLOOKUP($F196,VegTypeParameters!$A:$G,5,FALSE) ->  | J196: =VLOOKUP($F196,VegTypeParameters!$A:$G,4,FALSE) ->  | K196: =G196+FieldBeeForm!$E$11 -> 12 | M196: =(VLOOKUP($F196,VegTypeParameters!A:G,6,FALSE)) ->  | N196: =(VLOOKUP($F196,VegTypeParameters!A:G,7,FALSE)) ->  | V196: =VLOOKUP($F196,VegTypeParameters!$A:$H,8,FALSE) ->  | W196: . | X196: . | Y196: . | Z196: .
A197: 3 | B197: 33 | C197: 0 | D197: 0 | H197: =VLOOKUP(F197,VegTypeParameters!A:G,2,FALSE) ->  | I197: =VLOOKUP($F197,VegTypeParameters!$A:$G,5,FALSE) ->  | J197: =VLOOKUP($F197,VegTypeParameters!$A:$G,4,FALSE) ->  | K197: =G197+FieldBeeForm!$E$11 -> 12 | M197: =(VLOOKUP($F197,VegTypeParameters!A:G,6,FALSE)) ->  | N197: =(VLOOKUP($F197,VegTypeParameters!A:G,7,FALSE)) ->  | V197: =VLOOKUP($F197,VegTypeParameters!$A:$H,8,FALSE) ->  | W197: . | X197: . | Y197: . | Z197: .
A198: 3 | B198: 34 | C198: 0 | D198: 0 | H198: =VLOOKUP(F198,VegTypeParameters!A:G,2,FALSE) ->  | I198: =VLOOKUP($F198,VegTypeParameters!$A:$G,5,FALSE) ->  | J198: =VLOOKUP($F198,VegTypeParameters!$A:$G,4,FALSE) ->  | K198: =G198+FieldBeeForm!$E$11 -> 12 | M198: =(VLOOKUP($F198,VegTypeParameters!A:G,6,FALSE)) ->  | N198: =(VLOOKUP($F198,VegTypeParameters!A:G,7,FALSE)) ->  | V198: =VLOOKUP($F198,VegTypeParameters!$A:$H,8,FALSE) ->  | W198: . | X198: . | Y198: . | Z198: .
A199: 3 | B199: 35 | C199: 0 | D199: 0 | H199: =VLOOKUP(F199,VegTypeParameters!A:G,2,FALSE) ->  | I199: =VLOOKUP($F199,VegTypeParameters!$A:$G,5,FALSE) ->  | J199: =VLOOKUP($F199,VegTypeParameters!$A:$G,4,FALSE) ->  | K199: =G199+FieldBeeForm!$E$11 -> 12 | M199: =(VLOOKUP($F199,VegTypeParameters!A:G,6,FALSE)) ->  | N199: =(VLOOKUP($F199,VegTypeParameters!A:G,7,FALSE)) ->  | V199: =VLOOKUP($F199,VegTypeParameters!$A:$H,8,FALSE) ->  | W199: . | X199: . | Y199: . | Z199: .
D200: Horizontal extent of pollinator plant cover (m2) per season | H200: Vertical extent of pollinator plant cover (m2) per season | L200: Number of different pollinator plant species per season
A201: Map Unit # | B201: Vegetation Entry | D201: Spatial extent of Veg Type (m2) | E201: Early | F201: Mid | G201: Late | H201: Spatial extent of Veg Type (m2) | I201: Early | J201: Mid | K201: Late | L201: Early | M201: Mid | N201: Late
A202: =A165 -> 3 | B202: =B165 -> 1 | D202: =+IF(ISNA(VLOOKUP(B202,B$165:D$199, 3, FALSE)),0,VLOOKUP(B202,B$165:D$199, 3, FALSE)) -> 0 | E202: =+IF(SUMIFS(T$165:T$199, B$165:B$199, $B202, V$165:V$199, "*"&"Early"&"*") <=$D202, SUMIFS(T$165:T$199, B$165:B$199, $B202, V$165:V$199, "*"&"Early"&"*"), $D202) -> 0 | F202: =+IF(SUMIFS(T$165:T$199,B$165:B$199, $B202, V$165:V$199, "*"&"Mid"&"*") <=$D202, SUMIFS(T$165:T$199,B$165:B$199, $B202, V$165:V$199, "*"&"Mid"&"*"), $D202) -> 0 | G202: =+IF(SUMIFS(T$165:T$199, B$165:B$199, $B202, $V$165:$V$199, "*"&"Late"&"*") <=$D202, SUMIFS(T$165:T$199,B$165:B$199, $B202,$V$165:$V$199, "*"&"Late"&"*"), $D202) -> 0 | H202: =+IF(ISNA(VLOOKUP(B202,B$165:D$199, 3, FALSE)),0,VLOOKUP(B202,B$165:D$199, 3, FALSE)) -> 0 | I202: =+IF(SUMIFS($U$165:$U$199, $B$165:$B$199, $B202, $V$165:$V$199, "*"&"Early"&"*") <=$D202, SUMIFS($U$165:$U$199, $B$165:$B$199, $B202, $V$165:$V$199, "*"&"Early"&"*"), $D202) -> 0 | J202: =+IF(SUMIFS($U$165:$U$199, $B$165:$B$199, $B202, $V$165:$V$199, "*"&"Mid"&"*") <=$D202, SUMIFS($U$165:$U$199, $B$165:$B$199, $B202, $V$165:$V$199, "*"&"Mid"&"*"), $D202) -> 0 | K202: =+IF(SUMIFS($U$165:$U$199, $B$165:$B$199, $B202, $V$165:$V$199, "*"&"Late"&"*") <=$D202, SUMIFS($U$165:$U$199, $B$165:$B$199, $B202, $V$165:$V$199, "*"&"Late"&"*"), $D202) -> 0
A203: =A166 -> 3 | B203: 2 | D203: =+IF(ISNA(VLOOKUP(B203,B$165:D$199, 3, FALSE)),0,VLOOKUP(B203,B$165:D$199, 3, FALSE)) -> 0 | E203: =+IF(SUMIFS(T$165:T$199, B$165:B$199, $B203, V$165:V$199, "*"&"Early"&"*") <=$D203, SUMIFS(T$165:T$199, B$165:B$199, $B203, V$165:V$199, "*"&"Early"&"*"), $D203) -> 0 | F203: =+IF(SUMIFS(T$165:T$199,B$165:B$199, $B203, V$165:V$199, "*"&"Mid"&"*") <=$D203, SUMIFS(T$165:T$199,B$165:B$199, $B203, V$165:V$199, "*"&"Mid"&"*"), $D203) -> 0 | G203: =+IF(SUMIFS(T$165:T$199, B$165:B$199, $B203, $V$165:$V$199, "*"&"Late"&"*") <=$D203, SUMIFS(T$165:T$199,B$165:B$199, $B203,$V$165:$V$199, "*"&"Late"&"*"), $D203) -> 0 | H203: =+IF(ISNA(VLOOKUP(B203,B$165:D$199, 3, FALSE)),0,VLOOKUP(B203,B$165:D$199, 3, FALSE)) -> 0 | I203: =+IF(SUMIFS($U$165:$U$199, $B$165:$B$199, $B203, $V$165:$V$199, "*"&"Early"&"*") <=$D203, SUMIFS($U$165:$U$199, $B$165:$B$199, $B203, $V$165:$V$199, "*"&"Early"&"*"), $D203) -> 0 | J203: =+IF(SUMIFS($U$165:$U$199, $B$165:$B$199, $B203, $V$165:$V$199, "*"&"Mid"&"*") <=$D203, SUMIFS($U$165:$U$199, $B$165:$B$199, $B203, $V$165:$V$199, "*"&"Mid"&"*"), $D203) -> 0 | K203: =+IF(SUMIFS($U$165:$U$199, $B$165:$B$199, $B203, $V$165:$V$199, "*"&"Late"&"*") <=$D203, SUMIFS($U$165:$U$199, $B$165:$B$199, $B203, $V$165:$V$199, "*"&"Late"&"*"), $D203) -> 0
A204: =A167 -> 3 | B204: 3 | D204: 0 | E204: 0 | F204: 0 | G204: 0 | H204: 0 | I204: 0 | J204: 0 | K204: 0
... 573 more rows

Sheet Bee_Scoring
B1: Do not enter data into this model worksheet, it automatically pulls data from the office and field forms. Data from these forms are pulled into column D 'Data'. Column E 'Maximum Value' provides the highest possible score for each variable. Column F 'Normalize' divides the data score by the maximum value so that all scores range from 0 to 1.0. Column G 'Weight' provides a weight for the particular variable in relation to the other variables, based on the ecological importance of that variable. Column H 'Score' multiplies the normalized value by the weight. The score for each group of variables and for each Map Unit is based upon the weighted average of each indicator score, calculated as the sum of the weighted and normalized values [column H] over the sum of weights [total maximum weighted normalized values]. Column I 'Final Score' returns the unweighted score for that particular variable by dividing the weighted score by the weight (same value provided in column F)
A3: Pollinator Scoring | F3: Pollinator Project Area (acres): | K3: =FieldBeeForm!E8 -> 3.2
F4: Number of Pollinator Map Units: | K4: =FieldBeeForm!E9 -> 20
B5: Variable Number | C5: Indicator | D5: Data | E5: Maximum Value | F5: Normalize | G5: Weight | H5: Score (Normalize x Weight) | I5: Final Score | J5: Habitat Acres | K5: Explanation and Rationale | L5: Citation
C6: Opportunity and Value Scoring for Project Area
A7: Landscape support for pollinator populations | B7: =OfficeForm!B8 -> 1 | C7: Percent of surrounding landscape that is 'wild'. | D7: =IF(OfficeForm!D29>0.3, 4, IF(OfficeForm!D29>0.15, 3, IF(OfficeForm!D29>0.05, 2, 1))) -> 4 | E7: 4 | F7: =+D7/E7 -> 1 | G7: 3 | H7: =+F7*G7 -> 3 | I7: =H7/G7 -> 1 | K7: If there is very little wild habitat surrounding the project site, then there is a greater opportunity to improve pollinator services in the area and thus a higher score for opportunity. However, if there is no wild habitat at all, then the Project Area will not have a source bee population - thus, sites with no surrounding wild habitat do not get the maximum score but rather a score of 75%. Opportunity was weighted equal to value. | L7: Klein et al. 2007; Kremen et al. 2004, Williams and Kremen 2007, Winfree et al. 2008, extrapolated from NRCS 2009 0.5-mi scale
B8: =OfficeForm!B30 -> 2 | C8: Ratio of pollinator habitat area to area of pollinator dependent crops in 0.5 mi buffer area (1.5:25 is optimal, below that is an opportunity to increase pollinator habitat) | D8: =+IF(FieldBeeForm!G8>40, 4, IF(FieldBeeForm!G8>30, 3, IF(FieldBeeForm!G8>20, 2, 1))) -> 3 | E8: 4 | F8: =+D8/E8 -> 0.75 | G8: 1 | H8: =+F8*G8 -> 0.75 | I8: =H8/G8 -> 0.75 | K8: If there are pollinator dependent crops in the surrounding landscape, then providing pollinator habitat benefits these crops. NRCS 2009 suggests 1 to 2 acres of pollinator habitat for every 25 acres of every cropped (pollinator dependent crop) acre. Thus, if ratio is much higher (e.g. 5 acres habitat per 25 acres crops), then the opportunity and need is not high. Value was weighted equal to opportunity. Bin scores assigned by ratios of pollinator crop dependent acres to proposed pollinator habitat acres: >40:1 = 4; 30 to 39:1 =3; 20-29:1=2; <20:1=1. | L8: Chaplin-Kramer et al. 2011, Greenleaf and Kremen 2006, Morandin and Winston 2006, Klein et al. 2007; Winfree et al. 2008, extrapolated from NRCS 2009 0.5-mi scale
B9: 3 | C9: Percent of total farm that is included in the pollinator Project Area | D9: =IF(FieldBeeForm!F12>0.099,6,IF(FieldBeeForm!F12>0.051,5,IF(FieldBeeForm!F12>0.04,4,IF(FieldBeeForm!F12>0.01,3,IF(FieldBeeForm!F12>0.001,2,IF(FieldBeeForm!F12>0.0001,1,0)))))) -> 3 | E9: 6 | F9: =+D9/E9 -> 0.5 | G9: 1 | H9: =+F9*G9 -> 0.5 | I9: =H9/G9 -> 0.5 | K9: Having many different pollinator habitat areas across the landscape supports pollinators over a broader matrix of lands, and is especially valuable where there are many small farms. Ten percent of the farm acreage was set as the most one can hope for from an active farm. | L9: Winfree et al. 2007
C10: Project Area Opportunity and Value SCORE | G10: =+SUM(G7:G9) -> 5 | H10: =SUM(H7:H9) -> 4.25 | I10: =+H10/G10 -> 0.85 | J10: =I10*FieldBeeForm!E8 -> 2.72
C11: Site Capacity Scoring for Project Area
B12: A | C12: Overall project area (in acres): | D12: =IF(FieldBeeForm!F12=0.1,6,IF(FieldBeeForm!E8>10,6,IF(FieldBeeForm!F12>0.051,5,IF(FieldBeeForm!E8>4.1,5,IF(FieldBeeForm!F12>0.04,4,IF(FieldBeeForm!E8>2.1,4,IF(FieldBeeForm!F12>0.01,3,IF(FieldBeeForm!E8>0.5,3,IF(FieldBeeForm!F12>0.001,2,IF(FieldBeeForm!E8>0.1,2,IF(FieldBeeForm!E8>0,1,0))))))))))) -> 4 | E12: 6 | F12: =+D12/E12 -> 0.6666666667 | G12: 20 | H12: =+F12*G12 -> 13.33333333 | I12: =+H12/G12 -> 0.6666666667 | K12: Size bin scoring is set at: 10% of farm acreage or 10 ac = 6; 5.1 to 10% or 4.1 to 10 ac =5; 3.1 to 5% or 1 to 4 ac =4; 1 to 3% or 0.5 to 1 ac =3; <1% or 0.10 to 0.5 acres = 2; >0 to 0.1 = 1, 0 = 0. The actual acreage of land providing pollinator habitat is important and directly, linearly related to population size that can be supported. Maximum 'credit' is given to 10% of the farm area size and/or 10 acres or more. Total acreage applied to the Project is weighted as 57% of the overall Project Area Site Capacity Score. | L12: Morandin and Winston 2006, Kremen et al. 2004, NRCS 2009
A13: Management: Insecticide use | B13: =OfficeForm!B34 -> 3 | C13: Are pesticides (insecticides, fungicides, etc.) used 2 or more times a year, between Mar. 1st & Nov. 1st within the PA and a 50-foot buffer? | D13: =+IF(OfficeForm!D34=1, 0, 1) -> 0 | E13: 1 | F13: =D13/E13 -> 0 | G13: 1.5 | H13: =+F13*G13 -> 0 | I13: =H13/G13 -> 0 | K13: Insecticides are generally harmful to bees; fungicides may or may not be harmful, but often in combination with insecticides have been shown to increase the negative effect of the pesticide. One kilometer (roughly equal to 0.5 mi)is generally cited as the average foraging distance of native bees; thus, insecticides used within that range could directly harm bees. | L13: Johanson 1977, Thompson 2003, Decourty et al. 2004, Desneux et al. 2007, Schmuck et al. 2003, Pilling et al. 1995, NRCS 2009, Zhong et al. 2004, Xerces Society for Invertebrate Conservation 2011, Everich et al. 2009
B14: 3b | C14: Are pesticides (insecticides, fungicides, etc.) used 2 or more times a year, between Mar. 1st & Nov. 1st in the 0.5 mi buffer around the Project Area? | D14: =+IF(OfficeForm!E34=1, 0,1) -> 1 | E14: 1 | F14: =D14/E14 -> 1 | G14: 0.75 | H14: 0.75 | I14: 1
B15: 4a | C15: If insecticides are used 2+ times a year (between Mar. 1st & Nov. 1st), are broad-spectrum or soil fumigants used, or any pesticides that are labeled toxic to honeybees within the PA and a 50-foot buffer? | D15: =+IF(OfficeForm!D35=1, 0, 1) -> 0 | E15: 1 | F15: =D15/E15 -> 0 | G15: 1.5 | H15: 0 | I15: 0 | K15: Research has shown that the use of multiple insecticides may have compounding effects on bees. | L15: Johansen 1977, NRCS 2009, Xerces Society for Invertebrate Conservation 2011
B16: 4b | C16: If insecticides are used 2+ times a year (between Mar. 1st & Nov. 1st), are broad-spectrum or soil fumigants used, or any pesticides that are labeled toxic to honeybees in the 0.5 mi buffer around the Project Area? | D16: =+IF(OfficeForm!E35=1, 0,1) -> 1 | E16: 1 | F16: =D16/E16 -> 1 | G16: 0.75 | H16: 0.75 | I16: 1
B17: 5a | C17: If insecticides are used 2+ times a year (between Mar. 1st & Nov. 1st), are they used outside crop blooming within the PA and a 50-foot buffer? | D17: =+OfficeForm!D36 -> 0 | E17: 1 | F17: 0 | G17: 1.5 | H17: 0 | I17: 0 | K17: Insecticides used during crop blooming period are more likely to affect a greater percentage of bees, particularly managed honey bees. | L17: NRCS 2009, Xerces Society for Invertebrate Conservation 2011
B18: 5b | C18: If insecticides are used 2+ times a year (between Mar. 1st & Nov. 1st), are they used outside crop blooming in the 0.5 mi buffer around the Project Area? | D18: =+OfficeForm!E36 -> 0 | E18: 1 | F18: 0 | G18: 0.75 | H18: 0 | I18: 0
B19: 6a | C19: If insecticides are used 2+ times a year (between Mar. 1st & Nov. 1st), are they only used when bees are not active (i.e., at night) within the PA and a 50-foot buffer? | D19: =OfficeForm!D37 -> 0 | E19: 1 | F19: 0 | G19: 1.5 | H19: 0 | I19: 0 | K19: Insecticides used during the day are more likely to directly harm bees. | L19: Riedl et al. 2006, Tew 1997, Johansen and Mayer 1990, NRCS 2009, Xerces Society for Invertebrate Conservation 2011
B20: 6b | C20: If insecticides are used 2+ times a year (between Mar. 1st & Nov. 1st), are they only used when bees are not active (i.e., at night) in the 0.5 mi buffer around the Project Area? | D20: =OfficeForm!E37 -> 0 | E20: 1 | F20: 0 | G20: 0.75 | H20: 0 | I20: 0
B21: 7a | C21: If insecticides are used 2+ times a year (between Mar. 1st & Nov. 1st), what is the application method within the PA and a 50-foot buffer? | D21: =+OfficeForm!D38 -> 1 | E21: 4 | F21: 0.25 | G21: 1.5 | H21: 0.375 | I21: 0.25 | K21: Precision insecticide applications are thought to have relatively fewer impacts to bees. The more site-specific the application method, the more likely the insecticide will fall on weeds, rather than pollinator floral resources. Aerial spraying affects the greatest range and extent of floral resources for pollinators. | L21: Ozkan 2000, NRCS 2009, Xerces Society for Invertebrate Conservation 2011
B22: 7b | C22: If insecticides are used 2+ times a year (between Mar. 1st & Nov. 1st), what is the application method in the 0.5 mi buffer around the Project Area? | D22: =+OfficeForm!E38 -> 0 | E22: 4 | F22: 0 | G22: 1 | H22: 0 | I22: 0
C23: Subtotal Insecticide Use Score | G23: =+SUM(G13:G22) -> 11.5 | H23: =+SUM(H13:H22) -> 1.875 | I23: =+H23/G23 -> 0.1630434783 | K23: This subsection of "Insecticide use" was weighted as 33% of the total Project Area Site Capacity score.
A24: Managed Bees | B24: 8 | C24: Do you host managed honeybees anytime except winter (Nov-Feb) and/or during crop bloom time? | D24: =IF(OfficeForm!D40=0, 1, 0) -> 1 | E24: 1 | F24: =D24/E24 -> 1 | G24: 0 | H24: 0 | K24: Managed honeybees can compete with native pollinators for floral resources and impact native bee populations if there is a large mismatch between nectar sources and the number of bees during any given season. Honeybees kept near native vegetation during non-crop blooming periods will forage on other available source and when managed bees are maintained in high densities during these periods of lower floral resources, can negatively affect native pollinator populations. | L24: NRCS 2009, Xerces Society for Invertebrate Conservation 2011, Badano and Vergara 2011
B25: 9 | C25: If you answered ‘Yes’ to #8, are the managed bee hives within the Project Area or the 2 mile buffer of the Project Area? | D25: =IF(OfficeForm!D41=0, 1, 0) -> 1 | E25: 1 | F25: =D25/E25 -> 1 | G25: 0 | H25: 0
B26: 10 | C26: If you answered ‘Yes’ to #9, is there more than 1 hive of managed bees per acre of habitat within PA and a 2 mi buffer, where habitat can include both PA and permanently protected other habitat? | D26: =IF(OfficeForm!D42=0, 1, 0) -> 1 | E26: 1 | F26: 1 | G26: 0 | H26: 0
B27: 11 | C27: If you answered ‘Yes’ to #10, write down how many hives you have/host within a the PA and within a 2 mi buffer during the non-winter and no crop bloom periods. | D27: =IF(OfficeForm!D43<2,4,IF(OfficeForm!D43<3,3,IF(OfficeForm!D43<5,2,(IF(OfficeForm!D43<7,1,0))))) -> 4 | E27: 4 | F27: 1 | G27: 3.5 | H27: =+F27*G27 -> 3.5 | I27: 1 | K27: If honeybees are located within foraging range (2 mi for European honey bee) of pollinator habitat (rather than in the cropped area), they may outcompete native bees for the limited floral resources. 100% credit for <2 hives; 75% for <3 hives, 50% for <5 hives, 25% for <7 hives, and 0% for >7 hives | L27: Jessa Guisse of Xerxes Society, pers. comm. with Amy Merrill of Stillwater Sciences, Mitchell et al. 2009, Badano and Vergara 2011
C28: Subtotal Sum of Management: Managed Bees Weights and Scores | G28: =SUM(G24:G27) -> 3.5 | H28: =SUM(H24:H27) -> 3.5 | I28: 1 | K28: This subsection of "Managed Bees" was weighted as 10% of the total Site Capacity score.
C29: Project Area Site Capacity SCORE | G29: =+G12+G23+G28 -> 35 | H29: =+SUM(H13:H25)+ SUM(H27:H27) -> 7.25 | I29: =+H29/G29 -> 0.2071428571
C30: Site Capacity Scoring per Map Unit
A31: =+FieldBeeForm!A18 -> 1 | C31: Map Unit Number: | D31: =+FieldBeeForm!A18 -> 1 | E31: Map Unit Acres: | H31: =FieldBeeForm!H17 -> 0.3028007346
A32: Map Unit Characteristics | B32: =+FieldBeeForm!C$13 -> F | C32: Acres of Map Unit | D32: =+FieldBeeForm!H17 -> 0.3028007346 | E32: =+FieldBeeForm!$E$12*0.1 -> 10 | F32: =+D32/E32 -> 0.03028007346 | G32: 6 | H32: =+F32*G32 -> 0.1816804408 | I32: =H32/G32 -> 0.03028007346 | K32: The more area of the Map Unit that provides nesting and/or foraging habitat for the pollinators, the better. Credit assigned linearly up to 10% of the total farm area (maximum). | L32: Zurbuchen et al 2008, NRCS 2009
B33: =+FieldBeeForm!C$15 -> G | C33: Percent of Map Unit that is covered with pollinator habitat | D33: =+IF(FieldBeeForm!E15<1, 0, IF(FieldBeeForm!E15<10, 1, IF(FieldBeeForm!E15<25, 2, IF(FieldBeeForm!E15<50, 3, IF(FieldBeeForm!E15<75, 4, IF(FieldBeeForm!E15< 85, 5, 6)))))) -> 4 | E33: 6 | F33: 0.6666666667 | G33: 6 | H33: 4 | I33: 0.6666666667 | K33: Higher density habitat, vs. diffuse habitat, reduces energy required for pollinators and is therefore also better habitat. Bins set at <1, 1-10, 10-25, 25-50, 50-75, 75-85, >85. | L33: NRCS 2009, Sim and Baltus 1987
C34: Combined sum of Map Unit extent and density scores | G34: =+SUM(G32:G33) -> 12 | H34: =+SUM(H32:H33) -> 4.181680441 | I34: =H34/G34 -> 0.3484733701
A35: Floral resources | B35: =FieldBeeForm!C19 -> 12 | C35: =FieldBeeForm!D19 -> Number of different flowering plant species present during early-blooming (Feb-May) period | D35: =IF(FieldBeeForm!G19>=5, 5, FieldBeeForm!G19) -> 5 | E35: 5 | F35: 1 | G35: 2 | H35: 2 | I35: 1 | K35: Research has shown that it is ideal to have 5 or more flowering plant species present during all seasons (the greater diversity of plants, the greater abundance and diversity of bees). | L35: NRCS 2009, Bosch and Kemp 2001, Pontin et al. 2006, Holcomb 2009, Pywell et al. 2005
B36: =FieldBeeForm!C20 -> 13 | C36: =FieldBeeForm!D20 -> Number of different flowering plants present during mid-blooming (Jun-Jul) period | D36: =IF(FieldBeeForm!G20>=5, 5, FieldBeeForm!G20) -> 5 | E36: 5 | F36: 1 | G36: 2 | H36: 2 | I36: 1
B37: =FieldBeeForm!C21 -> 14 | C37: =FieldBeeForm!D21 -> Number of different flowering plants present during late-blooming (Aug-Jan) period | D37: =IF(FieldBeeForm!G21>=5, 5, FieldBeeForm!G21) -> 5 | E37: 5 | F37: 1 | G37: 2 | H37: 2 | I37: 1
B38: =FieldBeeForm!C22 -> 15 | C38: =FieldBeeForm!D22 -> Estimated surface area of flowering plants present during early-blooming (Feb-May) period | D38: =IF(FieldBeeForm!I22=0,0,IF(FieldBeeForm!I22<0.05,1,IF(FieldBeeForm!I22<0.1,2,IF(FieldBeeForm!I22<0.15,3,IF(FieldBeeForm!I22<0.2,4,IF(FieldBeeForm!I22<0.25,5,6)))))) -> 1 | E38: 6 | F38: 0.1666666667 | G38: 1 | H38: 0.1666666667 | I38: 0.1666666667 | K38: Having floral resources available throughout the year supports diversity of pollinator species. Scoring is set at 0, 1 to 5, 5 to 10, 10 to 15, 15 to 20, 20 to 25, and over 25% for maximum score. | L38: Zurbuchen et al 2008, NRCS 2009, Holcomb 2009, Pywell et al. 2005
B39: =FieldBeeForm!C23 -> 16 | C39: =FieldBeeForm!D23 -> Estimated surface area of flowering plants present during mid-blooming (Jun-Jul) period | D39: =IF(FieldBeeForm!I23=0,0,IF(FieldBeeForm!I23<0.05,1,IF(FieldBeeForm!I23<0.1,2,IF(FieldBeeForm!I23<0.15,3,IF(FieldBeeForm!I23<0.2,4,IF(FieldBeeForm!I23<0.25,5,6)))))) -> 1 | E39: 6 | F39: 0.1666666667 | G39: 1 | H39: 0.1666666667 | I39: 0.1666666667
B40: =FieldBeeForm!C24 -> 17 | C40: =FieldBeeForm!D24 -> Estimated surface area of flowering plants present during late-blooming (Aug-Jan) period | D40: =IF(FieldBeeForm!I24=0,0,IF(FieldBeeForm!I24<0.05,1,IF(FieldBeeForm!I24<0.1,2,IF(FieldBeeForm!I24<0.15,3,IF(FieldBeeForm!I24<0.2,4,IF(FieldBeeForm!I24<0.25,5,6)))))) -> 1 | E40: 6 | F40: 0.1666666667 | G40: 1 | H40: 0.1666666667 | I40: 0.1666666667
C41: Combined coverage of floral resources | D41: =+IF(SUM(FieldBeeForm!I22:I24)<0,0, IF(SUM(FieldBeeForm!I22:I24)<0.05, 1, IF(SUM(FieldBeeForm!I22:I24)<0.1, 2, IF(SUM(FieldBeeForm!I22:I24)<0.2, 3, IF(SUM(FieldBeeForm!I22:I24)<0.5, 4, IF(SUM(FieldBeeForm!I22:I24)<0.75, 5, 6)))))) -> 1 | E41: 6 | F41: 0.1666666667 | G41: 3 | H41: 0.5 | I41: 0.1666666667
C42: Sum of Floral Resouces Weights and Scores | G42: =SUM(G35:G41) -> 12 | H42: =SUM(H35:H41) -> 7 | I42: =H42/G42 -> 0.5833333333 | K42: This section of "Floral Resources" was weighted as approximately 1/4 of the total Map Unit score.
A43: Nesting materials | B43: =FieldBeeForm!C25 -> 18 | C43: =FieldBeeForm!D25 -> Percent cover of friable bare ground present | D43: =FieldBeeForm!E25 -> 0.055 | E43: 0.3 | F43: =+D43/E43 -> 0.1833333333 | G43: 3 | H43: =+F43*G43 -> 0.55 | I43: 0.1833333333 | K43: 70% native bees nest in soil. | L43: Morandin and Winston 2006, Carvell 2004, Potts et al. 2005, Xerces Society for Invertebrate Conservation Society for Invertebrate Conservation 2011
B44: =FieldBeeForm!C28 -> 19 and 20 | C44: =FieldBeeForm!D28 -> Amount of rodent holes and/or bunch grasses | D44: =FieldBeeForm!E28 -> 1 | E44: 2 | F44: =+D44/E44 -> 0.5 | G44: 2 | H44: =+F44*G44 -> 1 | I44: 0.5 | K44: 30% native bees nest in cavities including blue orchard bees. | L44: Thorp et al. 1983, Kearns and Thomson 2001, McFrederick and LeBuhn 2006
B45: =FieldBeeForm!C32 -> 21, 22 and 23 | C45: =FieldBeeForm!D32 -> Amount of snags/stumps, nest boxes/bundles, pithy tissue | D45: =FieldBeeForm!E32 -> 1 | E45: 2 | F45: =+D45/E45 -> 0.5 | G45: 2 | H45: =+F45*G45 -> 1 | I45: 0.5 | K45: Bumble bees often nest or overwinter in rodent holes or within bunch grasses. | L45: Bosch and Kemp 2001; Michener 2000; Xerces Society for Invertebrate Conservation Society for Invertebrate Conservation 2011;
B46: =FieldBeeForm!C33 -> 18 through 23 | C46: =FieldBeeForm!D33 -> Diversity of available nesting materials | D46: =FieldBeeForm!E33 -> 0.6666666667 | E46: 1 | F46: =+D46/E46 -> 0.6666666667 | G46: 5 | H46: =+F46*G46 -> 3.333333333 | I46: 0.6666666667 | K46: A diversity of nesting materials will support a diversity of pollinators. | L46: Tscharntke et al. 1998, Cane 2001, Potts et al. 2005, Westrich 1996
C47: Sum of Nesting Materials Weights and Scores | G47: =SUM(G43:G46) -> 12 | H47: =SUM(H43:H46) -> 5.883333333 | I47: =H47/G47 -> 0.4902777778 | K47: This section of "Nesting materials" was weighted as approximately 1/4 of the total Map Unit score.
A48: Management: Soil disturbance | B48: =FieldBeeForm!C34 -> 24 | C48: Is the Map Unit tilled at some point during the year? (0 = yes) | D48: =IF(FieldBeeForm!E34=0,1,0) -> 0 | E48: 1 | F48: =+D48/E48 -> 0 | G48: 1 | H48: =+F48*G48 -> 0 | I48: 0 | K48: Soil tilling disturbs ground nesting bees and favors aggressive nonnative plants. | L48: Shuler et al. 2005, NRCS 2009, Xerces Society for Invertebrate Conservation 2011
B49: =FieldBeeForm!C35 -> 25 | C49: Is the Map Unit flood-irrigated at some point during the year? (0 = yes) | D49: =IF(FieldBeeForm!E35=0,1,0) -> 1 | E49: 1 | F49: =+D49/E49 -> 1 | G49: 1 | H49: =+F49*G49 -> 1 | I49: 1 | K49: Flood irrigation drowns the underground life stages of ground nesting bees. | L49: Vaughn et al. 2007, NRCS 2009, Xerces Society for Invertebrate Conservation 2011
B50: =FieldBeeForm!C36 -> 26 | C50: Is plastic mulching used at the Map Unit? (0 = yes) | D50: =IF(FieldBeeForm!E36=0,1,0) -> 0 | E50: 1 | F50: 0 | G50: 1 | H50: =+F50*G50 -> 0 | I50: 0 | K50: Plastic mulching traps the underground life stages of ground nesting bees. | L50: NRCS 2009, Xerces Society for Invertebrate Conservation 2011
B51: =FieldBeeForm!C37 -> 27 | C51: Does road-grading or road-making occur on the Map Unit? (0 = yes) | D51: =IF(FieldBeeForm!E37=0,1,0) -> 0 | E51: 1 | F51: 0 | G51: 1 | H51: =+F51*G51 -> 0 | I51: 0 | K51: Road-grading/making distrubs the underground life stages of ground nesting bees. | L51: NRCS 2009, Xerces Society for Invertebrate Conservation 2011
B52: =FieldBeeForm!C38 -> 28 | C52: Total percent cover of map unit that does NOT experience soil disturbance. | D52: =1-FieldBeeForm!E38 -> 0.4 | E52: 1 | F52: =+D52/E52 -> 0.4 | G52: 2 | H52: =+F52*G52 -> 0.8 | I52: 0.4 | K52: The less of the site with ground disturbance, the less the impact to bees. | L52: NRCS 2009, Xerces Society for Invertebrate Conservation 2011
C53: Subtotal Sum of Management: Soil Disturbance Weights and Scores | G53: =SUM(G48:G52) -> 6 | H53: =SUM(H48:H52) -> 1.8 | I53: =H53/G53 -> 0.3 | K53: This subsection of "Soil disturbance" was weighted as 12.5% of the total Map Unit score.
A54: Management: Vegetation/ground disturbance | B54: =FieldBeeForm!C39 -> 29 | C54: Total cover NOT covered by invasive noxious weeds | D54: =1-FieldBeeForm!E39 -> 1 | E54: 1 | F54: =+D54/E54 -> 1 | G54: 1 | H54: =+F54*G54 -> 1 | I54: 1 | K54: Aggressive nonnative plant species reduce overall plant diversity, which influences bee diversity. | L54: Williams et al. 2010, NRCS 2009, Bosch and Kemp 2001, Pontin et al. 2006, Holcomb 2009, Pywell et al. 2005
B55: =FieldBeeForm!C40 -> 30 | C55: FIVE MINUS the number of invasive noxious weed species | D55: =5-FieldBeeForm!E40 -> 0 | E55: 5 | F55: =+D55/E55 -> 0 | G55: 1 | H55: 0 | I55: 0
B56: =FieldBeeForm!C41 -> 31 | C56: Percent of the Map Unit NOT burned during the blooming season (Feb through Sept) | D56: =1-FieldBeeForm!E41 -> 1 | E56: 1 | F56: 1 | G56: 1 | H56: 1 | I56: 1 | K56: Burning disturbs ground nesting bees and floral resources. | L56: Black et al. 2008, Hartley et al. 2007, Smallidge and Leopold 1997, Manguira and Thomas 1992, NRCS 2009, Xerces Society for Invertebrate Conservation 2011
B57: =FieldBeeForm!C42 -> 32 | C57: Percent of the Map Unit NOT mowed and/or hayed during the blooming season (Feb through Sept) | D57: =1-FieldBeeForm!E42 -> 0.9 | E57: 1 | F57: 0.9 | G57: 1 | H57: 0.9 | I57: 0.9 | K57: Mowing/haying disturbs ground nesting bees and floral resources.
B58: =FieldBeeForm!C43 -> 33 | C58: Total percent of the Map Unit NOT burned, mowed, or hayed during the blooming season | D58: =1-FieldBeeForm!E43 -> 0.7 | E58: 1 | F58: 0.7 | G58: 2 | H58: =+F58*G58 -> 1.4 | I58: =H58/G58 -> 0.7 | K58: The less of the site with vegetation/soil disturbance, the less the impact to bees.
C59: Subtotal Sum of Management: Vegetation/Ground Disturbance Weights and Scores | G59: =SUM(G54:G58) -> 6 | H59: =SUM(H54:H58) -> 4.3 | I59: =H59/G59 -> 0.7166666667 | K59: This subsection of "Vegetation/Ground disturbance" was weighted as 12.5% of the total Map Unit score.
C60: TOTAL Sum of Management | G60: =G53+G59 -> 12 | H60: =H53+H59 -> 6.1 | I60: =H60/G60 -> 0.5083333333 | K60: This section of "Management" was weighted as approximately 1/4 of the total Map Unit score.
C61: Map Unit SCORE | G61: =+G34+G42+G47+G60 -> 48 | H61: =+H34+H42+H47+H60 -> 23.16501377 | I61: =H61/G61 -> 0.4826044536
C62: Map Unit | D62: =D31 -> 1 | E62: Combined Score for this Map Unit and Project Area Capacity | I62: =0.4*I61+0.6*$I$29 -> 0.3173274957 | J62: =I62*H31 -> 0.09608699882
A63: Combined Acres for Map Units: | B63: =H31 -> 0.3028007346 | E63: Combined Score for all Map Units to this point with the Project Area Capacity | I63: =0.4*((I$61*B$63)/SUM(B$63))+0.6*I$29 -> 0.3173274957 | J63: =I63*B63 -> 0.09608699882
A84: =+FieldBeeForm!A71 -> 2 | C84: Map Unit Number: | D84: =+FieldBeeForm!A71 -> 2 | E84: Map Unit Acres: | H84: =FieldBeeForm!H70 -> 1.147842057
A85: Map Unit Characteristics | B85: =+FieldBeeForm!C$13 -> F | C85: Acres of Map Unit | D85: =+FieldBeeForm!H70 -> 1.147842057 | E85: =+FieldBeeForm!$E$12*0.1 -> 10 | F85: =+D85/E85 -> 0.1147842057 | G85: 6 | H85: =+F85*G85 -> 0.6887052342 | I85: =H85/G85 -> 0.1147842057 | K85: The more area of the Map Unit that provides nesting and/or foraging habitat for the pollinators, the better. Credit assigned linearly up to 10% of the total farm area (maximum). | L85: Zurbuchen et al 2008, NRCS 2009
B86: =+FieldBeeForm!C$15 -> G | C86: Percent of Map Unit that is covered with pollinator habitat | D86: =+IF(FieldBeeForm!E68<1, 0, IF(FieldBeeForm!E68<10, 1, IF(FieldBeeForm!E68<25, 2, IF(FieldBeeForm!E68<50, 3, IF(FieldBeeForm!E68<75, 4, IF(FieldBeeForm!E68< 85, 5, 6)))))) -> 0 | E86: 6 | F86: 0 | G86: 6 | H86: 0 | I86: 0 | K86: Higher density habitat, vs. diffuse habitat, reduces energy required for pollinators and is therefore also better habitat. Bins set at <1, 1-10, 10-25, 25-50, 50-75, 75-85, >85. | L86: NRCS 2009, Sim and Baltus 1987
C87: Combined sum of Map Unit extent and density scores | G87: =+SUM(G85:G86) -> 12 | H87: =+SUM(H85:H86) -> 0.6887052342 | I87: =H87/G87 -> 0.05739210285
A88: Floral resources | B88: =FieldBeeForm!C72 -> 12 | C88: =FieldBeeForm!D72 -> Number of different flowering plant species present during early-blooming (Feb-May) period | D88: =IF(FieldBeeForm!G72>=5, 5, FieldBeeForm!G72) -> 5 | E88: 5 | F88: =+D88/E88 -> 1 | G88: 2 | H88: =+F88*G88 -> 2 | I88: =H88/G88 -> 1 | K88: Research has shown that it is ideal to have 5 or more flowering plant species present during all seasons (the greater diversity of plants, the greater abundance and diversity of bees). | L88: NRCS 2009, Bosch and Kemp 2001, Pontin et al. 2006, Holcomb 2009, Pywell et al. 2005
B89: =FieldBeeForm!C73 -> 13 | C89: =FieldBeeForm!D73 -> Number of different flowering plants present during mid-blooming (Jun-Jul) period | D89: =IF(FieldBeeForm!G73>=5, 5, FieldBeeForm!G73) -> 5 | E89: 5 | F89: 1 | G89: 2 | H89: 2 | I89: 1
B90: =FieldBeeForm!C74 -> 14 | C90: =FieldBeeForm!D74 -> Number of different flowering plants present during late-blooming (Aug-Jan) period | D90: =IF(FieldBeeForm!G74>=5, 5, FieldBeeForm!G74) -> 5 | E90: 5 | F90: 1 | G90: 2 | H90: 2 | I90: 1
B91: =FieldBeeForm!C75 -> 15 | C91: =FieldBeeForm!D75 -> Estimated surface area of flowering plants present during early-blooming (Feb-May) period | D91: =IF(FieldBeeForm!I75=0,0,IF(FieldBeeForm!I75<0.05,1,IF(FieldBeeForm!I75<0.1,2,IF(FieldBeeForm!I75<0.15,3,IF(FieldBeeForm!I75<0.2,4,IF(FieldBeeForm!I75<0.25,5,6)))))) -> 0 | E91: 6 | F91: 0 | G91: 1 | H91: 0 | I91: 0 | K91: Having floral resources available throughout the year supports diversity of pollinator species. Scoring is set at 0, 1 to 5, 5 to 10, 10 to 15, 15 to 20, 20 to 25, and over 25% for maximum score. | L91: Zurbuchen et al 2008, NRCS 2009, Holcomb 2009, Pywell et al. 2005
B92: =FieldBeeForm!C76 -> 16 | C92: =FieldBeeForm!D76 -> Estimated surface area of flowering plants present during mid-blooming (Jun-Jul) period | D92: =IF(FieldBeeForm!I76=0,0,IF(FieldBeeForm!I76<0.05,1,IF(FieldBeeForm!I76<0.1,2,IF(FieldBeeForm!I76<0.15,3,IF(FieldBeeForm!I76<0.2,4,IF(FieldBeeForm!I76<0.25,5,6)))))) -> 0 | E92: 6 | F92: 0 | G92: 1 | H92: 0 | I92: 0
B93: =FieldBeeForm!C77 -> 17 | C93: =FieldBeeForm!D77 -> Estimated surface area of flowering plants present during late-blooming (Aug-Jan) period | D93: =IF(FieldBeeForm!I77=0,0,IF(FieldBeeForm!I77<0.05,1,IF(FieldBeeForm!I77<0.1,2,IF(FieldBeeForm!I77<0.15,3,IF(FieldBeeForm!I77<0.2,4,IF(FieldBeeForm!I77<0.25,5,6)))))) -> 0 | E93: 6 | F93: 0 | G93: 1 | H93: 0 | I93: 0
C94: Combined coverage of floral resources | D94: =+IF(SUM(FieldBeeForm!I75:I77)<0,0, IF(SUM(FieldBeeForm!I75:I77)<0.05, 1, IF(SUM(FieldBeeForm!I75:I77)<0.1, 2, IF(SUM(FieldBeeForm!I75:I77)<0.2, 3, IF(SUM(FieldBeeForm!I75:I77)<0.5, 4, IF(SUM(FieldBeeForm!I75:I77)<0.75, 5, 6)))))) -> 1 | E94: 6 | F94: 0.1666666667 | G94: 3 | H94: 0.5 | I94: 0.1666666667
C95: Sum of Floral Resouces Weights and Scores | G95: =SUM(G88:G94) -> 12 | H95: =SUM(H88:H94) -> 6.5 | I95: =H95/G95 -> 0.5416666667 | K95: This section of "Floral Resources" was weighted as approximately 1/4 of the total Map Unit score.
A96: Nesting materials | B96: =FieldBeeForm!C78 -> 18 | C96: =FieldBeeForm!D78 -> Percent cover of friable bare ground present | D96: =FieldBeeForm!E78 -> 0.055 | E96: 0.3 | F96: =+D96/E96 -> 0.1833333333 | G96: 3 | H96: =+F96*G96 -> 0.55 | I96: =H96/G96 -> 0.1833333333 | K96: 70% native bees nest in soil. | L96: Morandin and Winston 2006, Carvell 2004, Potts et al. 2005, Xerces Society for Invertebrate Conservation Society for Invertebrate Conservation 2011
B97: =FieldBeeForm!C81 -> 19 and 20 | C97: =FieldBeeForm!D81 -> Amount of rodent holes and/or bunch grasses | D97: =FieldBeeForm!E81 -> 1 | E97: 2 | F97: =+D97/E97 -> 0.5 | G97: 2 | H97: =+F97*G97 -> 1 | I97: 0.5 | K97: 30% native bees nest in cavities including blue orchard bees. | L97: Thorp et al. 1983, Kearns and Thomson 2001, McFrederick and LeBuhn 2006
B98: =FieldBeeForm!C85 -> 21, 22 and 23 | C98: =FieldBeeForm!D85 -> Amount of snags/stumps, nest boxes/bundles, pithy tissue | D98: =FieldBeeForm!E85 -> 1 | E98: 2 | F98: =+D98/E98 -> 0.5 | G98: 2 | H98: =+F98*G98 -> 1 | I98: 0.5 | K98: Bumble bees often nest or overwinter in rodent holes or within bunch grasses. | L98: Bosch and Kemp 2001; Michener 2000; Xerces Society for Invertebrate Conservation Society for Invertebrate Conservation 2011;
B99: =FieldBeeForm!C86 -> 18 through 23 | C99: =FieldBeeForm!D86 -> Diversity of available nesting materials | D99: =FieldBeeForm!E86 -> 0.6666666667 | E99: 1 | F99: =+D99/E99 -> 0.6666666667 | G99: 5 | H99: =+F99*G99 -> 3.333333333 | I99: 0.6666666667 | K99: A diversity of nesting materials will support a diversity of pollinators. | L99: Tscharntke et al. 1998, Cane 2001, Potts et al. 2005, Westrich 1996
C100: Sum of Nesting Materials Weights and Scores | G100: =SUM(G96:G99) -> 12 | H100: =SUM(H96:H99) -> 5.883333333 | I100: =H100/G100 -> 0.4902777778 | K100: This section of "Nesting materials" was weighted as approximately 1/4 of the total Map Unit score.
A101: Management: Soil disturbance | B101: =FieldBeeForm!C87 -> 24 | C101: Is the Map Unit tilled at some point during the year? (0 = yes) | D101: =IF(FieldBeeForm!E87=0,1,0) -> 0 | E101: 1 | F101: =+D101/E101 -> 0 | G101: 1 | H101: =+F101*G101 -> 0 | I101: =H101/G101 -> 0 | K101: Soil tilling disturbs ground nesting bees and favors aggressive nonnative plants. | L101: Shuler et al. 2005, NRCS 2009, Xerces Society for Invertebrate Conservation 2011
B102: =FieldBeeForm!C88 -> 25 | C102: Is the Map Unit flood-irrigated at some point during the year? (0 = yes) | D102: =IF(FieldBeeForm!E88=0,1,0) -> 1 | E102: 1 | F102: =+D102/E102 -> 1 | G102: 1 | H102: =+F102*G102 -> 1 | I102: 1 | K102: Flood irrigation drowns the underground life stages of ground nesting bees. | L102: Vaughn et al. 2007, NRCS 2009, Xerces Society for Invertebrate Conservation 2011
B103: =FieldBeeForm!C89 -> 26 | C103: Is plastic mulching used at the Map Unit? (0 = yes) | D103: =IF(FieldBeeForm!E89=0,1,0) -> 0 | E103: 1 | F103: 0 | G103: 1 | H103: =+F103*G103 -> 0 | I103: 0 | K103: Plastic mulching traps the underground life stages of ground nesting bees. | L103: NRCS 2009, Xerces Society for Invertebrate Conservation 2011
B104: =FieldBeeForm!C90 -> 27 | C104: Does road-grading or road-making occur on the Map Unit? (0 = yes) | D104: =IF(FieldBeeForm!E90=0,1,0) -> 0 | E104: 1 | F104: 0 | G104: 1 | H104: =+F104*G104 -> 0 | I104: 0 | K104: Road-grading/making distrubs the underground life stages of ground nesting bees. | L104: NRCS 2009, Xerces Society for Invertebrate Conservation 2011
B105: =FieldBeeForm!C91 -> 28 | C105: Total percent cover of map unit that does NOT experience soil disturbance. | D105: =1-FieldBeeForm!E91 -> 0.4 | E105: 1 | F105: =+D105/E105 -> 0.4 | G105: 2 | H105: =+F105*G105 -> 0.8 | I105: 0.4 | K105: The less of the site with ground disturbance, the less the impact to bees. | L105: NRCS 2009, Xerces Society for Invertebrate Conservation 2011
C106: Subtotal Sum of Management: Soil Disturbance Weights and Scores | G106: =SUM(G101:G105) -> 6 | H106: =SUM(H101:H105) -> 1.8 | I106: =H106/G106 -> 0.3 | K106: This subsection of "Soil disturbance" was weighted as 12.5% of the total Map Unit score.
A107: Management: Vegetation/ground disturbance | B107: =FieldBeeForm!C92 -> 29 | C107: Total cover NOT covered by invasive noxious weeds | D107: =1-FieldBeeForm!E92 -> 1 | E107: 1 | F107: =+D107/E107 -> 1 | G107: 1 | H107: =+F107*G107 -> 1 | I107: =H107/G107 -> 1 | K107: Aggressive nonnative plant species reduce overall plant diversity, which influences bee diversity. | L107: Williams et al. 2010, NRCS 2009, Bosch and Kemp 2001, Pontin et al. 2006, Holcomb 2009, Pywell et al. 2005
B108: =FieldBeeForm!C93 -> 30 | C108: FIVE MINUS the number of invasive noxious weed species | D108: =5-FieldBeeForm!E93 -> 0 | E108: 5 | F108: =+D108/E108 -> 0 | G108: 1 | H108: 0 | I108: 0
B109: =FieldBeeForm!C94 -> 31 | C109: Percent of the Map Unit NOT burned during the blooming season (Feb through Sept) | D109: =1-FieldBeeForm!E94 -> 1 | E109: 1 | F109: 1 | G109: 1 | H109: 1 | I109: 1 | K109: Burning disturbs ground nesting bees and floral resources. | L109: Black et al. 2008, Hartley et al. 2007, Smallidge and Leopold 1997, Manguira and Thomas 1992, NRCS 2009, Xerces Society for Invertebrate Conservation 2011
B110: =FieldBeeForm!C95 -> 32 | C110: Percent of the Map Unit NOT mowed and/or hayed during the blooming season (Feb through Sept) | D110: =1-FieldBeeForm!E95 -> 0.9 | E110: 1 | F110: 0.9 | G110: 1 | H110: 0.9 | I110: 0.9 | K110: Mowing/haying disturbs ground nesting bees and floral resources.
B111: =FieldBeeForm!C96 -> 33 | C111: Total percent of the Map Unit NOT burned, mowed, or hayed during the blooming season | D111: =1-FieldBeeForm!E96 -> 0.7 | E111: 1 | F111: 0.7 | G111: 2 | H111: =+F111*G111 -> 1.4 | I111: =H111/G111 -> 0.7 | K111: The less of the site with vegetation/soil disturbance, the less the impact to bees.
C112: Subtotal Sum of Management: Vegetation/Ground Disturbance Weights and Scores | G112: =SUM(G107:G111) -> 6 | H112: =SUM(H107:H111) -> 4.3 | I112: =H112/G112 -> 0.7166666667 | K112: This subsection of "Vegetation/Ground disturbance" was weighted as 12.5% of the total Map Unit score.
C113: TOTAL Sum of Management | G113: =G106+G112 -> 12 | H113: =H106+H112 -> 6.1 | I113: =H113/G113 -> 0.5083333333 | K113: This section of "Management" was weighted as approximately 1/4 of the total Map Unit score.
C114: Map Unit SCORE | G114: =(SUM(G87,G95,G100,G113,)) -> 48 | H114: =(SUM(H87,H95,H100,H113,)) -> 19.17203857 | I114: =H114/G114 -> 0.3994174702
C115: Map Unit | D115: =D84 -> 2 | E115: Combined Score for this Map Unit and Project Area Capacity | I115: =0.4*I114+0.6*$I$29 -> 0.2840527023 | J115: =I115*H84 -> 0.3260476381
A116: Combined Acres for Map Units: | B116: =H84 -> 1.147842057 | E116: Combined Score for all Map Units to this point with the Project Area Capacity | I116: =0.4*((I$61*B$63+I$114*B$116)/SUM(B$116,B$63))+0.6*I$29 -> 0.290998335 | J116: =I116*B116 -> 0.3340201274
A137: =+FieldBeeForm!A124 -> 3 | C137: Map Unit Number: | D137: =+FieldBeeForm!A124 -> 3 | E137: Map Unit Acres: | H137: =FieldBeeForm!H123 -> 6.887052342
A138: Map Unit Characteristics | B138: =+FieldBeeForm!C$13 -> F | C138: Acres of Map Unit | D138: =+FieldBeeForm!H123 -> 6.887052342 | E138: =+FieldBeeForm!$E$12*0.1 -> 10 | F138: =+D138/E138 -> 0.6887052342 | G138: 6 | H138: =+F138*G138 -> 4.132231405 | I138: =H138/G138 -> 0.6887052342 | K138: The more area of the Map Unit that provides nesting and/or foraging habitat for the pollinators, the better. Credit assigned linearly up to 10% of the total farm area (maximum). | L138: Zurbuchen et al 2008, NRCS 2009
B139: =+FieldBeeForm!C$15 -> G | C139: Percent of Map Unit that is covered with pollinator habitat | D139: =+IF(FieldBeeForm!E121<1, 0, IF(FieldBeeForm!E121<10, 1, IF(FieldBeeForm!E121<25, 2, IF(FieldBeeForm!E121<50, 3, IF(FieldBeeForm!E121<75, 4, IF(FieldBeeForm!E121< 85, 5, 6)))))) -> 0 | E139: 6 | F139: 0 | G139: 6 | H139: 0 | I139: 0 | K139: Higher density habitat, vs. diffuse habitat, reduces energy required for pollinators and is therefore also better habitat. Bins set at <1, 1-10, 10-25, 25-50, 50-75, 75-85, >85. | L139: NRCS 2009, Sim and Baltus 1987
C140: Combined sum of Map Unit extent and density scores | G140: =+SUM(G138:G139) -> 12 | H140: =+SUM(H138:H139) -> 4.132231405 | I140: =H140/G140 -> 0.3443526171
A141: Floral resources | B141: =FieldBeeForm!C125 -> 12 | C141: =FieldBeeForm!D125 -> Number of different flowering plant species present during early-blooming (Feb-May) period | D141: =IF(FieldBeeForm!G125>=5, 5, FieldBeeForm!G125) -> 5 | E141: 5 | F141: =+D141/E141 -> 1 | G141: 2 | H141: =+F141*G141 -> 2 | I141: =H141/G141 -> 1 | K141: Research has shown that it is ideal to have 5 or more flowering plant species present during all seasons (the greater diversity of plants, the greater abundance and diversity of bees). | L141: NRCS 2009, Bosch and Kemp 2001, Pontin et al. 2006, Holcomb 2009, Pywell et al. 2005
B142: =FieldBeeForm!C126 -> 13 | C142: =FieldBeeForm!D126 -> Number of different flowering plants present during mid-blooming (Jun-Jul) period | D142: =IF(FieldBeeForm!G126>=5, 5, FieldBeeForm!G126) -> 5 | E142: 5 | F142: 1 | G142: 2 | H142: 2 | I142: 1
B143: =FieldBeeForm!C127 -> 14 | C143: =FieldBeeForm!D127 -> Number of different flowering plants present during late-blooming (Aug-Jan) period | D143: =IF(FieldBeeForm!G127>=5, 5, FieldBeeForm!G127) -> 5 | E143: 5 | F143: 1 | G143: 2 | H143: 2 | I143: 1
B144: =FieldBeeForm!C128 -> 15 | C144: =FieldBeeForm!D128 -> Estimated surface area of flowering plants present during early-blooming (Feb-May) period | D144: =IF(FieldBeeForm!I128=0,0,IF(FieldBeeForm!I128<0.05,1,IF(FieldBeeForm!I128<0.1,2,IF(FieldBeeForm!I128<0.15,3,IF(FieldBeeForm!I128<0.2,4,IF(FieldBeeForm!I128<0.25,5,6)))))) -> 0 | E144: 6 | F144: 0 | G144: 1 | H144: 0 | I144: 0 | K144: Having floral resources available throughout the year supports diversity of pollinator species. Scoring is set at 0, 1 to 5, 5 to 10, 10 to 15, 15 to 20, 20 to 25, and over 25% for maximum score. | L144: Zurbuchen et al 2008, NRCS 2009, Holcomb 2009, Pywell et al. 2005
B145: =FieldBeeForm!C129 -> 16 | C145: =FieldBeeForm!D129 -> Estimated surface area of flowering plants present during mid-blooming (Jun-Jul) period | D145: =IF(FieldBeeForm!I129=0,0,IF(FieldBeeForm!I129<0.05,1,IF(FieldBeeForm!I129<0.1,2,IF(FieldBeeForm!I129<0.15,3,IF(FieldBeeForm!I129<0.2,4,IF(FieldBeeForm!I129<0.25,5,6)))))) -> 0 | E145: 6 | F145: 0 | G145: 1 | H145: 0 | I145: 0
B146: =FieldBeeForm!C130 -> 17 | C146: =FieldBeeForm!D130 -> Estimated surface area of flowering plants present during late-blooming (Aug-Jan) period | D146: =IF(FieldBeeForm!I130=0,0,IF(FieldBeeForm!I130<0.05,1,IF(FieldBeeForm!I130<0.1,2,IF(FieldBeeForm!I130<0.15,3,IF(FieldBeeForm!I130<0.2,4,IF(FieldBeeForm!I130<0.25,5,6)))))) -> 0 | E146: 6 | F146: 0 | G146: 1 | H146: 0 | I146: 0
C147: Combined coverage of floral resources | D147: =+IF(SUM(FieldBeeForm!I128:I130)<0,0, IF(SUM(FieldBeeForm!I128:I130)<0.05, 1, IF(SUM(FieldBeeForm!I128:I130)<0.1, 2, IF(SUM(FieldBeeForm!I128:I130)<0.2, 3, IF(SUM(FieldBeeForm!I128:I130)<0.5, 4, IF(SUM(FieldBeeForm!I128:I130)<0.75, 5, 6)))))) -> 1 | E147: 6 | F147: 0.1666666667 | G147: 3 | H147: 0.5 | I147: 0.1666666667
C148: Sum of Floral Resouces Weights and Scores | G148: =SUM(G141:G147) -> 12 | H148: =SUM(H141:H147) -> 6.5 | I148: =H148/G148 -> 0.5416666667 | K148: This section of "Floral Resources" was weighted as approximately 1/4 of the total Map Unit score.
A149: Nesting materials | B149: =FieldBeeForm!C131 -> 18 | C149: =FieldBeeForm!D131 -> Percent cover of friable bare ground present | D149: =FieldBeeForm!E131 -> 0.055 | E149: 0.3 | F149: =+D149/E149 -> 0.1833333333 | G149: 3 | H149: =+F149*G149 -> 0.55 | I149: =H149/G149 -> 0.1833333333 | K149: 70% native bees nest in soil. | L149: Morandin and Winston 2006, Carvell 2004, Potts et al. 2005, Xerces Society for Invertebrate Conservation Society for Invertebrate Conservation 2011
B150: =FieldBeeForm!C134 -> 19 and 20 | C150: =FieldBeeForm!D134 -> Amount of rodent holes and/or bunch grasses | D150: =FieldBeeForm!E134 -> 1 | E150: 2 | F150: =+D150/E150 -> 0.5 | G150: 2 | H150: =+F150*G150 -> 1 | I150: 0.5 | K150: 30% native bees nest in cavities including blue orchard bees. | L150: Thorp et al. 1983, Kearns and Thomson 2001, McFrederick and LeBuhn 2006
B151: =FieldBeeForm!C138 -> 21, 22 and 23 | C151: =FieldBeeForm!D138 -> Amount of snags/stumps, nest boxes/bundles, pithy tissue | D151: =FieldBeeForm!E138 -> 1 | E151: 2 | F151: =+D151/E151 -> 0.5 | G151: 2 | H151: =+F151*G151 -> 1 | I151: 0.5 | K151: Bumble bees often nest or overwinter in rodent holes or within bunch grasses. | L151: Bosch and Kemp 2001; Michener 2000; Xerces Society for Invertebrate Conservation Society for Invertebrate Conservation 2011;
B152: =FieldBeeForm!C139 -> 18 through 23 | C152: =FieldBeeForm!D139 -> Diversity of available nesting materials | D152: =FieldBeeForm!E139 -> 0.6666666667 | E152: 1 | F152: =+D152/E152 -> 0.6666666667 | G152: 5 | H152: =+F152*G152 -> 3.333333333 | I152: 0.6666666667 | K152: A diversity of nesting materials will support a diversity of pollinators. | L152: Tscharntke et al. 1998, Cane 2001, Potts et al. 2005, Westrich 1996
C153: Sum of Nesting Materials Weights and Scores | G153: =SUM(G149:G152) -> 12 | H153: =SUM(H149:H152) -> 5.883333333 | I153: =H153/G153 -> 0.4902777778 | K153: This section of "Nesting materials" was weighted as approximately 1/4 of the total Map Unit score.
A154: Management: Soil disturbance | B154: =FieldBeeForm!C140 -> 24 | C154: Is the Map Unit tilled at some point during the year? (0 = yes) | D154: =IF(FieldBeeForm!E140=0,1,0) -> 0 | E154: 1 | F154: =+D154/E154 -> 0 | G154: 1 | H154: =+F154*G154 -> 0 | I154: =H154/G154 -> 0 | K154: Soil tilling disturbs ground nesting bees and favors aggressive nonnative plants. | L154: Shuler et al. 2005, NRCS 2009, Xerces Society for Invertebrate Conservation 2011
B155: =FieldBeeForm!C141 -> 25 | C155: Is the Map Unit flood-irrigated at some point during the year? (0 = yes) | D155: =IF(FieldBeeForm!E141=0,1,0) -> 1 | E155: 1 | F155: =+D155/E155 -> 1 | G155: 1 | H155: =+F155*G155 -> 1 | I155: 1 | K155: Flood irrigation drowns the underground life stages of ground nesting bees. | L155: Vaughn et al. 2007, NRCS 2009, Xerces Society for Invertebrate Conservation 2011
B156: =FieldBeeForm!C142 -> 26 | C156: Is plastic mulching used at the Map Unit? (0 = yes) | D156: =IF(FieldBeeForm!E142=0,1,0) -> 0 | E156: 1 | F156: 0 | G156: 1 | H156: =+F156*G156 -> 0 | I156: 0 | K156: Plastic mulching traps the underground life stages of ground nesting bees. | L156: NRCS 2009, Xerces Society for Invertebrate Conservation 2011
B157: =FieldBeeForm!C143 -> 27 | C157: Does road-grading or road-making occur on the Map Unit? (0 = yes) | D157: =IF(FieldBeeForm!E143=0,1,0) -> 0 | E157: 1 | F157: 0 | G157: 1 | H157: =+F157*G157 -> 0 | I157: 0 | K157: Road-grading/making distrubs the underground life stages of ground nesting bees. | L157: NRCS 2009, Xerces Society for Invertebrate Conservation 2011
B158: =FieldBeeForm!C144 -> 28 | C158: Total percent cover of map unit that does NOT experience soil disturbance. | D158: =1-FieldBeeForm!E144 -> 0.4 | E158: 1 | F158: =+D158/E158 -> 0.4 | G158: 2 | H158: =+F158*G158 -> 0.8 | I158: 0.4 | K158: The less of the site with ground disturbance, the less the impact to bees. | L158: NRCS 2009, Xerces Society for Invertebrate Conservation 2011
C159: Subtotal Sum of Management: Soil Disturbance Weights and Scores | G159: =SUM(G154:G158) -> 6 | H159: =SUM(H154:H158) -> 1.8 | I159: =H159/G159 -> 0.3 | K159: This subsection of "Soil disturbance" was weighted as 12.5% of the total Map Unit score.
A160: Management: Vegetation/ground disturbance | B160: =FieldBeeForm!C145 -> 29 | C160: Total cover NOT covered by invasive noxious weeds | D160: =1-FieldBeeForm!E145 -> 1 | E160: 1 | F160: =+D160/E160 -> 1 | G160: 1 | H160: =+F160*G160 -> 1 | I160: =H160/G160 -> 1 | K160: Aggressive nonnative plant species reduce overall plant diversity, which influences bee diversity. | L160: Williams et al. 2010, NRCS 2009, Bosch and Kemp 2001, Pontin et al. 2006, Holcomb 2009, Pywell et al. 2005
B161: =FieldBeeForm!C146 -> 30 | C161: FIVE MINUS the number of invasive noxious weed species | D161: =5-FieldBeeForm!E146 -> 0 | E161: 5 | F161: =+D161/E161 -> 0 | G161: 1 | H161: 0 | I161: 0
B162: =FieldBeeForm!C147 -> 31 | C162: Percent of the Map Unit NOT burned during the blooming season (Feb through Sept) | D162: =1-FieldBeeForm!E147 -> 1 | E162: 1 | F162: 1 | G162: 1 | H162: 1 | I162: 1 | K162: Burning disturbs ground nesting bees and floral resources. | L162: Black et al. 2008, Hartley et al. 2007, Smallidge and Leopold 1997, Manguira and Thomas 1992, NRCS 2009, Xerces Society for Invertebrate Conservation 2011
B163: =FieldBeeForm!C148 -> 32 | C163: Percent of the Map Unit NOT mowed and/or hayed during the blooming season (Feb through Sept) | D163: =1-FieldBeeForm!E148 -> 0.9 | E163: 1 | F163: 0.9 | G163: 1 | H163: 0.9 | I163: 0.9 | K163: Mowing/haying disturbs ground nesting bees and floral resources.
B164: =FieldBeeForm!C149 -> 33 | C164: Total percent of the Map Unit NOT burned, mowed, or hayed during the blooming season | D164: =1-FieldBeeForm!E149 -> 0.7 | E164: 1 | F164: 0.7 | G164: 2 | H164: =+F164*G164 -> 1.4 | I164: =H164/G164 -> 0.7 | K164: The less of the site with vegetation/soil disturbance, the less the impact to bees.
C165: Subtotal Sum of Management: Vegetation/Ground Disturbance Weights and Scores | G165: =SUM(G160:G164) -> 6 | H165: =SUM(H160:H164) -> 4.3 | I165: =H165/G165 -> 0.7166666667 | K165: This subsection of "Vegetation/Ground disturbance" was weighted as 12.5% of the total Map Unit score.
C166: TOTAL Sum of Management | G166: =G159+G165 -> 12 | H166: =H159+H165 -> 6.1 | I166: =H166/G166 -> 0.5083333333 | K166: This section of "Management" was weighted as approximately 1/4 of the total Map Unit score.
C167: Map Unit SCORE | G167: =(SUM(G140,G148,G153,G166,)) -> 48 | H167: =(SUM(H140,H148,H153,H166,)) -> 22.61556474 | I167: =H167/G167 -> 0.4711575987
C168: Map Unit | D168: =D137 -> 3 | E168: Combined Score for this Map Unit and Project Area Capacity | I168: =0.4*I167+0.6*$I$29 -> 0.3127487538 | J168: =I168*H137 -> 2.153917037
A169: Combined Acres for Map Units: | B169: =H137 -> 6.887052342 | E169: Combined Score for all Map Units to this point with the Project Area Capacity | I169: =0.4*((I$61*B$63+I$114*B$116+I$167*B$169)/SUM(B$116,B$63, B$169))+0.6*I$29 -> 0.3089644839 | J169: =I169*B169 -> 2.127854573
A190: =+FieldBeeForm!A177 -> 4 | C190: Map Unit Number: | D190: =+FieldBeeForm!A177 -> 4 | E190: Map Unit Acres: | H190: =FieldBeeForm!H176 -> 0.4591368228
A191: Map Unit Characteristics | B191: =+FieldBeeForm!C$13 -> F | C191: Acres of Map Unit | D191: =+FieldBeeForm!H176 -> 0.4591368228 | E191: =+FieldBeeForm!$E$12*0.1 -> 10 | F191: =+D191/E191 -> 0.04591368228 | G191: 6 | H191: =+F191*G191 -> 0.2754820937 | I191: =H191/G191 -> 0.04591368228 | K191: The more area of the Map Unit that provides nesting and/or foraging habitat for the pollinators, the better. Credit assigned linearly up to 10% of the total farm area (maximum). | L191: Zurbuchen et al 2008, NRCS 2009
B192: =+FieldBeeForm!C$15 -> G | C192: Percent of Map Unit that is covered with pollinator habitat | D192: =+IF(FieldBeeForm!E174<1, 0, IF(FieldBeeForm!E174<10, 1, IF(FieldBeeForm!E174<25, 2, IF(FieldBeeForm!E174<50, 3, IF(FieldBeeForm!E174<75, 4, IF(FieldBeeForm!E174< 85, 5, 6)))))) -> 0 | E192: 6 | F192: 0 | G192: 6 | H192: 0 | I192: 0 | K192: Higher density habitat, vs. diffuse habitat, reduces energy required for pollinators and is therefore also better habitat. Bins set at <1, 1-10, 10-25, 25-50, 50-75, 75-85, >85. | L192: NRCS 2009, Sim and Baltus 1987
C193: Combined sum of Map Unit extent and density scores | G193: =+SUM(G191:G192) -> 12 | H193: =+SUM(H191:H192) -> 0.2754820937 | I193: =H193/G193 -> 0.02295684114
A194: Floral resources | B194: =FieldBeeForm!C178 -> 12 | C194: =FieldBeeForm!D178 -> Number of different flowering plant species present during early-blooming (Feb-May) period | D194: =IF(FieldBeeForm!G178>=5, 5, FieldBeeForm!G178) -> 5 | E194: 5 | F194: =+D194/E194 -> 1 | G194: 2 | H194: =+F194*G194 -> 2 | I194: =H194/G194 -> 1 | K194: Research has shown that it is ideal to have 5 or more flowering plant species present during all seasons (the greater diversity of plants, the greater abundance and diversity of bees). | L194: NRCS 2009, Bosch and Kemp 2001, Pontin et al. 2006, Holcomb 2009, Pywell et al. 2005
B195: =FieldBeeForm!C179 -> 13 | C195: =FieldBeeForm!D179 -> Number of different flowering plants present during mid-blooming (Jun-Jul) period | D195: =IF(FieldBeeForm!G179>=5, 5, FieldBeeForm!G179) -> 5 | E195: 5 | F195: 1 | G195: 2 | H195: 2 | I195: 1
B196: =FieldBeeForm!C180 -> 14 | C196: =FieldBeeForm!D180 -> Number of different flowering plants present during late-blooming (Aug-Jan) period | D196: =IF(FieldBeeForm!G180>=5, 5, FieldBeeForm!G180) -> 5 | E196: 5 | F196: 1 | G196: 2 | H196: 2 | I196: 1
B197: =FieldBeeForm!C181 -> 15 | C197: =FieldBeeForm!D181 -> Estimated surface area of flowering plants present during early-blooming (Feb-May) period | D197: =IF(FieldBeeForm!I181=0,0,IF(FieldBeeForm!I181<0.05,1,IF(FieldBeeForm!I181<0.1,2,IF(FieldBeeForm!I181<0.15,3,IF(FieldBeeForm!I181<0.2,4,IF(FieldBeeForm!I181<0.25,5,6)))))) -> 0 | E197: 6 | F197: 0 | G197: 1 | H197: 0 | I197: 0 | K197: Having floral resources available throughout the year supports diversity of pollinator species. Scoring is set at 0, 1 to 5, 5 to 10, 10 to 15, 15 to 20, 20 to 25, and over 25% for maximum score. | L197: Zurbuchen et al 2008, NRCS 2009, Holcomb 2009, Pywell et al. 2005
B198: =FieldBeeForm!C182 -> 16 | C198: =FieldBeeForm!D182 -> Estimated surface area of flowering plants present during mid-blooming (Jun-Jul) period | D198: =IF(FieldBeeForm!I182=0,0,IF(FieldBeeForm!I182<0.05,1,IF(FieldBeeForm!I182<0.1,2,IF(FieldBeeForm!I182<0.15,3,IF(FieldBeeForm!I182<0.2,4,IF(FieldBeeForm!I182<0.25,5,6)))))) -> 0 | E198: 6 | F198: 0 | G198: 1 | H198: 0 | I198: 0
B199: =FieldBeeForm!C183 -> 17 | C199: =FieldBeeForm!D183 -> Estimated surface area of flowering plants present during late-blooming (Aug-Jan) period | D199: =IF(FieldBeeForm!I183=0,0,IF(FieldBeeForm!I183<0.05,1,IF(FieldBeeForm!I183<0.1,2,IF(FieldBeeForm!I183<0.15,3,IF(FieldBeeForm!I183<0.2,4,IF(FieldBeeForm!I183<0.25,5,6)))))) -> 0 | E199: 6 | F199: 0 | G199: 1 | H199: 0 | I199: 0
C200: Combined coverage of floral resources | D200: =+IF(SUM(FieldBeeForm!I181:I183)<0,0, IF(SUM(FieldBeeForm!I181:I183)<0.05, 1, IF(SUM(FieldBeeForm!I181:I183)<0.1, 2, IF(SUM(FieldBeeForm!I181:I183)<0.2, 3, IF(SUM(FieldBeeForm!I181:I183)<0.5, 4, IF(SUM(FieldBeeForm!I181:I183)<0.75, 5, 6)))))) -> 1 | E200: 6 | F200: 0.1666666667 | G200: 3 | H200: 0.5 | I200: 0.1666666667
C201: Sum of Floral Resouces Weights and Scores | G201: =SUM(G194:G200) -> 12 | H201: =SUM(H194:H200) -> 6.5 | I201: =H201/G201 -> 0.5416666667 | K201: This section of "Floral Resources" was weighted as approximately 1/4 of the total Map Unit score.
A202: Nesting materials | B202: =FieldBeeForm!C184 -> 18 | C202: =FieldBeeForm!D184 -> Percent cover of friable bare ground present | D202: =FieldBeeForm!E184 -> 0.055 | E202: 0.3 | F202: =+D202/E202 -> 0.1833333333 | G202: 3 | H202: =+F202*G202 -> 0.55 | I202: =H202/G202 -> 0.1833333333 | K202: 70% native bees nest in soil. | L202: Morandin and Winston 2006, Carvell 2004, Potts et al. 2005, Xerces Society for Invertebrate Conservation Society for Invertebrate Conservation 2011
B203: =FieldBeeForm!C187 -> 19 and 20 | C203: =FieldBeeForm!D187 -> Amount of rodent holes and/or bunch grasses | D203: =FieldBeeForm!E187 -> 1 | E203: 2 | F203: =+D203/E203 -> 0.5 | G203: 2 | H203: =+F203*G203 -> 1 | I203: 0.5 | K203: 30% native bees nest in cavities including blue orchard bees. | L203: Thorp et al. 1983, Kearns and Thomson 2001, McFrederick and LeBuhn 2006
B204: =FieldBeeForm!C191 -> 21, 22 and 23 | C204: =FieldBeeForm!D191 -> Amount of snags/stumps, nest boxes/bundles, pithy tissue | D204: =FieldBeeForm!E191 -> 1 | E204: 2 | F204: =+D204/E204 -> 0.5 | G204: 2 | H204: =+F204*G204 -> 1 | I204: 0.5 | K204: Bumble bees often nest or overwinter in rodent holes or within bunch grasses. | L204: Bosch and Kemp 2001; Michener 2000; Xerces Society for Invertebrate Conservation Society for Invertebrate Conservation 2011;
B205: =FieldBeeForm!C192 -> 18 through 23 | C205: =FieldBeeForm!D192 -> Diversity of available nesting materials | D205: =FieldBeeForm!E192 -> 0.6666666667 | E205: 1 | F205: =+D205/E205 -> 0.6666666667 | G205: 5 | H205: =+F205*G205 -> 3.333333333 | I205: 0.6666666667 | K205: A diversity of nesting materials will support a diversity of pollinators. | L205: Tscharntke et al. 1998, Cane 2001, Potts et al. 2005, Westrich 1996
C206: Sum of Nesting Materials Weights and Scores | G206: =SUM(G202:G205) -> 12 | H206: =SUM(H202:H205) -> 5.883333333 | I206: =H206/G206 -> 0.4902777778 | K206: This section of "Nesting materials" was weighted as approximately 1/4 of the total Map Unit score.
A207: Management: Soil disturbance | B207: =FieldBeeForm!C193 -> 24 | C207: Is the Map Unit tilled at some point during the year? (0 = yes) | D207: =IF(FieldBeeForm!E193=0,1,0) -> 0 | E207: 1 | F207: =+D207/E207 -> 0 | G207: 1 | H207: =+F207*G207 -> 0 | I207: =H207/G207 -> 0 | K207: Soil tilling disturbs ground nesting bees and favors aggressive nonnative plants. | L207: Shuler et al. 2005, NRCS 2009, Xerces Society for Invertebrate Conservation 2011
B208: =FieldBeeForm!C194 -> 25 | C208: Is the Map Unit flood-irrigated at some point during the year? (0 = yes) | D208: =IF(FieldBeeForm!E194=0,1,0) -> 1 | E208: 1 | F208: =+D208/E208 -> 1 | G208: 1 | H208: =+F208*G208 -> 1 | I208: 1 | K208: Flood irrigation drowns the underground life stages of ground nesting bees. | L208: Vaughn et al. 2007, NRCS 2009, Xerces Society for Invertebrate Conservation 2011
B209: =FieldBeeForm!C195 -> 26 | C209: Is plastic mulching used at the Map Unit? (0 = yes) | D209: =IF(FieldBeeForm!E195=0,1,0) -> 0 | E209: 1 | F209: 0 | G209: 1 | H209: =+F209*G209 -> 0 | I209: 0 | K209: Plastic mulching traps the underground life stages of ground nesting bees. | L209: NRCS 2009, Xerces Society for Invertebrate Conservation 2011
B210: =FieldBeeForm!C196 -> 27 | C210: Does road-grading or road-making occur on the Map Unit? (0 = yes) | D210: =IF(FieldBeeForm!E196=0,1,0) -> 0 | E210: 1 | F210: 0 | G210: 1 | H210: =+F210*G210 -> 0 | I210: 0 | K210: Road-grading/making distrubs the underground life stages of ground nesting bees. | L210: NRCS 2009, Xerces Society for Invertebrate Conservation 2011
B211: =FieldBeeForm!C197 -> 28 | C211: Total percent cover of map unit that does NOT experience soil disturbance. | D211: =1-FieldBeeForm!E197 -> 0.4 | E211: 1 | F211: =+D211/E211 -> 0.4 | G211: 2 | H211: =+F211*G211 -> 0.8 | I211: 0.4 | K211: The less of the site with ground disturbance, the less the impact to bees. | L211: NRCS 2009, Xerces Society for Invertebrate Conservation 2011
C212: Subtotal Sum of Management: Soil Disturbance Weights and Scores | G212: =SUM(G207:G211) -> 6 | H212: =SUM(H207:H211) -> 1.8 | I212: =H212/G212 -> 0.3 | K212: This subsection of "Soil disturbance" was weighted as 12.5% of the total Map Unit score.
A213: Management: Vegetation/ground disturbance | B213: =FieldBeeForm!C198 -> 29 | C213: Total cover NOT covered by invasive noxious weeds | D213: =1-FieldBeeForm!E198 -> 1 | E213: 1 | F213: =+D213/E213 -> 1 | G213: 1 | H213: =+F213*G213 -> 1 | I213: =H213/G213 -> 1 | K213: Aggressive nonnative plant species reduce overall plant diversity, which influences bee diversity. | L213: Williams et al. 2010, NRCS 2009, Bosch and Kemp 2001, Pontin et al. 2006, Holcomb 2009, Pywell et al. 2005
B214: =FieldBeeForm!C199 -> 30 | C214: FIVE MINUS the number of invasive noxious weed species | D214: =5-FieldBeeForm!E199 -> 0 | E214: 5 | F214: =+D214/E214 -> 0 | G214: 1 | H214: 0 | I214: 0
B215: =FieldBeeForm!C200 -> 31 | C215: Percent of the Map Unit NOT burned during the blooming season (Feb through Sept) | D215: =1-FieldBeeForm!E200 -> 1 | E215: 1 | F215: 1 | G215: 1 | H215: 1 | I215: 1 | K215: Burning disturbs ground nesting bees and floral resources. | L215: Black et al. 2008, Hartley et al. 2007, Smallidge and Leopold 1997, Manguira and Thomas 1992, NRCS 2009, Xerces Society for Invertebrate Conservation 2011
B216: =FieldBeeForm!C201 -> 32 | C216: Percent of the Map Unit NOT mowed and/or hayed during the blooming season (Feb through Sept) | D216: =1-FieldBeeForm!E201 -> 0.9 | E216: 1 | F216: 0.9 | G216: 1 | H216: 0.9 | I216: 0.9 | K216: Mowing/haying disturbs ground nesting bees and floral resources.
B217: =FieldBeeForm!C202 -> 33 | C217: Total percent of the Map Unit NOT burned, mowed, or hayed during the blooming season | D217: =1-FieldBeeForm!E202 -> 0.7 | E217: 1 | F217: 0.7 | G217: 2 | H217: =+F217*G217 -> 1.4 | I217: =H217/G217 -> 0.7 | K217: The less of the site with vegetation/soil disturbance, the less the impact to bees.
C218: Subtotal Sum of Management: Vegetation/Ground Disturbance Weights and Scores | G218: =SUM(G213:G217) -> 6 | H218: =SUM(H213:H217) -> 4.3 | I218: =H218/G218 -> 0.7166666667 | K218: This subsection of "Vegetation/Ground disturbance" was weighted as 12.5% of the total Map Unit score.
C219: TOTAL Sum of Management | G219: =G212+G218 -> 12 | H219: =H212+H218 -> 6.1 | I219: =H219/G219 -> 0.5083333333 | K219: This section of "Management" was weighted as approximately 1/4 of the total Map Unit score.
C220: Map Unit SCORE | G220: =(SUM(G193,G201,G206,G219,)) -> 48 | H220: =(SUM(H193,H201,H206,H219,)) -> 18.75881543 | I220: =H220/G220 -> 0.3908086547
C221: Map Unit | D221: =D190 -> 4 | E221: Combined Score for this Map Unit and Project Area Capacity | I221: =0.4*I220+0.6*$I$29 -> 0.2806091762 | J221: =I221*H190 -> 0.1288380056
A222: Combined Acres for Map Units: | B222: =H190 -> 0.4591368228 | E222: Combined Score for all Map Units to this point with the Project Area Capacity | I222: =0.4*((I$61*B$63+I$114*B$116+I$167*B$169+I$220*B$222)/SUM(B$116,B$63, B$169,B$222))+0.6*I$29 -> 0.3074845232 | J222: =I222*B222 -> 0.141177467
A243: =+FieldBeeForm!A230 -> 5 | C243: Map Unit Number: | D243: =+FieldBeeForm!A230 -> 5 | E243: Map Unit Acres: | H243: =FieldBeeForm!H229 -> 0.4591368228
A244: Map Unit Characteristics | B244: =+FieldBeeForm!C$13 -> F | C244: Acres of Map Unit | D244: =+FieldBeeForm!H229 -> 0.4591368228 | E244: =+FieldBeeForm!$E$12*0.1 -> 10 | F244: =+D244/E244 -> 0.04591368228 | G244: 6 | H244: =+F244*G244 -> 0.2754820937 | I244: =H244/G244 -> 0.04591368228 | K244: The more area of the Map Unit that provides nesting and/or foraging habitat for the pollinators, the better. Credit assigned linearly up to 10% of the total farm area (maximum). | L244: Zurbuchen et al 2008, NRCS 2009
B245: =+FieldBeeForm!C$15 -> G | C245: Percent of Map Unit that is covered with pollinator habitat | D245: =+IF(FieldBeeForm!E227<1, 0, IF(FieldBeeForm!E227<10, 1, IF(FieldBeeForm!E227<25, 2, IF(FieldBeeForm!E227<50, 3, IF(FieldBeeForm!E227<75, 4, IF(FieldBeeForm!E227< 85, 5, 6)))))) -> 0 | E245: 6 | F245: 0 | G245: 6 | H245: 0 | I245: 0 | K245: Higher density habitat, vs. diffuse habitat, reduces energy required for pollinators and is therefore also better habitat. Bins set at <1, 1-10, 10-25, 25-50, 50-75, 75-85, >85. | L245: NRCS 2009, Sim and Baltus 1987
C246: Combined sum of Map Unit extent and density scores | G246: =+SUM(G244:G245) -> 12 | H246: =+SUM(H244:H245) -> 0.2754820937 | I246: =H246/G246 -> 0.02295684114
A247: Floral resources | B247: =FieldBeeForm!C231 -> 12 | C247: =FieldBeeForm!D231 -> Number of different flowering plant species present during early-blooming (Feb-May) period | D247: =IF(FieldBeeForm!G231>=5, 5, FieldBeeForm!G231) -> 5 | E247: 5 | F247: =+D247/E247 -> 1 | G247: 2 | H247: =+F247*G247 -> 2 | I247: =H247/G247 -> 1 | K247: Research has shown that it is ideal to have 5 or more flowering plant species present during all seasons (the greater diversity of plants, the greater abundance and diversity of bees). | L247: NRCS 2009, Bosch and Kemp 2001, Pontin et al. 2006, Holcomb 2009, Pywell et al. 2005
B248: =FieldBeeForm!C232 -> 13 | C248: =FieldBeeForm!D232 -> Number of different flowering plants present during mid-blooming (Jun-Jul) period | D248: =IF(FieldBeeForm!G232>=5, 5, FieldBeeForm!G232) -> 5 | E248: 5 | F248: 1 | G248: 2 | H248: 2 | I248: 1
B249: =FieldBeeForm!C233 -> 14 | C249: =FieldBeeForm!D233 -> Number of different flowering plants present during late-blooming (Aug-Jan) period | D249: =IF(FieldBeeForm!G233>=5, 5, FieldBeeForm!G233) -> 5 | E249: 5 | F249: 1 | G249: 2 | H249: 2 | I249: 1
B250: =FieldBeeForm!C234 -> 15 | C250: =FieldBeeForm!D234 -> Estimated surface area of flowering plants present during early-blooming (Feb-May) period | D250: =IF(FieldBeeForm!I234=0,0,IF(FieldBeeForm!I234<0.05,1,IF(FieldBeeForm!I234<0.1,2,IF(FieldBeeForm!I234<0.15,3,IF(FieldBeeForm!I234<0.2,4,IF(FieldBeeForm!I234<0.25,5,6)))))) -> 0 | E250: 6 | F250: 0 | G250: 1 | H250: 0 | I250: 0 | K250: Having floral resources available throughout the year supports diversity of pollinator species. Scoring is set at 0, 1 to 5, 5 to 10, 10 to 15, 15 to 20, 20 to 25, and over 25% for maximum score. | L250: Zurbuchen et al 2008, NRCS 2009, Holcomb 2009, Pywell et al. 2005
B251: =FieldBeeForm!C235 -> 16 | C251: =FieldBeeForm!D235 -> Estimated surface area of flowering plants present during mid-blooming (Jun-Jul) period | D251: =IF(FieldBeeForm!I235=0,0,IF(FieldBeeForm!I235<0.05,1,IF(FieldBeeForm!I235<0.1,2,IF(FieldBeeForm!I235<0.15,3,IF(FieldBeeForm!I235<0.2,4,IF(FieldBeeForm!I235<0.25,5,6)))))) -> 0 | E251: 6 | F251: 0 | G251: 1 | H251: 0 | I251: 0
B252: =FieldBeeForm!C236 -> 17 | C252: =FieldBeeForm!D236 -> Estimated surface area of flowering plants present during late-blooming (Aug-Jan) period | D252: =IF(FieldBeeForm!I236=0,0,IF(FieldBeeForm!I236<0.05,1,IF(FieldBeeForm!I236<0.1,2,IF(FieldBeeForm!I236<0.15,3,IF(FieldBeeForm!I236<0.2,4,IF(FieldBeeForm!I236<0.25,5,6)))))) -> 0 | E252: 6 | F252: 0 | G252: 1 | H252: 0 | I252: 0
C253: Combined coverage of floral resources | D253: =+IF(SUM(FieldBeeForm!I234:I236)<0,0, IF(SUM(FieldBeeForm!I234:I236)<0.05, 1, IF(SUM(FieldBeeForm!I234:I236)<0.1, 2, IF(SUM(FieldBeeForm!I234:I236)<0.2, 3, IF(SUM(FieldBeeForm!I234:I236)<0.5, 4, IF(SUM(FieldBeeForm!I234:I236)<0.75, 5, 6)))))) -> 1 | E253: 6 | F253: 0.1666666667 | G253: 3 | H253: 0.5 | I253: 0.1666666667
C254: Sum of Floral Resouces Weights and Scores | G254: =SUM(G247:G253) -> 12 | H254: =SUM(H247:H253) -> 6.5 | I254: =H254/G254 -> 0.5416666667 | K254: This section of "Floral Resources" was weighted as approximately 1/4 of the total Map Unit score.
A255: Nesting materials | B255: =FieldBeeForm!C237 -> 18 | C255: =FieldBeeForm!D237 -> Percent cover of friable bare ground present | D255: =FieldBeeForm!E237 -> 0.055 | E255: 0.3 | F255: =+D255/E255 -> 0.1833333333 | G255: 3 | H255: =+F255*G255 -> 0.55 | I255: =H255/G255 -> 0.1833333333 | K255: 70% native bees nest in soil. | L255: Morandin and Winston 2006, Carvell 2004, Potts et al. 2005, Xerces Society for Invertebrate Conservation Society for Invertebrate Conservation 2011
B256: =FieldBeeForm!C240 -> 19 and 20 | C256: =FieldBeeForm!D240 -> Amount of rodent holes and/or bunch grasses | D256: =FieldBeeForm!E240 -> 1 | E256: 2 | F256: =+D256/E256 -> 0.5 | G256: 2 | H256: =+F256*G256 -> 1 | I256: 0.5 | K256: 30% native bees nest in cavities including blue orchard bees. | L256: Thorp et al. 1983, Kearns and Thomson 2001, McFrederick and LeBuhn 2006
B257: =FieldBeeForm!C244 -> 21, 22 and 23 | C257: =FieldBeeForm!D244 -> Amount of snags/stumps, nest boxes/bundles, pithy tissue | D257: =FieldBeeForm!E244 -> 1 | E257: 2 | F257: =+D257/E257 -> 0.5 | G257: 2 | H257: =+F257*G257 -> 1 | I257: 0.5 | K257: Bumble bees often nest or overwinter in rodent holes or within bunch grasses. | L257: Bosch and Kemp 2001; Michener 2000; Xerces Society for Invertebrate Conservation Society for Invertebrate Conservation 2011;
B258: =FieldBeeForm!C245 -> 18 through 23 | C258: =FieldBeeForm!D245 -> Diversity of available nesting materials | D258: =FieldBeeForm!E245 -> 0.6666666667 | E258: 1 | F258: =+D258/E258 -> 0.6666666667 | G258: 5 | H258: =+F258*G258 -> 3.333333333 | I258: 0.6666666667 | K258: A diversity of nesting materials will support a diversity of pollinators. | L258: Tscharntke et al. 1998, Cane 2001, Potts et al. 2005, Westrich 1996
C259: Sum of Nesting Materials Weights and Scores | G259: =SUM(G255:G258) -> 12 | H259: =SUM(H255:H258) -> 5.883333333 | I259: =H259/G259 -> 0.4902777778 | K259: This section of "Nesting materials" was weighted as approximately 1/4 of the total Map Unit score.
A260: Management: Soil disturbance | B260: =FieldBeeForm!C246 -> 24 | C260: Is the Map Unit tilled at some point during the year? (0 = yes) | D260: =IF(FieldBeeForm!E246=0,1,0) -> 0 | E260: 1 | F260: =+D260/E260 -> 0 | G260: 1 | H260: =+F260*G260 -> 0 | I260: =H260/G260 -> 0 | K260: Soil tilling disturbs ground nesting bees and favors aggressive nonnative plants. | L260: Shuler et al. 2005, NRCS 2009, Xerces Society for Invertebrate Conservation 2011
B261: =FieldBeeForm!C247 -> 25 | C261: Is the Map Unit flood-irrigated at some point during the year? (0 = yes) | D261: =IF(FieldBeeForm!E247=0,1,0) -> 1 | E261: 1 | F261: =+D261/E261 -> 1 | G261: 1 | H261: =+F261*G261 -> 1 | I261: 1 | K261: Flood irrigation drowns the underground life stages of ground nesting bees. | L261: Vaughn et al. 2007, NRCS 2009, Xerces Society for Invertebrate Conservation 2011
B262: =FieldBeeForm!C248 -> 26 | C262: Is plastic mulching used at the Map Unit? (0 = yes) | D262: =IF(FieldBeeForm!E248=0,1,0) -> 0 | E262: 1 | F262: 0 | G262: 1 | H262: =+F262*G262 -> 0 | I262: 0 | K262: Plastic mulching traps the underground life stages of ground nesting bees. | L262: NRCS 2009, Xerces Society for Invertebrate Conservation 2011
B263: =FieldBeeForm!C249 -> 27 | C263: Does road-grading or road-making occur on the Map Unit? (0 = yes) | D263: =IF(FieldBeeForm!E249=0,1,0) -> 0 | E263: 1 | F263: 0 | G263: 1 | H263: =+F263*G263 -> 0 | I263: 0 | K263: Road-grading/making distrubs the underground life stages of ground nesting bees. | L263: NRCS 2009, Xerces Society for Invertebrate Conservation 2011
B264: =FieldBeeForm!C250 -> 28 | C264: Total percent cover of map unit that does NOT experience soil disturbance. | D264: =1-FieldBeeForm!E250 -> 0.4 | E264: 1 | F264: =+D264/E264 -> 0.4 | G264: 2 | H264: =+F264*G264 -> 0.8 | I264: 0.4 | K264: The less of the site with ground disturbance, the less the impact to bees. | L264: NRCS 2009, Xerces Society for Invertebrate Conservation 2011
C265: Subtotal Sum of Management: Soil Disturbance Weights and Scores | G265: =SUM(G260:G264) -> 6 | H265: =SUM(H260:H264) -> 1.8 | I265: =H265/G265 -> 0.3 | K265: This subsection of "Soil disturbance" was weighted as 12.5% of the total Map Unit score.
A266: Management: Vegetation/ground disturbance | B266: =FieldBeeForm!C251 -> 29 | C266: Total cover NOT covered by invasive noxious weeds | D266: =1-FieldBeeForm!E251 -> 1 | E266: 1 | F266: =+D266/E266 -> 1 | G266: 1 | H266: =+F266*G266 -> 1 | I266: =H266/G266 -> 1 | K266: Aggressive nonnative plant species reduce overall plant diversity, which influences bee diversity. | L266: Williams et al. 2010, NRCS 2009, Bosch and Kemp 2001, Pontin et al. 2006, Holcomb 2009, Pywell et al. 2005
B267: =FieldBeeForm!C252 -> 30 | C267: FIVE MINUS the number of invasive noxious weed species | D267: =5-FieldBeeForm!E252 -> 0 | E267: 5 | F267: =+D267/E267 -> 0 | G267: 1 | H267: 0 | I267: 0
B268: =FieldBeeForm!C253 -> 31 | C268: Percent of the Map Unit NOT burned during the blooming season (Feb through Sept) | D268: =1-FieldBeeForm!E253 -> 1 | E268: 1 | F268: 1 | G268: 1 | H268: 1 | I268: 1 | K268: Burning disturbs ground nesting bees and floral resources. | L268: Black et al. 2008, Hartley et al. 2007, Smallidge and Leopold 1997, Manguira and Thomas 1992, NRCS 2009, Xerces Society for Invertebrate Conservation 2011
B269: =FieldBeeForm!C254 -> 32 | C269: Percent of the Map Unit NOT mowed and/or hayed during the blooming season (Feb through Sept) | D269: =1-FieldBeeForm!E254 -> 0.9 | E269: 1 | F269: 0.9 | G269: 1 | H269: 0.9 | I269: 0.9 | K269: Mowing/haying disturbs ground nesting bees and floral resources.
B270: =FieldBeeForm!C255 -> 33 | C270: Total percent of the Map Unit NOT burned, mowed, or hayed during the blooming season | D270: =1-FieldBeeForm!E255 -> 0.7 | E270: 1 | F270: 0.7 | G270: 2 | H270: =+F270*G270 -> 1.4 | I270: =H270/G270 -> 0.7 | K270: The less of the site with vegetation/soil disturbance, the less the impact to bees.
C271: Subtotal Sum of Management: Vegetation/Ground Disturbance Weights and Scores | G271: =SUM(G266:G270) -> 6 | H271: =SUM(H266:H270) -> 4.3 | I271: =H271/G271 -> 0.7166666667 | K271: This subsection of "Vegetation/Ground disturbance" was weighted as 12.5% of the total Map Unit score.
C272: TOTAL Sum of Management | G272: =G265+G271 -> 12 | H272: =H265+H271 -> 6.1 | I272: =H272/G272 -> 0.5083333333 | K272: This section of "Management" was weighted as approximately 1/4 of the total Map Unit score.
C273: Map Unit SCORE | G273: =(SUM(G246,G254,G259,G272,)) -> 48 | H273: =(SUM(H246,H254,H259,H272,)) -> 18.75881543 | I273: =H273/G273 -> 0.3908086547
C274: Map Unit | D274: =D243 -> 5 | E274: Combined Score for this Map Unit and Project Area Capacity | I274: =0.4*I273+0.6*$I$29 -> 0.2806091762 | J274: =I274*H243 -> 0.1288380056
A275: Combined Acres for Map Units: | B275: =H243 -> 0.4591368228 | E275: Combined Score for all Map Units to this point with the Project Area Capacity | I275: =0.4*((I$61*B$63+I$114*B$116+I$167*B$169+I$220*B$222+I$273*B$275)/SUM(B$116,B$63, B$169,B$222, B$275))+0.6*I$29 -> 0.3061513876 | J275: =I275*B275 -> 0.1405653754
A296: =+FieldBeeForm!A283 -> 6 | C296: Map Unit Number: | D296: =+FieldBeeForm!A283 -> 6 | E296: Map Unit Acres: | H296: =FieldBeeForm!H282 -> 0.4591368228
A297: Map Unit Characteristics | B297: =+FieldBeeForm!C$13 -> F | C297: Acres of Map Unit | D297: =+FieldBeeForm!H282 -> 0.4591368228 | E297: =+FieldBeeForm!$E$12*0.1 -> 10 | F297: =+D297/E297 -> 0.04591368228 | G297: 6 | H297: =+F297*G297 -> 0.2754820937 | I297: =H297/G297 -> 0.04591368228 | K297: The more area of the Map Unit that provides nesting and/or foraging habitat for the pollinators, the better. Credit assigned linearly up to 10% of the total farm area (maximum). | L297: Zurbuchen et al 2008, NRCS 2009
B298: =+FieldBeeForm!C$15 -> G | C298: Percent of Map Unit that is covered with pollinator habitat | D298: =+IF(FieldBeeForm!E280<1, 0, IF(FieldBeeForm!E280<10, 1, IF(FieldBeeForm!E280<25, 2, IF(FieldBeeForm!E280<50, 3, IF(FieldBeeForm!E280<75, 4, IF(FieldBeeForm!E280< 85, 5, 6)))))) -> 0 | E298: 6 | F298: 0 | G298: 6 | H298: 0 | I298: 0 | K298: Higher density habitat, vs. diffuse habitat, reduces energy required for pollinators and is therefore also better habitat. Bins set at <1, 1-10, 10-25, 25-50, 50-75, 75-85, >85. | L298: NRCS 2009, Sim and Baltus 1987
C299: Combined sum of Map Unit extent and density scores | G299: =+SUM(G297:G298) -> 12 | H299: =+SUM(H297:H298) -> 0.2754820937 | I299: =H299/G299 -> 0.02295684114
A300: Floral resources | B300: =FieldBeeForm!C284 -> 12 | C300: =FieldBeeForm!D284 -> Number of different flowering plant species present during early-blooming (Feb-May) period | D300: =IF(FieldBeeForm!G284>=5, 5, FieldBeeForm!G284) -> 5 | E300: 5 | F300: =+D300/E300 -> 1 | G300: 2 | H300: =+F300*G300 -> 2 | I300: =H300/G300 -> 1 | K300: Research has shown that it is ideal to have 5 or more flowering plant species present during all seasons (the greater diversity of plants, the greater abundance and diversity of bees). | L300: NRCS 2009, Bosch and Kemp 2001, Pontin et al. 2006, Holcomb 2009, Pywell et al. 2005
B301: =FieldBeeForm!C285 -> 13 | C301: =FieldBeeForm!D285 -> Number of different flowering plants present during mid-blooming (Jun-Jul) period | D301: =IF(FieldBeeForm!G285>=5, 5, FieldBeeForm!G285) -> 5 | E301: 5 | F301: 1 | G301: 2 | H301: 2 | I301: 1
... 159 more rows

Sheet VegTypeParameters
A1: Species/VegType Code | B1: Scientific Name or Description | C1: Common Name or Description | D1: Ht max (m) | E1: Ht Rate (m/y) | F1: Canopy Width Max (m) | G1: Canopy Width Rate (m/y) | H1: Blooming Season | I1: Explanation: Height growth rates (meters of growth per year) are based on species specific values published by the USDA where no California Central Valley or Delta empirical riparian data are available. For most species, empirical data on growth rates during the first five years are available. Maximum heights are all from the USDA publication. Canopy width (e.g. distance from drip line to drip line) and canopy width growth rate is also included as a variable based on empirical measurements from the Delta and Sacramento Valley. Canopy width by age is then combined with stem density at the site in order to calculate total canopy closure for the stand (as opposed to by individual). Height is calculated based on the maximum height, measured growth rate, age using the logistic equation: Ht = Hmax *(1-exp(-rate*age/Hmax)).
A2: 1000 | B2: Acmispon (Lotus) | C2: bird's-foot trefoil | D2: 1.5 | E2: 0.5 | F2: 1.75 | G2: 0.5 | H2: Early/Mid
A3: 1100 | B3: Amorpha | C3: desert false indigo | D3: 3 | E3: 0.375 | F3: 6 | G3: 0.75 | H3: Mid
A4: 1200 | B4: Amsinckia | C4: fiddleneck | D4: 0.5 | E4: 0.5 | F4: 0.2 | G4: 0.2 | H4: Early/Mid
A5: 1300 | B5: Row crops | C5: Annual crops | D5: 0 | E5: 0 | F5: 0 | G5: 0 | H5: Never
A6: 1400 | B6: Arctostaphylos | C6: Manzanita | D6: 3 | E6: 0.7 | F6: 3 | G6: 0.1125 | H6: Early/Mid
A7: 1500 | B7: Asclepias | C7: milkweed | D7: 0.8 | E7: 0.8 | F7: 0.2 | G7: 0.2 | H7: Early/Mid/Late
A8: 1600 | B8: Atriplex | C8: saltbush | D8: 3 | E8: 3.296296296 | F8: 5 | G8: 7.111111111 | H8: Mid/Late
A9: 1700 | B9: Baccharis pilularis | C9: coyote brush | D9: 2 | E9: 0.34 | F9: 2 | G9: 0.39 | H9: Late
A10: 1800 | B10: Baccharis salicifolia | C10: mule's fat | D10: 4 | E10: 5.7 | F10: 2.5 | G10: 6.9 | H10: Early/Mid/Late
A11: 1900 | B11: Bunch grass/sedge | C11: Bunch grass/sedge | D11: 1.088888889 | E11: 0.784 | F11: 0.6777777778 | G11: 0.488 | H11: Mid
A12: 2000 | B12: Ceanothus | C12: buckbrush, California lilac, deerbrush | D12: 3 | E12: 0.35 | F12: 3.666666667 | G12: 0.4666666667 | H12: Early/Mid
A13: 2100 | B13: Cephalanthus | C13: button willow, button bush | D13: 3.5 | E13: 0.53 | F13: 3 | G13: 0.61 | H13: Late
A14: 2200 | B14: Cercis | C14: California redbud | D14: 7 | E14: 0.7 | F14: 6 | G14: 0.6 | H14: Early
A15: 2300 | B15: Chamerion | C15: fireweed | D15: 3 | E15: 9 | F15: 1 | G15: 3 | H15: Mid
A16: 2400 | B16: Chrysothamnus | C16: yellow rabbitbrush | D16: 1.5 | E16: 0.6 | F16: 1 | G16: 0.4 | H16: Mid
A17: 2500 | B17: Clarkia | C17: clarkia | D17: 0.4 | E17: 0.4 | F17: 0.1 | G17: 0.1 | H17: Early/Mid
A18: 2600 | B18: Cornus | C18: redosier dogwood | D18: 4 | E18: 0.6666666667 | F18: 4 | G18: 0.6666666667 | H18: Mid
A19: 2700 | B19: Emergent wetland plants | C19: Emergent wetland plants | D19: 0 | E19: 0 | F19: 0 | G19: 0 | H19: Never
A20: 2800 | B20: Epilobium | C20: California fuchsia | D20: 0.2 | E20: 0.1 | F20: 1 | G20: 0.2 | H20: Mid/Late
A21: 2900 | B21: Erigeron | C21: horseweed | D21: 2 | E21: 2 | F21: 0.5 | G21: 0.5 | H21: Early/Mid/Late
A22: 3000 | B22: Eriodictyon | C22: California yerba santa | D22: 3 | E22: 0.75 | F22: 4 | G22: 1 | H22: Early/Mid
A23: 3100 | B23: Eriogonum | C23: Buckwheat | D23: 1.833333333 | E23: 0.875 | F23: 1.833333333 | G23: 0.625 | H23: Early/Mid/Late
A24: 3200 | B24: Eriophyllum | C24: common woolly sunflower | D24: 0.4 | E24: 0.4 | F24: 0.3 | G24: 0.2 | H24: Mid
A25: 3300 | B25: Eschscholzia | C25: California poppy | D25: 0.3 | E25: 0.6 | F25: 0.15 | G25: 0.3 | H25: Early/Mid
A26: 3400 | B26: Euthamia | C26: western goldentop | D26: 2 | E26: 2 | F26: 0.5 | G26: 0.5 | H26: Mid/Late
A27: 3500 | B27: Ficus carica | C27: fig | D27: 0 | E27: 0 | F27: 0 | G27: 0 | H27: Never
A28: 3600 | B28: Frangula | C28: California buckthorn | D28: 5.5 | E28: 2.75 | F28: 3.5 | G28: 1.7 | H28: Early/Mid
A29: 3700 | B29: Fremontodendron | C29: Fremontia (Flannel bush) | D29: 3.2 | E29: 0.2133333333 | F29: 4 | G29: 0.2666666667 | H29: Early/Mid
A30: 3800 | B30: Gilia | C30: bird's-eye gilia | D30: 0.3 | E30: 0.6 | F30: 0.15 | G30: 0.3 | H30: Mid
A31: 3900 | B31: Glycyrrhiza | C31: American licorice | D31: 1.2 | E31: 0.4 | F31: 1.2 | G31: 0.4 | H31: Mid
A32: 4000 | B32: Grindelia | C32: Great Valley gumweed | D32: 2.5 | E32: 1.666666667 | F32: 2 | G32: 1.333333333 | H32: Mid/Late
A33: 4100 | B33: Helenium | C33: rosilla | D33: 1.6 | E33: 1.6 | F33: 0.5 | G33: 0.5 | H33: Mid
A34: 4200 | B34: Helianthus | C34: sunflower | D34: 2.5 | E34: 6.5 | F34: 0.75 | G34: 1.25 | H34: Mid/Late
A35: 4300 | B35: Heliotropium | C35: Heliotrope | D35: 0.3 | E35: 0.3 | F35: 1 | G35: 1 | H35: Early/Mid/Late
A36: 4400 | B36: Heteromeles | C36: toyon | D36: 5 | E36: 0.8333333333 | F36: 6 | G36: 1 | H36: Mid
A37: 4500 | B37: Holodiscus | C37: oceanspray | D37: 4 | E37: 0.2 | F37: 4 | G37: 0.2 | H37: Mid
A38: 4600 | B38: Horkelia | C38: Horkelia | D38: 0.75 | E38: 0.75 | F38: 1 | G38: 0.75 | H38: Early/Mid
A39: 4700 | B39: Juglans | C39: Walnut | D39: 30 | E39: 1 | F39: 12 | G39: 0.75 | H39: Early
A40: 4800 | B40: Lavandula spp. | C40: Lavender | D40: 0.5 | E40: 0.5 | F40: 0.5 | G40: 0.25 | H40: Early/Mid/Late
A41: 4900 | B41: Layia | C41: Tidytips | D41: 0.5 | E41: 0.7 | F41: 0.1 | G41: 0.1 | H41: Early/Mid
A42: 5000 | B42: Lupinus spp. | C42: lupine | D42: 3 | E42: 0.98 | F42: 3 | G42: 1.08 | H42: Early/Mid/Late
A43: 5100 | B43: Madia | C43: Madia | D43: 0.5 | E43: 0.5 | F43: 0.1 | G43: 0.1 | H43: Early/Mid/Late
A44: 5200 | B44: Mahonia | C44: Oregon grape | D44: 2 | E44: 0.8 | F44: 2 | G44: 0.8 | H44: Early/Mid
A45: 5300 | B45: Medicago | C45: alfalfa | D45: 0.5 | E45: 0.5 | F45: 0.7 | G45: 0.7 | H45: Mid/Late
A46: 5400 | B46: Mimulus | C46: sticky monkey flower | D46: 1 | E46: 0.3 | F46: 1.5 | G46: 0.3 | H46: Mid
A47: 5500 | B47: Monardella | C47: coyote mint | D47: 0.5 | E47: 0.25 | F47: 0.5 | G47: 0.25 | H47: Mid
A48: 5600 | B48: Native forbs and graminoids not beneficial to pollinators | C48: Native forbs and graminoids not beneficial to pollinators | D48: 0 | E48: 0 | F48: 0 | G48: 0 | H48: Never
A49: 5700 | B49: Native trees and shrubs not beneficial to bees | C49: Native trees and shrubs not beneficial to bees | D49: 0 | E49: 0 | F49: 0 | G49: 0 | H49: Never
A50: 5800 | B50: Nemophila | C50: fivespot | D50: 0.15 | E50: 0.45 | F50: 0.15 | G50: 0.45 | H50: Early
A51: 5900 | B51: Oenothera | C51: Hooker's evening primrose | D51: 1.7 | E51: 1.7 | F51: 0.3 | G51: 0.3 | H51: Mid
A52: 6000 | B52: Orchard | C52: peach/plum/almond/cherry/apple | D52: 10 | E52: 0.5 | F52: 6 | G52: 0.5 | H52: Early
A53: 6100 | B53: Other early blooming native plants beneficial to pollinators | C53: Other early blooming native plants beneficial to pollinators | D53: 1 | E53: 0.25 | F53: 0.5 | G53: 0.25 | H53: Early
A54: 6200 | B54: Other late blooming native plants beneficial to pollinators | C54: Other late blooming native plants beneficial to pollinators | D54: 1 | E54: 0.25 | F54: 0.5 | G54: 0.25 | H54: Late
A55: 6300 | B55: Other mid blooming native plants beneficial to pollinators | C55: Other mid blooming native plants beneficial to pollinators | D55: 1 | E55: 0.25 | F55: 0.5 | G55: 0.25 | H55: Mid
A56: 6400 | B56: Penstemon | C56: Penstemon | D56: 1 | E56: 0.4 | F56: 1 | G56: 0.4 | H56: Mid
A57: 6500 | B57: Phacelia | C57: Phacelia | D57: 0.8333333333 | E57: 0.9666666667 | F57: 0.3666666667 | G57: 0.6666666667 | H57: Early/Mid
A58: 6600 | B58: Philadelphus lewisii | C58: Lewis' mock orange | D58: 3 | E58: 0.2 | F58: 3 | G58: 0.2 | H58: Mid
A59: 6700 | B59: Phyla nodiflora | C59: turkey tangle fogfruit | D59: 0.1 | E59: 0.3 | F59: 0.5 | G59: 1.5 | H59: Mid/Late
A60: 6800 | B60: Punica granatum | C60: pomegranate | D60: 6 | E60: 0.3 | F60: 8 | G60: 0.5 | H60: Mid
A61: 6900 | B61: Rosa californica | C61: California wildrose | D61: 1.5 | E61: 1 | F61: 2 | G61: 1 | H61: Early/Mid/Late
A62: 7000 | B62: Salix (shrub) | C62: shrub willows | D62: 3.5 | E62: 0.73 | F62: 2.5 | G62: 0.55 | H62: Early
A63: 7100 | B63: Salix (tree) | C63: Tree willows | D63: 12 | E63: 2 | F63: 10 | G63: 0.24 | H63: Early
A64: 7200 | B64: Salix spp. | C64: Willows (many species) | D64: 10 | E64: 0.73 | F64: 7.5 | G64: 0.55 | H64: Early
A65: 7300 | B65: Salvia | C65: sage | D65: 1.75 | E65: 0.5 | F65: 3 | G65: 1 | H65: Early/Mid
A66: 7400 | B66: Sambucus | C66: blue elderberry | D66: 5 | E66: 0.5 | F66: 3.5 | G66: 0.38 | H66: Early
A67: 7500 | B67: Scrophularia | C67: Figwort | D67: 1.2 | E67: 1.2 | F67: 0.3 | G67: 0.3 | H67: Early/Mid
A68: 7600 | B68: Solidago | C68: California goldenrod | D68: 1.5 | E68: 1.5 | F68: 0.5 | G68: 0.5 | H68: Mid/Late
A69: 7700 | B69: Stachys | C69: Hedgenettle | D69: 2.5 | E69: 2.5 | F69: 0.5 | G69: 0.5 | H69: Mid
A70: 7800 | B70: Symphyotrichum (Aster) | C70: Pacific aster | D70: 5 | E70: 2 | F70: 1 | G70: 0.5 | H70: Mid/Late
A71: 7900 | B71: Trichostema | C71: vinegarweed | D71: 1 | E71: 1 | F71: 0.5 | G71: 0.5 | H71: Mid/Late
A72: 8000 | B72: Triteleia | C72: Ithuriel's spear | D72: 0.6 | E72: 0.6 | F72: 0.2 | G72: 0.2 | H72: Early/Mid
A73: 8100 | B73: Vineyard | C73: Vineyard | D73: 2 | E73: 0.5 | F73: 2 | G73: 0.55 | H73: Never
A74: 8200 | B74: WATER | C74: WATER | D74: 0 | E74: 0 | F74: 0 | G74: 0 | H74: Never
A75: 8300 | B75: Weeds invasive and not beneficial to pollinators | C75: Weeds invasive and not beneficial to pollinators | D75: 0 | E75: 0 | F75: 0 | G75: 0 | H75: Never
A76: 8400 | B76: Weeds, non-invasive and not beneficial to pollinators | C76: Weeds, non-invasive and not beneficial to pollinators | D76: 0 | E76: 0 | F76: 0 | G76: 0 | H76: Never
A77: 8500 | B77: Other Exotic Shrubs | C77: Other Exotic Shrubs | D77: 3 | E77: 2 | F77: 3 | G77: 1 | H77: Early/Mid/Late
A78: 8600 | B78: Other Exotic Trees | C78: Other Exotic Trees | D78: 30 | E78: 1 | F78: 15 | G78: 0.25 | H78: Early/Mid/Late

Sheet References
A1: Citation | B1: Notes
A2: Badano, E.I. and C.H. Vergara. 2011. Potential negative effects of exotic honey bees on the diversity of native pollinators and yield of a highland coffee plantations. Agricultural and Forest Entomology. No. doi: 10.1111/j. 1461--9563.2011.00527x | B2: Honey bees can compete with native bees for resources, reducing native bee pollinator services
A3: Black, S.H., N. Hodges, M. Vaughan and M. Shepherd. 2008. Pollinators in Natural Areas:A Primer on Habitat Management. Publication by the Xerxes Society, available online at: http://www.xerces.org/wp-content/uploads/2008/11/pollinators_in_natural_areas_xerces_society.pdf | B3: Protect overwintering pollinators and foraging larvae and adults by burning, mowing, and or haying only part of the farm at a time -- to give them someplace to go.
A4: Bosch, J., and W. Kemp. 2001. How to manage the Blue Orchard Bee as an Orchard Pollinator. Sustainable Agriculture Network, Handbook Series Book 5. National Agricultural Library. Beltsville, MD.
A5: Cane, J.H. 2001. Habitat fragmentation and native bees: a premature verdict? Conservation Ecology 5(1):3 [online] URL: http://www.consecol.org/vol5/is1/art3. | B5: Honey bees can compete with native bees for resources, reducing native bee pollinator services
A6: Carvell, C. 2002. Habitat use and conservation of bumblebees (Bombus spp.) under different grassland management regimes. Biological Conservation. 103:33-49. | B6: Bumble bees like have variety in landscape -- more with more hedgerows
A7: Decourtye, A., J. Devillers, S. Cluzeau, M. Charreton, and M.-H. Pham-Delegue. 2004. Effects of imidacloprid and deltamethrin on associative learning in honeybees under semi-Þeld and laboratory conditions. Ecotoxicol. Environ. Saf. 57: 410Ð419. | B7: Insecticides can affect foraging and nesting behavior - even at sublethal doses
A8: Desneux, N., A. Decourtye, and J.-M. Delpuech. 2007. The sublethal effects of pesticides on beneÞcial arthropods. Annu. Rev. Entomol. 52: 81Ð106. | B8: Insecticides can affect foraging and nesting behavior - even at sublethal doses
A9: Everich, R., C. Schiller, J. Whitehead, M. Beavers, and K. Barrett. 2009. Effects of Captan on Apis millifer brood development under field conditions in California almond orchards. Journal of Economic Entomology. 102(1): 20-29.
A10: Gess, F. W., and S. K. Gess. 1993. Effects of increasing land utilization on species representation and diversity of aculeate wasps and bees in the semi-arid areas of southern Africa. In Hymenoptera and Biodiversity, edited by J. La Salle and I. D. Gauld, 83-113. Wallingford: CAB International. | B10: Grazing disturbs ground nesters
A11: Greenleaf, S. S., N. M. Williams, R. Winfree, and C. Kremen. 2007. Bee foraging ranges and their relationship to body size. Oecologia 153: 589–596
A12: Hartley, M. K., W. E. Rogers, E. Siemann, and J. Grace. 2007. Responses of prairie arthropod communities to fire and fertilizer: balancing plant and arthropod conservation. American Midland Naturalist 157:92-105. | B12: Pollinator populations can recolonize a site after disturbance if only parts of the farm are subjected to soil/nest maintenance activity at a time.
A13: Johansen, E. W., and Mayer, D. F. 1990. Pollinator Protection: A Bee and Pesticide Handbook. Wicwas Press. Cheshire, CT. | B13: Night time insecticide application kills fewer pollinators
A14: Johansen, C. A. 1977. Pesticides and pollinators. Annual Review of Entomology 22:177-192. | B14: Insecticides kill pollinators
A15: Kearns, C. A., and J. D. Thompson. 2001. The Natural History of Bumblebees. A Sourcebook for Investigations. Boulder: University Press of Colorado. 130pp.
A16: Klein, A., B.E. Vaissiere, J.H. Cane, I. Steffan-Dewenter, S.A. Cunningham, C. Kremen, and T. Tscharntke. 2007. The importance of pollinators in changing landscapes for world crops. Proceedings of the Royal Society B 274:303-313. http://rspb.royalsocietypublishing.org/content/274/1608/303.full.pdf+html.
A17: Kremen, C. 2010. Landuse categories defined for Yolo landcover layer. Defined July 13, 2009; updated February 26, 2010.
A18: Kremen, C., N. M. Williams, M. A. Aizen, B. Gemmill-Herren, G. LeBuhn, R. Minckley, L. Packer, S. G. Potts, T. Roulston, I. Steffan-Dewenter, D. P. Vazquez, R. Winfree, L. Adams, E. E. Crone, S. S. Greenleaf, T. H. Keitt, A. Klein, J. Regetz, and T. H. Ricketts. 2007. Pollination and other ecosystem services produced by mobile organisms: a conceptual framework for the effects of land-use change. Ecology Letters 10: 299–314.
A19: Munguira, M.L. and J.A. Thomas. 1992. Use of road verges by butterfly and burnet populations and the effect of roads on adult dispersal and mortality. Journal of Applied Ecology . 29(316-329). | B19: Road edges can be planted with floral resource and managed with open soil/nesting resources -- road kill insignif.
A20: McFrederick, Q. S. and G. LeBuhn. 2006. Are urban parks refuges for bumble bees Bombus spp. (Hymenoptera: Apidae)? Biological Conservation. 129:372-382 | B20: Patches of rough undisturbed grass where rodents can nest can create future nesting sites for bumble bees
A21: Michener, C.D. 2000. The Bees of the World. 913 pp. Baltimore: John Hopkins University Press. | B21: Wood nesters mostly solitary -- some can chew out centers of woody plant stems and twigs - like in elderberry or even soft pines.
A22: Morandin, L., and M. Winston. 2006. Pollinators provide economic incentive to preserve natural land in agroecosystems. Agriculture, Ecosystems and Environment 116:289-292.
A23: NRCS (Natural Resources Conservation Science). 2009. Pollinator biology and habitat in California. Biology Technical Note No. CA—19 190-VI. Davis, California.
A24: Ozkan, H. E. 2000. Reducing Spray Drift. Ohio State University Extension Bulletin. 816-00. Columbus, OH | B24: Pesticide drift depends on application method, wind velocityies, and spray formulation, and weather (inversions, thermals, etc.)
A25: Pilling, E.D., K.A.C. Bromley-Challenor, C.II. Walker, and P.C. Jepson. Mechanisms of synergism between the Pyrethroid insecticide lambda-cyhalothrin and the imidazole fungicide prochloraz, in the honeybee (Apis mellifera L.). Pesticide Biogeochemistry and Physiology. 52 (1-11).
A26: Pontin, D.R. M.R. Wade, P. Kehrli, and S.D. Wratten. 2006. Attractiveness of single and multiple species flower patches to beneficial insects in agroecosystems. Annals of Applied Biology. 148 (pp. 39-47).
A27: Potts, S. G., B. Vulliamy, S. Roberts, C. O’Toole, A. Dafni, G. Ne’eman, and P. G. Willmer. 2005. Role of nesting resources in organizing diverse bee communities in a Mediterranean landscape. Ecological Entomology 30:78-85. | B27: Gorund nesters need access to soil surface to excavate and get into and out of their nests - sand, loamy sands are great.
A28: Pywell, R.F., E.A. Warman, C. Carvell, T.H. Sparks, L.V. Dicks, D. Bennett, A. Wright, C.N.R. Critchley, A. Sherwood. 2005. Providing foraging resources for bumblebees in intensively farmed landscapes. Biological Conservation. 121:479-494.
A29: Riedl, H., E. Johnson, L. Brewer, and J. Barbour. 2006. How to Reduce Bee Poisoning From Pesticides. Pacific Northwest Extension Publication. PNW 591. Corvallis, OR: Oregon State University. | B29: Night time insecticide application kills fewer pollinators
A30: Schmuck, R., T. Stadler, and H. Schmidt. 2003. Field relevanct of synergistic effect observed in the laboratory between EBI fungicide and a chloronicotinyl insecticide in the honeybee. Pest Management Science. 59: 279-286.
A31: Shuler, R. E., T. H. Roulston, and G. E. Farris. 2005. Farming practices influence wild pollinator populations on squash and pumpkin. Journal of Economic Entomology 98:790- 795. | B31: Tilling kills ground nesting bees
A32: Smallidge, P. J., and D. J. Leopold. 1997. Vegetation management for the maintenance and conservation of butterfly habitats in temperate human-dominated habitats. Landscape and Urban Planning 38:259-280. | B32: Avoid maintenance activities while plants are in flower to minimize losses and set backs in foragin and/or egg-laying
A33: Tew, J. E. 1997. Protecting Honey Bees from Pesticides. Ohio State University. Extension Factsheet HYG-2161-97. | B33: Night time insecticide application kills fewer pollinators
A34: Thompson, H. M. 2003. Behavioural effects of pesticides use in bees – their potential for use in risk assessment. Ecotoxicology 12:317-330. | B34: Insecticides can affect foraging and nesting behavior - even at sublethal doses
A35: Tscharntke, T., A. Gathmann, and I. Steffan-Dewenter. 1998. Bioindication using trap-nesting bees and wasps and their natural enemies: community structure and interactions. Journal of Applied Ecology 35:708-719.
A36: UC Statewide IPM Program. 2009. Scientists track blue orchard bees as promising pollinators for almonds. 2009 Annual Report. Website. http://www.ipm.ucdavis.edu/IPMPROJECT/2009/orchardbees.html [Accessed 11 May 2011].
A37: Vaughan, M., M. Shepherd, C. Kremen, S.H. Black. 2007. Farming for bees: Guidelines for providing native bee habitat on farms. Xerces Society for Invertebrate Conservation, Portland, Oregon. ISBN: 978-0-9744475-1-3. Available online at: http://www.xerces.org/wp-content/uploads/2008/11/farming_for_bees_guidelines_xerces_society.pdf | B37: Flood irrigating kill ground nesting bees
A38: Vinson, S. B., G. W. Frankie, and J. Barthell. 1993. Threats to the diversity of solitary bees in a neotropical dry forest in Central America. In Hymenoptera and Biodiversity, edited by J. La Salle and I. D. Gauld, 53-82. Wallingford: CAB International. | B38: Grazing disturbs ground nesters
A39: Westrich, P. 1996. Habitat requirements of central European bees and the problems of partial habitats. In Conservation of Bees, edited by A. Matheson, S. L. Buchmann, C. O’Toole, P. Westrich, and I. H. Williams, 1-16. London: Academic Press. | B39: Nesting and forage materials can be separate, but not too far apart
A40: Williams, N. M., and C. Kremen. 2007. Resource distribution among habitats determine solitary bee offspring production in a mosaic landscape. Ecological Applications 17:910- 921.
A41: Williams, N.M., D. Cariveau, R. Winfree, and C. Kremen. 2010. Bees in disturbed habitats use, but do not prefer, alien plants. Basic and Applied Ecology.
A42: Xerces Society for Invertebrate Conservation. 2011. Pollinator Plants for California Hedgerows and Rangeland Restoration. 1 page.
A43: Zhong, H., M. Latham, S. Payne, and C. Brock. 2004. Minimizing the impact of the mosquito adulticide naled on honey bees, Apis mellifera (Hymenoptera: Apidae): Aerial ultra-low-volume application using a high-pressure nozzle system. Journal of Economic Entomology 97:1-7. | B43: Broad spectrum pesticides are to be avoided
A44: Zurbuchen, A., L. Landert, J. Klaiber, A. Müller, S. Hein, S. Dorn. 2010. Maximum foraging ranges in solitary bees: only few individuals have the capability to cover long foraging distances. Biological Conservation. Doi: 10.1016/j.biocon.2009.12.003. | B44: Bee forage distance should not be set at maximum distance possible, rather ~ one -half of that in order to address the greater number of pollinator movements.
